Workbook

Sheet Avantages perçus
A1: Bénéficiaire | B1: Type de bénéficiaire | C1: Entreprise | D1: Date | E1: Nature | F1: Montant
A2: Pr Gilles Vassal, IGR | B2: Médecin | C2: ROCHE SAS | D2: 30/05/2013 | E2: Frais remboursés (transport) | F2: 170
A3: Pr Gilles Vassal, IGR | B3: Médecin | C3: ROCHE SAS | D3: 31/05/2013 | E3: Inscription | F3: 671
A4: Pr Gilles Vassal, IGR | B4: Médecin | C4: ROCHE SAS | D4: 31/05/2013 | E4: Transport | F4: 23
A5: Pr Gilles Vassal, IGR | B5: Médecin | C5: ROCHE SAS | D5: 31/05/2013 | E5: Restauration | F5: 40
A6: Pr Gilles Vassal, IGR | B6: Médecin | C6: ROCHE SAS | D6: 2013-06-01 | E6: Restauration | F6: 65
A7: Pr Gilles Vassal, IGR | B7: Médecin | C7: Lilly France SAS | D7: 28/05/2015 | E7: REPAS | F7: 55
A8: Pr Gilles Vassal, IGR | B8: Médecin | C8: Lilly France SAS | D8: 28/05/2015 | E8: HÉBERGEMENT | F8: 318
A9: Pr Gilles Vassal, IGR | B9: Médecin | C9: ROCHE SAS | D9: 28/05/2015 | E9: Hebergement | F9: 330
A10: Pr Gilles Vassal, IGR | B10: Médecin | C10: ROCHE SAS | D10: 29/05/2015 | E10: Hebergement | F10: 660
A11: Pr Gilles Vassal, IGR | B11: Médecin | C11: ROCHE SAS | D11: 31/05/2015 | E11: Hebergement | F11: 330
A12: Pr Gilles Vassal, IGR | B12: Médecin | C12: ROCHE SAS | D12: 2015-06-01 | E12: Hebergement | F12: 330
A13: Pr Gilles Vassal, IGR | B13: Médecin | C13: ROCHE ROYAUME-UNI | D13: 18/05/2016 | E13: Transport | F13: 71
A14: Pr Gilles Vassal, IGR | B14: Médecin | C14: ROCHE ROYAUME-UNI | D14: 18/05/2016 | E14: Repas | F14: 28
A15: Pr Gilles Vassal, IGR | B15: Médecin | C15: ROCHE ROYAUME-UNI | D15: 18/05/2016 | E15: Transport | F15: 53
A16: Pr Gilles Vassal, IGR | B16: Médecin | C16: ROCHE ROYAUME-UNI | D16: 18/05/2016 | E16: Hospitalité | F16: 241
A17: Pr Gilles Vassal, IGR | B17: Médecin | C17: ROCHE ROYAUME-UNI | D17: 18/05/2016 | E17: Transport | F17: 597
A18: Pr Gilles Vassal, IGR | B18: Médecin | C18: ROCHE SAS | D18: 2016-06-03 | E18: Inscription | F18: 801
A19: Pr Gilles Vassal, IGR | B19: Médecin | C19: ROCHE SAS | D19: 2016-06-03 | E19: Hebergement | F19: 250
A20: Pr Gilles Vassal, IGR | B20: Médecin | C20: ROCHE ETATS-UNIS | D20: 2016-06-05 | E20: Repas | F20: 14
A21: Pr Gilles Vassal, IGR | B21: Médecin | C21: ROCHE SAS | D21: 2016-06-06 | E21: Repas | F21: 58
A22: Pr Gilles Vassal, IGR | B22: Médecin | C22: Lilly France SAS | D22: 23/09/2016 | E22: TRANSPORT | F22: 4861
A23: Pr Gilles Vassal, IGR | B23: Médecin | C23: BRISTOL-MYERS SQUIBB | D23: 29/11/2016 | E23: Repas | F23: 59
A24: Pr Gilles Vassal, IGR | B24: Médecin | C24: BRISTOL-MYERS SQUIBB | D24: 29/11/2016 | E24: Repas | F24: 12
A25: Pr Gilles Vassal, IGR | B25: Médecin | C25: BRISTOL-MYERS SQUIBB | D25: 29/11/2016 | E25: Repas | F25: 11
A26: Pr Gilles Vassal, IGR | B26: Médecin | C26: BRISTOL-MYERS SQUIBB | D26: 2017-01-10 | E26: Transport | F26: 98
A27: Pr Gilles Vassal, IGR | B27: Médecin | C27: ASTRAZENECA | D27: 19/04/2017 | E27: Repas | F27: 25
A28: Pr Gilles Vassal, IGR | B28: Médecin | C28: BRISTOL-MYERS SQUIBB COMPANY | D28: 28/09/2017 | E28: Transport | F28: 228
A29: Pr Gilles Vassal, IGR | B29: Médecin | C29: BRISTOL-MYERS SQUIBB COMPANY | D29: 28/09/2017 | E29: Transport | F29: 600
A30: Pr Gilles Vassal, IGR | B30: Médecin | C30: BRISTOL-MYERS SQUIBB COMPANY | D30: 29/09/2017 | E30: Repas | F30: 15
A31: Pr Gilles Vassal, IGR | B31: Médecin | C31: BRISTOL-MYERS SQUIBB COMPANY | D31: 29/09/2017 | E31: Repas | F31: 24
A32: Pr Gilles Vassal, IGR | B32: Médecin | C32: BRISTOL-MYERS SQUIBB COMPANY | D32: 29/09/2017 | E32: Repas | F32: 41
A33: Pr Gilles Vassal, IGR | B33: Médecin | C33: BRISTOL-MYERS SQUIBB COMPANY | D33: 2017-11-08 | E33: Diner | F33: 57
A34: Dr Christophe Massard, IGR | B34: Médecin | C34: JANSSEN-CILAG | D34: 28/03/2013 | E34: REPAS | F34: 53
A35: Dr Christophe Massard, IGR | B35: Médecin | C35: JANSSEN-CILAG | D35: 28/03/2013 | E35: TRANSPORT | F35: 84
A36: Dr Christophe Massard, IGR | B36: Médecin | C36: JANSSEN-CILAG | D36: 20/04/2013 | E36: REPAS | F36: 70
A37: Dr Christophe Massard, IGR | B37: Médecin | C37: ASTELLAS PHARMA | D37: 31/05/2013 | E37: TRANSPORT | F37: 3167
A38: Dr Christophe Massard, IGR | B38: Médecin | C38: ASTELLAS PHARMA | D38: 31/05/2013 | E38: TRANSPORT | F38: 61
A39: Dr Christophe Massard, IGR | B39: Médecin | C39: ASTELLAS PHARMA | D39: 31/05/2013 | E39: HEBERGEMENT | F39: 229
A40: Dr Christophe Massard, IGR | B40: Médecin | C40: ASTELLAS PHARMA | D40: 31/05/2013 | E40: TRANSPORT | F40: 270
A41: Dr Christophe Massard, IGR | B41: Médecin | C41: ASTELLAS PHARMA | D41: 31/05/2013 | E41: REPAS | F41: 59
A42: Dr Christophe Massard, IGR | B42: Médecin | C42: ASTELLAS PHARMA | D42: 31/05/2013 | E42: TRANSPORT | F42: 92
A43: Dr Christophe Massard, IGR | B43: Médecin | C43: ASTELLAS PHARMA | D43: 31/05/2013 | E43: REPAS | F43: 60
A44: Dr Christophe Massard, IGR | B44: Médecin | C44: ASTELLAS PHARMA | D44: 2013-06-01 | E44: REPAS | F44: 59
A45: Dr Christophe Massard, IGR | B45: Médecin | C45: ASTELLAS PHARMA | D45: 2013-06-01 | E45: HEBERGEMENT | F45: 229
A46: Dr Christophe Massard, IGR | B46: Médecin | C46: ASTELLAS PHARMA | D46: 2013-06-02 | E46: REPAS | F46: 71
A47: Dr Christophe Massard, IGR | B47: Médecin | C47: Lilly France SAS | D47: 2013-06-02 | E47: REPAS | F47: 51
A48: Dr Christophe Massard, IGR | B48: Médecin | C48: ASTELLAS PHARMA | D48: 2013-06-02 | E48: HEBERGEMENT | F48: 229
A49: Dr Christophe Massard, IGR | B49: Médecin | C49: ASTELLAS PHARMA | D49: 2013-06-03 | E49: HEBERGEMENT | F49: 229
A50: Dr Christophe Massard, IGR | B50: Médecin | C50: ASTELLAS PHARMA | D50: 2013-06-04 | E50: HEBERGEMENT | F50: 229
A51: Dr Christophe Massard, IGR | B51: Médecin | C51: JANSSEN-CILAG | D51: 2013-09-07 | E51: HEBERGEMENT | F51: 147
A52: Dr Christophe Massard, IGR | B52: Médecin | C52: JANSSEN-CILAG | D52: 2013-09-07 | E52: REPAS | F52: 42
A53: Dr Christophe Massard, IGR | B53: Médecin | C53: JANSSEN-CILAG | D53: 2013-09-07 | E53: TRANSPORT | F53: 138
A54: Dr Christophe Massard, IGR | B54: Médecin | C54: JANSSEN-CILAG | D54: 2013-10-12 | E54: AUTRE : REMBOURSEMENT DE FRAIS | F54: 120
A55: Dr Christophe Massard, IGR | B55: Médecin | C55: JANSSEN-CILAG | D55: 2013-10-12 | E55: TRANSPORT | F55: 552
A56: Dr Christophe Massard, IGR | B56: Médecin | C56: JANSSEN-CILAG | D56: 2013-10-12 | E56: REPAS | F56: 193
A57: Dr Christophe Massard, IGR | B57: Médecin | C57: JANSSEN-CILAG | D57: 2013-10-12 | E57: INSCRIPTION | F57: 598
A58: Dr Christophe Massard, IGR | B58: Médecin | C58: JANSSEN-CILAG | D58: 15/10/2013 | E58: REPAS | F58: 23
A59: Dr Christophe Massard, IGR | B59: Médecin | C59: JANSSEN-CILAG | D59: 16/10/2013 | E59: REPAS | F59: 54
A60: Dr Christophe Massard, IGR | B60: Médecin | C60: SANOFI AVENTIS FRANCE | D60: 30/10/2013 | E60: Restauration | F60: 20
A61: Dr Christophe Massard, IGR | B61: Médecin | C61: ASTRAZENECA | D61: 20/11/2013 | E61: Repas | F61: 20
A62: Dr Christophe Massard, IGR | B62: Médecin | C62: JANSSEN-CILAG | D62: 28/11/2013 | E62: AUTRE : REMBOURSEMENT DE FRAIS | F62: 50
A63: Dr Christophe Massard, IGR | B63: Médecin | C63: JANSSEN-CILAG | D63: 28/11/2013 | E63: REPAS | F63: 19
A64: Dr Christophe Massard, IGR | B64: Médecin | C64: TEVA SANTE SAS | D64: 13/12/2013 | E64: REPAS | F64: 18
A65: Dr Christophe Massard, IGR | B65: Médecin | C65: CHUGAI PHARMA FRANCE | D65: 13/12/2013 | E65: REPAS | F65: 19
A66: Dr Christophe Massard, IGR | B66: Médecin | C66: JANSSEN-CILAG | D66: 25/01/2014 | E66: AUTRE : REMBOURSEMENT DE FRAIS | F66: 28
A67: Dr Christophe Massard, IGR | B67: Médecin | C67: JANSSEN-CILAG | D67: 25/01/2014 | E67: REPAS | F67: 120
A68: Dr Christophe Massard, IGR | B68: Médecin | C68: AMGEN SAS | D68: 29/01/2014 | E68: REPAS IMPROMPTU | F68: 15
A69: Dr Christophe Massard, IGR | B69: Médecin | C69: Laboratoires Grünenthal SAS | D69: 30/01/2014 | E69: REPAS | F69: 16
A70: Dr Christophe Massard, IGR | B70: Médecin | C70: SANOFI AVENTIS FRANCE | D70: 2014-02-05 | E70: Repas | F70: 54
A71: Dr Christophe Massard, IGR | B71: Médecin | C71: Transgene SA | D71: 18/02/2014 | E71: REPAS | F71: 26
A72: Dr Christophe Massard, IGR | B72: Médecin | C72: JANSSEN-CILAG | D72: 27/02/2014 | E72: REPAS | F72: 23
A73: Dr Christophe Massard, IGR | B73: Médecin | C73: JANSSEN-CILAG | D73: 2014-03-07 | E73: TRANSPORT | F73: 901
A74: Dr Christophe Massard, IGR | B74: Médecin | C74: JANSSEN-CILAG | D74: 2014-03-07 | E74: TRANSPORT | F74: 901
A75: Dr Christophe Massard, IGR | B75: Médecin | C75: JANSSEN-CILAG | D75: 2014-03-07 | E75: HEBERGEMENT | F75: 125
A76: Dr Christophe Massard, IGR | B76: Médecin | C76: JANSSEN-CILAG | D76: 15/03/2014 | E76: REPAS | F76: 67
A77: Dr Christophe Massard, IGR | B77: Médecin | C77: SANOFI AVENTIS FRANCE | D77: 19/03/2014 | E77: Repas | F77: 18
A78: Dr Christophe Massard, IGR | B78: Médecin | C78: ASTELLAS PHARMA | D78: 21/03/2014 | E78: REPAS | F78: 50
A79: Dr Christophe Massard, IGR | B79: Médecin | C79: SANOFI AVENTIS FRANCE | D79: 22/03/2014 | E79: Autre : [Restauration] | F79: 28
A80: Dr Christophe Massard, IGR | B80: Médecin | C80: JANSSEN-CILAG | D80: 28/03/2014 | E80: TRANSPORT | F80: 1067
A81: Dr Christophe Massard, IGR | B81: Médecin | C81: JANSSEN-CILAG | D81: 28/03/2014 | E81: REPAS | F81: 70
A82: Dr Christophe Massard, IGR | B82: Médecin | C82: SANOFI AVENTIS FRANCE | D82: 29/03/2014 | E82: Hébergement | F82: 174
A83: Dr Christophe Massard, IGR | B83: Médecin | C83: SANOFI AVENTIS FRANCE | D83: 29/03/2014 | E83: Autre : [Restauration] | F83: 122
A84: Dr Christophe Massard, IGR | B84: Médecin | C84: SANOFI AVENTIS FRANCE | D84: 29/03/2014 | E84: Autre : [Restauration] | F84: 77
A85: Dr Christophe Massard, IGR | B85: Médecin | C85: SANDOZ | D85: 28/04/2014 | E85: REPAS | F85: 10
A86: Dr Christophe Massard, IGR | B86: Médecin | C86: CHUGAI PHARMA FRANCE | D86: 22/05/2014 | E86: REPAS | F86: 33
A87: Dr Christophe Massard, IGR | B87: Médecin | C87: Orion Corporation Orion Pharma | D87: 30/05/2014 | E87: INSCRIPTION | F87: 596
A88: Dr Christophe Massard, IGR | B88: Médecin | C88: Orion Corporation Orion Pharma | D88: 30/05/2014 | E88: HOSPITALITÉ | F88: 3137
A89: Dr Christophe Massard, IGR | B89: Médecin | C89: Bayer HealthCare SAS | D89: 2014-06-04 | E89: Hospitalité | F89: 21
A90: Dr Christophe Massard, IGR | B90: Médecin | C90: MERCK SERONO | D90: 2014-06-11 | E90: REPAS | F90: 15
A91: Dr Christophe Massard, IGR | B91: Médecin | C91: Bayer HealthCare SAS | D91: 20/06/2014 | E91: Hospitalité | F91: 67
A92: Dr Christophe Massard, IGR | B92: Médecin | C92: LEO Pharma | D92: 20/08/2014 | E92: REPAS | F92: 17
A93: Dr Christophe Massard, IGR | B93: Médecin | C93: MUNDIPHARMA | D93: 27/08/2014 | E93: HOSPITALITE STAFF | F93: 16
A94: Dr Christophe Massard, IGR | B94: Médecin | C94: MSD France | D94: 29/08/2014 | E94: AUTRE : REMUNERATION | F94: 1800
A95: Dr Christophe Massard, IGR | B95: Médecin | C95: PSI CRO AG | D95: 2014-09-03 | E95: Repas | F95: 113
A96: Dr Christophe Massard, IGR | B96: Médecin | C96: Laboratoires Grünenthal SAS | D96: 24/09/2014 | E96: REPAS | F96: 14
A97: Dr Christophe Massard, IGR | B97: Médecin | C97: Lilly France SAS | D97: 26/09/2014 | E97: REPAS | F97: 32
A98: Dr Christophe Massard, IGR | B98: Médecin | C98: Lilly France SAS | D98: 27/09/2014 | E98: TRANSPORT | F98: 5814
A99: Dr Christophe Massard, IGR | B99: Médecin | C99: Lilly France SAS | D99: 27/09/2014 | E99: REPAS | F99: 84
A100: Dr Christophe Massard, IGR | B100: Médecin | C100: Lilly France SAS | D100: 27/09/2014 | E100: HÉBERGEMENT | F100: 248
A101: Dr Christophe Massard, IGR | B101: Médecin | C101: JANSSEN-CILAG | D101: 29/09/2014 | E101: REPAS | F101: 55
A102: Dr Christophe Massard, IGR | B102: Médecin | C102: LEO Pharma | D102: 2014-10-08 | E102: REPAS | F102: 19
A103: Dr Christophe Massard, IGR | B103: Médecin | C103: LABORATOIRE GLAXOSMITHKLINE | D103: 17/10/2014 | E103: REPAS | F103: 20
A104: Dr Christophe Massard, IGR | B104: Médecin | C104: CHUGAI PHARMA FRANCE | D104: 17/12/2014 | E104: REPAS | F104: 19
A105: Dr Christophe Massard, IGR | B105: Médecin | C105: MSD France | D105: 28/01/2015 | E105: AUTRE : REMUNERATION | F105: 1250
A106: Dr Christophe Massard, IGR | B106: Médecin | C106: AMGEN SAS | D106: 2015-02-07 | E106: REPAS REUNION | F106: 28
A107: Dr Christophe Massard, IGR | B107: Médecin | C107: SANOFI AVENTIS FRANCE | D107: 26/02/2015 | E107: Hébergement | F107: 1181
A108: Dr Christophe Massard, IGR | B108: Médecin | C108: SANOFI AVENTIS FRANCE | D108: 26/02/2015 | E108: Repas | F108: 31
A109: Dr Christophe Massard, IGR | B109: Médecin | C109: SANOFI AVENTIS FRANCE | D109: 26/02/2015 | E109: Inscription | F109: 752
A110: Dr Christophe Massard, IGR | B110: Médecin | C110: SANOFI AVENTIS FRANCE | D110: 26/02/2015 | E110: Transport | F110: 4764
A111: Dr Christophe Massard, IGR | B111: Médecin | C111: JANSSEN-CILAG | D111: 18/03/2015 | E111: REPAS | F111: 23
A112: Dr Christophe Massard, IGR | B112: Médecin | C112: MSD France | D112: 2015-04-10 | E112: AUTRE : REMUNERATION | F112: 875
A113: Dr Christophe Massard, IGR | B113: Médecin | C113: Orion Corporation Orion Pharma | D113: 2015-06-10 | E113: Transport | F113: 605
A114: Dr Christophe Massard, IGR | B114: Médecin | C114: Orion Corporation Orion Pharma | D114: 2015-06-10 | E114: Repas | F114: 205
A115: Dr Christophe Massard, IGR | B115: Médecin | C115: Orion Corporation Orion Pharma | D115: 2015-06-10 | E115: Hebergement | F115: 467
A116: Dr Christophe Massard, IGR | B116: Médecin | C116: ASTRAZENECA | D116: 30/06/2015 | E116: Repas | F116: 57
A117: Dr Christophe Massard, IGR | B117: Médecin | C117: Bayer HealthCare SAS | D117: 19/08/2015 | E117: Hospitalité | F117: 26
A118: Dr Christophe Massard, IGR | B118: Médecin | C118: Health Advances | D118: 28/08/2015 | E118: Autre: Phone consult | F118: 309
A119: Dr Christophe Massard, IGR | B119: Médecin | C119: JANSSEN-CILAG | D119: 22/09/2015 | E119: REPAS | F119: 50
A120: Dr Christophe Massard, IGR | B120: Médecin | C120: JANSSEN-CILAG | D120: 22/09/2015 | E120: AUTRE : REMBOURSEMENT DE FRAIS | F120: 72
A121: Dr Christophe Massard, IGR | B121: Médecin | C121: JANSSEN-CILAG | D121: 25/09/2015 | E121: INSCRIPTION | F121: 699
A122: Dr Christophe Massard, IGR | B122: Médecin | C122: JANSSEN-CILAG | D122: 25/09/2015 | E122: RESTAURATION | F122: 10
A123: Dr Christophe Massard, IGR | B123: Médecin | C123: JANSSEN-CILAG | D123: 25/09/2015 | E123: HEBERGEMENT | F123: 374
A124: Dr Christophe Massard, IGR | B124: Médecin | C124: SANOFI AVENTIS FRANCE | D124: 27/09/2015 | E124: Repas | F124: 40
A125: Dr Christophe Massard, IGR | B125: Médecin | C125: JANSSEN-CILAG | D125: 2015-10-06 | E125: REPAS | F125: 25
A126: Dr Christophe Massard, IGR | B126: Médecin | C126: SANOFI AVENTIS FRANCE | D126: 2015-10-07 | E126: Repas | F126: 60
A127: Dr Christophe Massard, IGR | B127: Médecin | C127: Lilly France SAS | D127: 2015-11-06 | E127: REPAS | F127: 128
A128: Dr Christophe Massard, IGR | B128: Médecin | C128: Lilly France SAS | D128: 2016-01-11 | E128: REPAS | F128: 36
A129: Dr Christophe Massard, IGR | B129: Médecin | C129: JANSSEN-CILAG | D129: 19/01/2016 | E129: REPAS | F129: 25
A130: Dr Christophe Massard, IGR | B130: Médecin | C130: AMGEN SAS | D130: 17/02/2016 | E130: REPAS IMPROMPTU | F130: 24
A131: Dr Christophe Massard, IGR | B131: Médecin | C131: Incyte Corporation | D131: 21/03/2016 | E131: REPAS | F131: 50
A132: Dr Christophe Massard, IGR | B132: Médecin | C132: Lilly France SAS | D132: 2016-04-07 | E132: TRANSPORT | F132: 4865
A133: Dr Christophe Massard, IGR | B133: Médecin | C133: Lilly France SAS | D133: 23/05/2016 | E133: AUTRE : [REMBOURSEMENT FRAIS LOGISTIQUE] | F133: 142
A134: Dr Christophe Massard, IGR | B134: Médecin | C134: SANOFI AVENTIS FRANCE | D134: 23/05/2016 | E134: Repas | F134: 60
A135: Dr Christophe Massard, IGR | B135: Médecin | C135: NOVARTIS PHARMA SAS | D135: 2016-06-09 | E135: AUTRE : [PARTICIPATION EVENEMENT SCIENTIFIQUE] | F135: 17
A136: Dr Christophe Massard, IGR | B136: Médecin | C136: JANSSEN-CILAG | D136: 28/06/2016 | E136: TRANSPORT | F136: 60
A137: Dr Christophe Massard, IGR | B137: Médecin | C137: JANSSEN-CILAG | D137: 28/06/2016 | E137: HEBERGEMENT | F137: 130
A138: Dr Christophe Massard, IGR | B138: Médecin | C138: Bayer HealthCare SAS | D138: 24/08/2016 | E138: Repas | F138: 21
A139: Dr Christophe Massard, IGR | B139: Médecin | C139: JANSSEN-CILAG | D139: 2016-09-06 | E139: REPAS | F139: 22
A140: Dr Christophe Massard, IGR | B140: Médecin | C140: JANSSEN-CILAG | D140: 15/09/2016 | E140: REPAS | F140: 48
A141: Dr Christophe Massard, IGR | B141: Médecin | C141: JANSSEN-CILAG | D141: 15/09/2016 | E141: HEBERGEMENT | F141: 117
A142: Dr Christophe Massard, IGR | B142: Médecin | C142: JANSSEN-CILAG | D142: 15/09/2016 | E142: TRANSPORT | F142: 289
A143: Dr Christophe Massard, IGR | B143: Médecin | C143: JANSSEN-CILAG | D143: 14/10/2016 | E143: REPAS | F143: 33
A144: Dr Christophe Massard, IGR | B144: Médecin | C144: JANSSEN-CILAG | D144: 14/10/2016 | E144: AUTRE : REMBOURSEMENT DE FRAIS | F144: 75
A145: Dr Christophe Massard, IGR | B145: Médecin | C145: JANSSEN-CILAG | D145: 14/10/2016 | E145: TRANSPORT | F145: 192
A146: Dr Christophe Massard, IGR | B146: Médecin | C146: JANSSEN-CILAG | D146: 14/10/2016 | E146: HEBERGEMENT | F146: 122
A147: Dr Christophe Massard, IGR | B147: Médecin | C147: JANSSEN-CILAG | D147: 14/10/2016 | E147: REPAS | F147: 43
A148: Dr Christophe Massard, IGR | B148: Médecin | C148: SANOFI AVENTIS FRANCE | D148: 16/11/2016 | E148: Transport | F148: 150
A149: Dr Christophe Massard, IGR | B149: Médecin | C149: SANOFI AVENTIS FRANCE | D149: 16/11/2016 | E149: Inscription | F149: 560
A150: Dr Christophe Massard, IGR | B150: Médecin | C150: JANSSEN-CILAG | D150: 2016-12-08 | E150: REPAS | F150: 60
A151: Dr Christophe Massard, IGR | B151: Médecin | C151: JANSSEN-CILAG | D151: 2016-12-08 | E151: AUTRE : REMBOURSEMENT DE FRAIS | F151: 15
A152: Dr Christophe Massard, IGR | B152: Médecin | C152: AMGEN SAS | D152: 2017-02-03 | E152: REPAS | F152: 10
A153: Dr Christophe Massard, IGR | B153: Médecin | C153: ASTRAZENECA | D153: 2017-02-08 | E153: Hospitalité | F153: 89
A154: Dr Christophe Massard, IGR | B154: Médecin | C154: NOVARTIS PHARMA SAS | D154: 2017-02-08 | E154: Participation Evenement Scientifique | F154: 12
A155: Dr Christophe Massard, IGR | B155: Médecin | C155: ASTRAZENECA | D155: 2017-02-08 | E155: Transport | F155: 662
A156: Dr Christophe Massard, IGR | B156: Médecin | C156: ASTRAZENECA | D156: 2017-02-09 | E156: Hospitalité | F156: 89
A157: Dr Christophe Massard, IGR | B157: Médecin | C157: ASTRAZENECA | D157: 2017-02-09 | E157: Repas | F157: 60
A158: Dr Christophe Massard, IGR | B158: Médecin | C158: ASTRAZENECA | D158: 2017-02-09 | E158: Hébergement | F158: 122
A159: Dr Christophe Massard, IGR | B159: Médecin | C159: JANSSEN-CILAG | D159: 23/02/2017 | E159: REPAS | F159: 10
A160: Dr Christophe Massard, IGR | B160: Médecin | C160: JANSSEN-CILAG | D160: 28/02/2017 | E160: REPAS | F160: 25
A161: Dr Christophe Massard, IGR | B161: Médecin | C161: ASTRAZENECA | D161: 2017-04-01 | E161: Hébergement | F161: 275
A162: Dr Christophe Massard, IGR | B162: Médecin | C162: ASTRAZENECA | D162: 2017-04-01 | E162: Inscription | F162: 1141
A163: Dr Christophe Massard, IGR | B163: Médecin | C163: ASTRAZENECA | D163: 2017-04-01 | E163: Transport | F163: 8111
A164: Dr Christophe Massard, IGR | B164: Médecin | C164: ASTRAZENECA | D164: 2017-04-02 | E164: Hébergement | F164: 275
A165: Dr Christophe Massard, IGR | B165: Médecin | C165: ASTRAZENECA | D165: 2017-04-02 | E165: Repas | F165: 57
A166: Dr Christophe Massard, IGR | B166: Médecin | C166: ASTRAZENECA | D166: 2017-04-03 | E166: Hébergement | F166: 275
A167: Dr Christophe Massard, IGR | B167: Médecin | C167: ASTRAZENECA | D167: 2017-04-04 | E167: Repas | F167: 57
A168: Dr Christophe Massard, IGR | B168: Médecin | C168: ASTRAZENECA | D168: 2017-04-04 | E168: Hébergement | F168: 275
A169: Dr Christophe Massard, IGR | B169: Médecin | C169: ASTRAZENECA | D169: 2017-04-06 | E169: transport | F169: 114
A170: Dr Christophe Massard, IGR | B170: Médecin | C170: ASTRAZENECA | D170: 19/04/2017 | E170: Repas | F170: 25
A171: Dr Christophe Massard, IGR | B171: Médecin | C171: ASTRAZENECA | D171: 27/04/2017 | E171: Repas | F171: 57
A172: Dr Christophe Massard, IGR | B172: Médecin | C172: JANSSEN-CILAG | D172: 31/05/2017 | E172: AUTRE : REMBOURSEMENT DE FRAIS | F172: 82
A173: Dr Christophe Massard, IGR | B173: Médecin | C173: JANSSEN-CILAG | D173: 2017-06-06 | E173: AUTRE : REMBOURSEMENT DE FRAIS | F173: 120
A174: Dr Christophe Massard, IGR | B174: Médecin | C174: Medicys Limited | D174: 31/08/2017 | E174: Autre : Indemnite | F174: 180
A175: Dr Christophe Massard, IGR | B175: Médecin | C175: JANSSEN-CILAG | D175: 2017-09-08 | E175: INSCRIPTION | F175: 740
A176: Dr Christophe Massard, IGR | B176: Médecin | C176: JANSSEN-CILAG | D176: 2017-09-08 | E176: TRANSPORT | F176: 25
A177: Dr Christophe Massard, IGR | B177: Médecin | C177: JANSSEN-CILAG | D177: 2017-09-08 | E177: TRANSPORT | F177: 695
A178: Dr Christophe Massard, IGR | B178: Médecin | C178: JANSSEN-CILAG | D178: 2017-09-08 | E178: HEBERGEMENT | F178: 330
A179: Dr Christophe Massard, IGR | B179: Médecin | C179: INVENTIVA | D179: 14/09/2017 | E179: TRANSPORT | F179: 88
A180: Dr Christophe Massard, IGR | B180: Médecin | C180: BRISTOL-MYERS SQUIBB COMPANY | D180: 2017-11-08 | E180: Dîner | F180: 57
A181: Dr Christophe Massard, IGR | B181: Médecin | C181: AMGEN SAS | D181: 20/11/2017 | E181: REPAS | F181: 60
A182: Dr Christophe Massard, IGR | B182: Médecin | C182: JANSSEN-CILAG | D182: 28/11/2017 | E182: REPAS | F182: 49
A183: Dr Christophe Massard, IGR | B183: Médecin | C183: Lilly France SAS | D183: 2017-12-01 | E183: TRANSPORT | F183: 4961
A184: Dr Christophe Massard, IGR | B184: Médecin | C184: JANSSEN-CILAG | D184: 2017-12-07 | E184: REPAS | F184: 60
A185: Dr Aurélien Marabelle, IGR | B185: Médecin | C185: Bayer HealthCare SAS | D185: 31/03/2014 | E185: Hospitalité | F185: 84
A186: Dr Aurélien Marabelle, IGR | B186: Médecin | C186: BRISTOL-MYERS SQUIBB | D186: 22/01/2015 | E186: Hébergement | F186: 548
A187: Dr Aurélien Marabelle, IGR | B187: Médecin | C187: BRISTOL-MYERS SQUIBB | D187: 22/01/2015 | E187: Repas | F187: 245
A188: Dr Aurélien Marabelle, IGR | B188: Médecin | C188: BRISTOL-MYERS SQUIBB | D188: 22/01/2015 | E188: Transport | F188: 3516
A189: Dr Aurélien Marabelle, IGR | B189: Médecin | C189: SANOFI AVENTIS FRANCE | D189: 21/03/2015 | E189: Autre : [Restauration] | F189: 27
A190: Dr Aurélien Marabelle, IGR | B190: Médecin | C190: BRISTOL-MYERS SQUIBB | D190: 19/06/2015 | E190: Autre : [Rémunération] | F190: 2000
A191: Dr Aurélien Marabelle, IGR | B191: Médecin | C191: Transgene SA | D191: 2015-09-05 | E191: REPAS | F191: 49
A192: Dr Aurélien Marabelle, IGR | B192: Médecin | C192: AMGEN SAS | D192: 24/09/2015 | E192: HEBERGEMENT | F192: 249
A193: Dr Aurélien Marabelle, IGR | B193: Médecin | C193: AMGEN SAS | D193: 24/09/2015 | E193: REPAS REUNION | F193: 38
A194: Dr Aurélien Marabelle, IGR | B194: Médecin | C194: AMGEN SAS | D194: 25/09/2015 | E194: HEBERGEMENT | F194: 249
A195: Dr Aurélien Marabelle, IGR | B195: Médecin | C195: AMGEN SAS | D195: 25/09/2015 | E195: TRANSPORT | F195: 933
A196: Dr Aurélien Marabelle, IGR | B196: Médecin | C196: AMGEN SAS | D196: 25/09/2015 | E196: TRANSPORT | F196: 232
A197: Dr Aurélien Marabelle, IGR | B197: Médecin | C197: AMGEN SAS | D197: 25/09/2015 | E197: REPAS REUNION | F197: 27
A198: Dr Aurélien Marabelle, IGR | B198: Médecin | C198: AMGEN SAS | D198: 26/09/2015 | E198: HEBERGEMENT | F198: 249
A199: Dr Aurélien Marabelle, IGR | B199: Médecin | C199: AMGEN SAS | D199: 26/09/2015 | E199: REPAS REUNION | F199: 26
A200: Dr Aurélien Marabelle, IGR | B200: Médecin | C200: AMGEN SAS | D200: 27/09/2015 | E200: REPAS REUNION | F200: 26
... 1057 more rows

Sheet Conventions signées
A1: Bénéficiaire | B1: Type de bénéficiaire | C1: Entreprise | D1: Date | E1: Période | F1: Objet | G1: Montants | H1: Lieux
A2: Pr Gilles Vassal, IGR | B2: Médecin | C2: ROCHE SAS | D2: 30/05/2013 | E2: 30/05/2013 - 07/06/2013 | F2: Autre : Congrès / Symposium
A3: Pr Gilles Vassal, IGR | B3: Médecin | C3: ROCHE SAS | D3: 31/05/2013 | E3: 31/05/2013 - 04/06/2013 | F3: Autre : Congres / Symposium | H3: CHICAGO
A4: Pr Gilles Vassal, IGR | B4: Médecin | C4: BRISTOL-MYERS SQUIBB | D4: 26/11/2014 | E4: 20/11/2014 - | F4: Autre : Autre : [Consultant (HCP)]
A5: Pr Gilles Vassal, IGR | B5: Médecin | C5: Lilly France SAS | D5: 28/05/2015 | E5: 28/05/2015 - 28/05/2015 | F5: Autre : AUTRE : [CONTRAT D'ORATEUR] | H5: CHICAGO
A6: Pr Gilles Vassal, IGR | B6: Médecin | C6: ROCHE SAS | D6: 29/05/2015 | E6: 29/05/2015 - 02/06/2015 | F6: Autre : Congres / Symposium | H6: CHICAGO
A7: Pr Gilles Vassal, IGR | B7: Médecin | C7: ROCHE SAS | D7: 03/06/2016 | E7: 03/06/2016 - 07/06/2016 | F7: Autre : Congres / Symposium | H7: CHICAGO
A8: Pr Gilles Vassal, IGR | B8: Médecin | C8: Lilly France SAS | D8: 05/07/2016 | E8: 05/07/2016 - 22/05/2018 | F8: Contrat d'expert scientifique, contrat dans le cadre d'une recherche, contrat de consultant | G8: 15638
A9: Pr Gilles Vassal, IGR | B9: Médecin | C9: Lilly France SAS | D9: 24/09/2016 | E9: 24/09/2016 - 24/09/2016 | F9: Autre : CONSEIL | H9: NEW YORK
A10: Pr Gilles Vassal, IGR | B10: Médecin | C10: BRISTOL-MYERS SQUIBB | D10: 29/11/2016 | E10: 29/11/2016 - | F10: Autre : Autre : [Orateur]
A11: Pr Gilles Vassal, IGR | B11: Médecin | C11: Sociétés étrangères du groupe Novartis | D11: 01/01/2017 | E11: 01/01/2017 - 31/12/2017 | F11: Autres prestations de services | G11: 1599
A12: Pr Gilles Vassal, IGR | B12: Médecin | C12: ASTRAZENECA | D12: 19/04/2017 | E12: 19/04/2017 - | F12: Hospitalité | G12: 25
A13: Pr Gilles Vassal, IGR | B13: Médecin | C13: Lilly France SAS | D13: 28/04/2017 | E13: 05/05/2017 - 05/05/2017 | F13: Contrat d'intervenant à une manifestation / orateur | G13: 1380
A14: Dr Christophe Massard, IGR | B14: Médecin | C14: JANSSEN-CILAG | D14: 22/02/2013 | E14: 28/03/2013 - 28/03/2013 | F14: Autre : CONGRES / SYMPOSIUM | H14: ROUEN
A15: Dr Christophe Massard, IGR | B15: Médecin | C15: PFIZER SAS | D15: 13/03/2013 | E15: 13/03/2013 - | F15: Autre : ORATEUR RP/CONGRES/SYMPOSIUM
A16: Dr Christophe Massard, IGR | B16: Médecin | C16: JANSSEN-CILAG | D16: 18/03/2013 | E16: 20/04/2013 - 20/04/2013 | F16: Autre : CONGRES / SYMPOSIUM | H16: PARIS
A17: Dr Christophe Massard, IGR | B17: Médecin | C17: ASTELLAS PHARMA | D17: 31/05/2013 | E17: 31/05/2013 - 04/06/2013 | F17: Autre : CONGRES / SYMPOSIUM | H17: CHICAGO
A18: Dr Christophe Massard, IGR | B18: Médecin | C18: Bayer HealthCare SAS | D18: 11/06/2013 | E18: 11/06/2013 - 11/06/2013 | F18: Autre : CONGRES / SYMPOSIUM | H18: LOOS
A19: Dr Christophe Massard, IGR | B19: Médecin | C19: JANSSEN-CILAG | D19: 02/09/2013 | E19: 06/09/2013 - 07/09/2013 | F19: Autre : CONGRES / SYMPOSIUM | H19: LA ROCHELLE
A20: Dr Christophe Massard, IGR | B20: Médecin | C20: JANSSEN-CILAG | D20: 10/10/2013 | E20: 10/10/2013 - 12/10/2013 | F20: Autre : CONGRES / SYMPOSIUM | H20: NICE
A21: Dr Christophe Massard, IGR | B21: Médecin | C21: JANSSEN-CILAG | D21: 20/11/2013 | E21: 28/11/2013 - 28/11/2013 | F21: Autre : CONSEIL
A22: Dr Christophe Massard, IGR | B22: Médecin | C22: Orion Corporation Orion Pharma | D22: 20/11/2013 | E22: 20/11/2013 - | F22: Autre : CONSEIL ET COMMUNICATION MEDICO-SCIENTIFIQUE
A23: Dr Christophe Massard, IGR | B23: Médecin | C23: JANSSEN-CILAG | D23: 20/11/2013 | E23: 28/11/2013 - 28/11/2013 | F23: Autre : CONGRES / SYMPOSIUM | H23: ST-PRIEST EN JAREZ
A24: Dr Christophe Massard, IGR | B24: Médecin | C24: PRA | D24: 19/12/2013 | E24: 19/12/2013 - | F24: Recherche scientifique
A25: Dr Christophe Massard, IGR | B25: Médecin | C25: JANSSEN-CILAG | D25: 17/01/2014 | E25: 24/01/2014 - 31/12/2014 | F25: Autre : CONGRES / SYMPOSIUM
A26: Dr Christophe Massard, IGR | B26: Médecin | C26: Laboratoires Grünenthal SAS | D26: 30/01/2014 | E26: 30/01/2014 - | F26: Autre : REUNION SCIENTIFIQUE
A27: Dr Christophe Massard, IGR | B27: Médecin | C27: SANOFI AVENTIS FRANCE | D27: 05/02/2014 | E27: 05/02/2014 - 05/02/2014 | F27: Hospitalité | H27: PARIS
A28: Dr Christophe Massard, IGR | B28: Médecin | C28: SANOFI AVENTIS FRANCE | D28: 05/02/2014 | E28: 05/02/2014 - 05/02/2014 | F28: Autre : Autre : [Communication scientifique]
A29: Dr Christophe Massard, IGR | B29: Médecin | C29: Transgene SA | D29: 03/03/2014 | E29: 28/02/2014 - | F29: Autre : CONSEIL
A30: Dr Christophe Massard, IGR | B30: Médecin | C30: JANSSEN-CILAG | D30: 03/03/2014 | E30: 28/03/2014 - 29/03/2014 | F30: Autre : CONGRES / SYMPOSIUM | H30: CLERMONT-FERRAND
A31: Dr Christophe Massard, IGR | B31: Médecin | C31: JANSSEN-CILAG | D31: 15/03/2014 | E31: 15/03/2014 - 15/03/2014 | F31: Autre : CONGRES / SYMPOSIUM | H31: PARIS
A32: Dr Christophe Massard, IGR | B32: Médecin | C32: ASTELLAS PHARMA | D32: 21/03/2014 | E32: 21/03/2014 - 21/03/2014 | F32: Recherche scientifique | H32: PARIS
A33: Dr Christophe Massard, IGR | B33: Médecin | C33: ASTELLAS PHARMA | D33: 21/03/2014 | E33: 21/03/2014 - | F33: Autre : CONSEIL
A34: Dr Christophe Massard, IGR | B34: Médecin | C34: SANOFI AVENTIS FRANCE | D34: 22/03/2014 | E34: 22/03/2014 - 22/03/2014 | F34: Formation | H34: CLAMART
A35: Dr Christophe Massard, IGR | B35: Médecin | C35: NOVARTIS PHARMA SAS | D35: 28/03/2014 | E35: 28/03/2014 - 29/03/2014 | F35: Autre : Autre : [Orateur]
A36: Dr Christophe Massard, IGR | B36: Médecin | C36: SANOFI AVENTIS FRANCE | D36: 28/03/2014 | E36: 28/03/2014 - 29/03/2014 | F36: Hospitalité | H36: DINARD
A37: Dr Christophe Massard, IGR | B37: Médecin | C37: SANOFI AVENTIS FRANCE | D37: 28/03/2014 | E37: 28/03/2014 - 29/03/2014 | F37: Autre : Autre : [Opération SA/Journée-Soirée] | H37: DINARD
A38: Dr Christophe Massard, IGR | B38: Médecin | C38: JANSSEN-CILAG | D38: 09/04/2014 | E38: 07/03/2014 - 08/03/2014 | F38: Autre : CONGRES / SYMPOSIUM | H38: BORDEAUX
A39: Dr Christophe Massard, IGR | B39: Médecin | C39: MSD France | D39: 22/04/2014 | E39: 23/05/2014 - 30/06/2014 | F39: Autre : EXPERT | H39: CHICAGO
A40: Dr Christophe Massard, IGR | B40: Médecin | C40: Bayer HealthCare SAS | D40: 12/05/2014 | E40: 20/06/2014 - 21/06/2014 | F40: Autre : Contrat de conseil scientifique | H40: PARIS
A41: Dr Christophe Massard, IGR | B41: Médecin | C41: Bayer HealthCare SAS | D41: 20/06/2014 | E41: 20/06/2014 - 21/06/2014 | F41: Autre : CONGRES / SYMPOSIUM
A42: Dr Christophe Massard, IGR | B42: Médecin | C42: MSD France | D42: 22/07/2014 | E42: 03/09/2014 - 31/12/2014 | F42: Autre : EXPERT | H42: PARIS
A43: Dr Christophe Massard, IGR | B43: Médecin | C43: NOVARTIS PHARMA SAS | D43: 29/08/2014 | E43: 29/08/2014 - 17/09/2014 | F43: Autre : Autre : [Contrat de conseil & prestation]
A44: Dr Christophe Massard, IGR | B44: Médecin | C44: PSI CRO AG | D44: 10/09/2014 | E44: 03/09/2014 - 03/09/2014 | F44: Autre : Autre | H44: PARIS
A45: Dr Christophe Massard, IGR | B45: Médecin | C45: Laboratoires Grünenthal SAS | D45: 24/09/2014 | E45: 24/09/2014 - | F45: Autre : REUNION SCIENTIFIQUE
A46: Dr Christophe Massard, IGR | B46: Médecin | C46: Lilly France SAS | D46: 27/09/2014 | E46: 27/09/2014 - 27/09/2014 | F46: Autre : AUTRE : [CONTRAT D'ORATEUR] | H46: CHARENTON LE PONT
A47: Dr Christophe Massard, IGR | B47: Médecin | C47: MSD France | D47: 24/10/2014 | E47: 01/12/2014 - 31/12/2014 | F47: Autre : EXPERT
A48: Dr Christophe Massard, IGR | B48: Médecin | C48: ROCHE SAS | D48: 05/11/2014 | E48: 09/01/2015 - 10/01/2015 | F48: Autre : Autre : [ Orateur / Intervenant ] | H48: PARIS
A49: Dr Christophe Massard, IGR | B49: Médecin | C49: IPSEN PHARMA | D49: 27/11/2014 | E49: 05/12/2014 - 06/12/2014 | F49: Autre : CONSEIL
A50: Dr Christophe Massard, IGR | B50: Médecin | C50: ROCHE SAS | D50: 12/12/2014 | E50: 12/12/2014 - 12/12/2014 | F50: Autre : Autre : [ Reunion professionnelle ] | H50: PARIS
A51: Dr Christophe Massard, IGR | B51: Médecin | C51: ROCHE SAS | D51: 09/01/2015 | E51: 09/01/2015 - 10/01/2015 | F51: Autre : Congres / Symposium | H51: PARIS
A52: Dr Christophe Massard, IGR | B52: Médecin | C52: AMGEN SAS | D52: 03/02/2015 | E52: 06/02/2015 - 07/02/2015 | F52: Autre : AUTRE [CONVENTION D HOSPITALITE] | H52: PARIS
A53: Dr Christophe Massard, IGR | B53: Médecin | C53: SANOFI AVENTIS FRANCE | D53: 26/02/2015 | E53: 26/02/2015 - 28/02/2015 | F53: Inscription congrès | H53: ORLANDO
A54: Dr Christophe Massard, IGR | B54: Médecin | C54: SANOFI AVENTIS FRANCE | D54: 15/03/2015 | E54: 15/03/2015 - 31/12/2015 | F54: Autre : Autre : [Communication scientifique]
A55: Dr Christophe Massard, IGR | B55: Médecin | C55: SANOFI AVENTIS FRANCE | D55: 27/03/2015 | E55: 27/03/2015 - 31/12/2015 | F55: Autre : Autre : [Communication scientifique]
A56: Dr Christophe Massard, IGR | B56: Médecin | C56: JANSSEN-CILAG | D56: 28/03/2015 | E56: 28/03/2015 - 28/03/2015 | F56: Autre : CONGRES / SYMPOSIUM | H56: PARIS
A57: Dr Christophe Massard, IGR | B57: Médecin | C57: PRA | D57: 14/04/2015 | E57: 14/04/2015 - | F57: Recherche scientifique
A58: Dr Christophe Massard, IGR | B58: Médecin | C58: Bayer HealthCare SAS | D58: 27/04/2015 | E58: 05/06/2015 - 06/06/2015 | F58: Autre : Contrat de conseil scientifique | H58: JUAN LES PINS
A59: Dr Christophe Massard, IGR | B59: Médecin | C59: SANOFI AVENTIS FRANCE | D59: 23/05/2015 | E59: 26/02/2015 - 28/02/2015 | F59: Contrat d'intervenant à une manifestation / orateur
A60: Dr Christophe Massard, IGR | B60: Médecin | C60: JANSSEN-CILAG | D60: 09/06/2015 | E60: 09/06/2015 - 09/06/2015 | F60: Autre : CONGRES / SYMPOSIUM | H60: PARIS
A61: Dr Christophe Massard, IGR | B61: Médecin | C61: SANOFI AVENTIS FRANCE | D61: 19/06/2015 | E61: 19/06/2015 - 20/06/2015 | F61: Hospitalité | H61: REIMS
A62: Dr Christophe Massard, IGR | B62: Médecin | C62: SANOFI AVENTIS FRANCE | D62: 23/06/2015 | E62: 23/06/2015 - 31/12/2015 | F62: Autre : Autre : [Communication scientifique]
A63: Dr Christophe Massard, IGR | B63: Médecin | C63: ASTRAZENECA | D63: 30/06/2015 | E63: 30/06/2015 - | F63: Formation
A64: Dr Christophe Massard, IGR | B64: Médecin | C64: JANSSEN-CILAG | D64: 03/08/2015 | E64: 22/09/2015 - 22/09/2015 | F64: Autre : CONGRES / SYMPOSIUM | H64: LYON
A65: Dr Christophe Massard, IGR | B65: Médecin | C65: Health Advances | D65: 13/08/2015 | E65: 13/08/2015 - | F65: Autre : Autre: Phone consult
A66: Dr Christophe Massard, IGR | B66: Médecin | C66: JANSSEN-CILAG | D66: 25/09/2015 | E66: 25/09/2015 - 29/09/2015 | F66: Autre : CONGRES/SYMPOSIUM | H66: VIENNE
A67: Dr Christophe Massard, IGR | B67: Médecin | C67: SANOFI AVENTIS FRANCE | D67: 30/09/2015 | E67: 19/06/2015 - 20/06/2015 | F67: Autre : Autre : [Communication scientifique]
A68: Dr Christophe Massard, IGR | B68: Médecin | C68: SANOFI AVENTIS FRANCE | D68: 09/10/2015 | E68: 15/03/2015 - 31/12/2015 | F68: Autre : Autre : [Communication scientifique]
A69: Dr Christophe Massard, IGR | B69: Médecin | C69: JANSSEN-CILAG | D69: 14/10/2015 | E69: 14/10/2015 - 14/10/2015 | F69: Autre : CONGRES / SYMPOSIUM | H69: MELUN
A70: Dr Christophe Massard, IGR | B70: Médecin | C70: JANSSEN-CILAG | D70: 26/10/2015 | E70: 14/10/2015 - 14/10/2015 | F70: Autre : CONGRES / SYMPOSIUM | H70: MELUN
A71: Dr Christophe Massard, IGR | B71: Médecin | C71: Lilly France SAS | D71: 06/11/2015 | E71: 06/11/2015 - 06/11/2015 | F71: Autre : AUTRE : [CONTRAT D'ORATEUR]
A72: Dr Christophe Massard, IGR | B72: Médecin | C72: PSI CRO FRANCE | D72: 22/12/2015 | E72: 16/01/2015 - 16/01/2015 | F72: Autre : 3116001; site 101;
A73: Dr Christophe Massard, IGR | B73: Médecin | C73: Lilly France SAS | D73: 02/04/2016 | E73: 02/04/2016 - 02/04/2016 | F73: Contrat d'expert scientifique, contrat dans le cadre d'une recherche, contrat de consultant | G73: 1298 | H73: NEW YORK
A74: Dr Christophe Massard, IGR | B74: Médecin | C74: SANOFI AVENTIS FRANCE | D74: 23/05/2016 | E74: 15/03/2016 - 31/12/2016 | F74: Autre : Autre : [Communication scientifique]
A75: Dr Christophe Massard, IGR | B75: Médecin | C75: PRA | D75: 15/06/2016 | E75: 15/06/2016 - | F75: Recherche scientifique
A76: Dr Christophe Massard, IGR | B76: Médecin | C76: JANSSEN-CILAG | D76: 28/06/2016 | E76: 28/06/2016 - 29/06/2016 | F76: Contrat d'intervenant à une manifestation / orateur | G76: 600 | H76: ROUEN
A77: Dr Christophe Massard, IGR | B77: Médecin | C77: JANSSEN-CILAG | D77: 28/06/2016 | E77: 28/06/2016 - 28/06/2016 | F77: Autre : CONGRES / SYMPOSIUM | H77: ROUEN
A78: Dr Christophe Massard, IGR | B78: Médecin | C78: JANSSEN-CILAG | D78: 28/06/2016 | E78: 28/06/2016 - 28/06/2016 | F78: Autre : CONGRES/SYMPOSIUM | H78: ROUEN
A79: Dr Christophe Massard, IGR | B79: Médecin | C79: JANSSEN-CILAG | D79: 28/06/2016 | E79: 28/06/2016 - 28/06/2016 | F79: Autre : CONGRES/SYMPOSIUM | H79: ROUEN
A80: Dr Christophe Massard, IGR | B80: Médecin | C80: SANOFI AVENTIS FRANCE | D80: 03/08/2016 | E80: 18/11/2016 - 31/12/2016 | F80: Contrat d'intervenant à une manifestation / orateur
A81: Dr Christophe Massard, IGR | B81: Médecin | C81: PRA | D81: 31/08/2016 | E81: 31/08/2016 - | F81: Recherche scientifique
A82: Dr Christophe Massard, IGR | B82: Médecin | C82: JANSSEN-CILAG | D82: 15/09/2016 | E82: 15/09/2016 - 16/09/2016 | F82: Contrat d'intervenant à une manifestation / orateur | G82: 600 | H82: VALENCE
A83: Dr Christophe Massard, IGR | B83: Médecin | C83: JANSSEN-CILAG | D83: 14/10/2016 | E83: 14/10/2016 - 14/10/2016 | F83: Autre : CONGRES/SYMPOSIUM | H83: BEAUNE
A84: Dr Christophe Massard, IGR | B84: Médecin | C84: JANSSEN-CILAG | D84: 14/10/2016 | E84: 14/10/2016 - 15/10/2016 | F84: Contrat d'intervenant à une manifestation / orateur | G84: 700 | H84: BEAUNE
A85: Dr Christophe Massard, IGR | B85: Médecin | C85: SANOFI AVENTIS FRANCE | D85: 16/11/2016 | E85: 16/11/2016 - 19/11/2016 | F85: Inscription congrès | H85: PARIS
A86: Dr Christophe Massard, IGR | B86: Médecin | C86: JANSSEN-CILAG | D86: 08/12/2016 | E86: 08/12/2016 - 08/12/2016 | F86: Autre : CONGRES/SYMPOSIUM | H86: ROUEN
A87: Dr Christophe Massard, IGR | B87: Médecin | C87: AMGEN SAS | D87: 20/12/2016 | E87: 03/02/2017 - 04/02/2017 | F87: Hospitalité | H87: PARIS
A88: Dr Christophe Massard, IGR | B88: Médecin | C88: AMGEN SAS | D88: 03/02/2017 | E88: 31/01/2017 - 05/02/2017 | F88: Contrat d'intervenant à une manifestation / orateur | H88: PARIS
A89: Dr Christophe Massard, IGR | B89: Médecin | C89: ASTRAZENECA | D89: 08/02/2017 | E89: 09/02/2017 - | F89: Contrat d'intervenant à une manifestation / orateur | G89: 852
A90: Dr Christophe Massard, IGR | B90: Médecin | C90: ASTRAZENECA | D90: 09/02/2017 | E90: 09/02/2017 - | F90: Hospitalité | G90: 1022
A91: Dr Christophe Massard, IGR | B91: Médecin | C91: JANSSEN-CILAG | D91: 10/02/2017 | E91: 20/03/2017 - 20/03/2017 | F91: Formation | H91: PARIS
A92: Dr Christophe Massard, IGR | B92: Médecin | C92: JANSSEN-CILAG | D92: 02/03/2017 | E92: 24/04/2017 - 24/04/2017 | F92: Contrat d'intervenant à une manifestation / orateur | H92: PARIS
A93: Dr Christophe Massard, IGR | B93: Médecin | C93: JANSSEN-CILAG | D93: 02/03/2017 | E93: 27/03/2017 - 27/03/2017 | F93: Contrat d'intervenant à une manifestation / orateur | H93: PARIS
A94: Dr Christophe Massard, IGR | B94: Médecin | C94: ASTRAZENECA | D94: 08/03/2017 | E94: 09/02/2017 - | F94: Contrat d'intervenant à une manifestation / orateur | G94: 774
A95: Dr Christophe Massard, IGR | B95: Médecin | C95: SANOFI-AVENTIS RECHERCHE & DEVELOPPEMENT | D95: 26/03/2017 | E95: 26/03/2017 - 26/03/2018 | F95: Recherche scientifique
A96: Dr Christophe Massard, IGR | B96: Médecin | C96: ASTRAZENECA | D96: 01/04/2017 | E96: 01/04/2017 - | F96: Hospitalité | G96: 10466
A97: Dr Christophe Massard, IGR | B97: Médecin | C97: ASTRAZENECA | D97: 10/04/2017 | E97: 27/04/2017 - | F97: Contrat d'intervenant à une manifestation / orateur | G97: 929
A98: Dr Christophe Massard, IGR | B98: Médecin | C98: JANSSEN-CILAG | D98: 12/04/2017 | E98: 21/04/2017 - 22/04/2017 | F98: Contrat d'intervenant à une manifestation / orateur | H98: TOULOUSE
A99: Dr Christophe Massard, IGR | B99: Médecin | C99: ASTRAZENECA | D99: 19/04/2017 | E99: 19/04/2017 - | F99: Hospitalité | G99: 25
A100: Dr Christophe Massard, IGR | B100: Médecin | C100: JANSSEN-CILAG | D100: 29/05/2017 | E100: 29/05/2017 - 22/12/2017 | F100: Autre : CONGRES/ SYMPOSIUM | H100: ISSY-LES-MOULINEAUX
A101: Dr Christophe Massard, IGR | B101: Médecin | C101: INVENTIVA | D101: 12/06/2017 | E101: 01/06/2017 - 31/12/2018 | F101: Contrat d'expert scientifique, contrat dans le cadre d'une recherche, contrat de consultant
A102: Dr Christophe Massard, IGR | B102: Médecin | C102: ASTRAZENECA | D102: 14/06/2017 | E102: 23/06/2017 - | F102: Contrat d'expert scientifique, contrat dans le cadre d'une recherche, contrat de consultant | G102: 2527
A103: Dr Christophe Massard, IGR | B103: Médecin | C103: Lilly France SAS | D103: 07/09/2017 | E103: 13/10/2017 - | F103: Contrat d'intervenant à une manifestation / orateur | G103: 1521
A104: Dr Christophe Massard, IGR | B104: Médecin | C104: JANSSEN-CILAG | D104: 08/09/2017 | E104: 08/09/2017 - 12/09/2017 | F104: Hospitalité | H104: MADRID
A105: Dr Christophe Massard, IGR | B105: Médecin | C105: AMGEN SAS | D105: 20/09/2017 | E105: 20/11/2017 - 21/11/2017 | F105: Hospitalité | H105: PARIS
A106: Dr Christophe Massard, IGR | B106: Médecin | C106: INC RESEARCH, LLC | D106: 16/10/2017 | E106: 16/10/2017 - | F106: Recherche scientifique
A107: Dr Christophe Massard, IGR | B107: Médecin | C107: Covance Clinical And Periapproval Services SARL | D107: 23/10/2017 | E107: 23/10/2017 - 23/06/2021 | F107: Autre : Convention unique Etablissement associé version septembre 2016 | G107: 120071
A108: Dr Christophe Massard, IGR | B108: Médecin | C108: INC RESEARCH, LLC | D108: 26/10/2017 | E108: 26/10/2017 - | F108: Recherche scientifique
A109: Dr Christophe Massard, IGR | B109: Médecin | C109: INC RESEARCH, LLC | D109: 26/10/2017 | E109: 26/10/2017 - | F109: Recherche scientifique
A110: Dr Christophe Massard, IGR | B110: Médecin | C110: Taiho Oncology | D110: 30/10/2017 | E110: 30/10/2017 - | F110: Contrat d'expert scientifique, contrat dans le cadre d'une recherche, contrat de consultant
A111: Dr Christophe Massard, IGR | B111: Médecin | C111: Taiho Oncology | D111: 30/10/2017 | E111: 30/10/2017 - | F111: Contrat d'expert scientifique, contrat dans le cadre d'une recherche, contrat de consultant
A112: Dr Christophe Massard, IGR | B112: Médecin | C112: Taiho Oncology | D112: 30/10/2017 | E112: 30/10/2017 - | F112: Contrat d'expert scientifique, contrat dans le cadre d'une recherche, contrat de consultant
A113: Dr Christophe Massard, IGR | B113: Médecin | C113: JANSSEN-CILAG | D113: 28/11/2017 | E113: 28/11/2017 - 28/11/2017 | F113: Hospitalité | H113: PARIS
A114: Dr Christophe Massard, IGR | B114: Médecin | C114: IPSEN PHARMA | D114: 02/12/2017 | E114: 01/12/2017 - 02/12/2017 | F114: Contrat d'intervenant à une manifestation / orateur | G114: 700
A115: Dr Christophe Massard, IGR | B115: Médecin | C115: JANSSEN-CILAG | D115: 07/12/2017 | E115: 07/12/2017 - 07/12/2017 | F115: Hospitalité | H115: ROUEN
A116: Dr Aurélien Marabelle, IGR | B116: Médecin | C116: Bayer HealthCare SAS | D116: 21/11/2013 | E116: 05/09/2013 - 31/12/2013 | F116: Autre : Contrat de recherche interventionnelle et non-interventionnelle
A117: Dr Aurélien Marabelle, IGR | B117: Médecin | C117: AMGEN SAS | D117: 08/10/2014 | E117: 13/11/2014 - 13/11/2014 | F117: Autre : AUTRE [CONTRAT D ORATEUR] | H117: ZURICH
A118: Dr Aurélien Marabelle, IGR | B118: Médecin | C118: ROCHE SAS | D118: 12/12/2014 | E118: 12/12/2014 - 12/12/2014 | F118: Autre : Autre : [ Reunion professionnelle ] | H118: PARIS
A119: Dr Aurélien Marabelle, IGR | B119: Médecin | C119: Institut Roche | D119: 05/01/2015 | E119: 05/01/2015 - 30/04/2017 | F119: Recherche scientifique
A120: Dr Aurélien Marabelle, IGR | B120: Médecin | C120: BRISTOL-MYERS SQUIBB | D120: 22/01/2015 | E120: 22/01/2015 - | F120: Autre : Autre : [Consultant (HCP)]
A121: Dr Aurélien Marabelle, IGR | B121: Médecin | C121: SANOFI AVENTIS FRANCE | D121: 21/03/2015 | E121: 21/03/2015 - 21/03/2015 | F121: Formation
A122: Dr Aurélien Marabelle, IGR | B122: Médecin | C122: BRISTOL-MYERS SQUIBB | D122: 17/04/2015 | E122: 05/05/2015 - | F122: Autre : Autre : [Orateur]
A123: Dr Aurélien Marabelle, IGR | B123: Médecin | C123: AMGEN SAS | D123: 03/06/2015 | E123: 05/07/2015 - 08/07/2015 | F123: Autre : AUTRE [CONTRAT DE CONSULTANT] | H123: BOULOGNE BILLANCOURT
A124: Dr Aurélien Marabelle, IGR | B124: Médecin | C124: AMGEN SAS | D124: 09/07/2015 | E124: 25/09/2015 - 26/09/2015 | F124: Autre : AUTRE [CONTRAT D ORATEUR]
A125: Dr Aurélien Marabelle, IGR | B125: Médecin | C125: Transgene SA | D125: 24/08/2015 | E125: 13/08/2015 - 31/10/2015 | F125: Autre : CONSEIL
A126: Dr Aurélien Marabelle, IGR | B126: Médecin | C126: Bayer HealthCare SAS | D126: 26/08/2015 | E126: 30/07/2015 - 14/07/2016 | F126: Contrat d'expert scientifique, contrat dans le cadre d'une recherche, contrat de consultant
A127: Dr Aurélien Marabelle, IGR | B127: Médecin | C127: BRISTOL-MYERS SQUIBB | D127: 07/09/2015 | E127: 27/11/2015 - | F127: Autre : Autre : [Orateur]
A128: Dr Aurélien Marabelle, IGR | B128: Médecin | C128: BRISTOL-MYERS SQUIBB | D128: 07/09/2015 | E128: 27/11/2015 - | F128: Autre : Autre : [Orateur]
A129: Dr Aurélien Marabelle, IGR | B129: Médecin | C129: AMGEN SAS | D129: 08/09/2015 | E129: 07/10/2015 - 11/10/2015 | F129: Autre : AUTRE [CONTRAT D ORATEUR] | H129: PARIS
A130: Dr Aurélien Marabelle, IGR | B130: Médecin | C130: SANOFI-AVENTIS RECHERCHE & DEVELOPPEMENT | D130: 20/09/2015 | E130: 09/09/2015 - 09/09/2016 | F130: Recherche scientifique
A131: Dr Aurélien Marabelle, IGR | B131: Médecin | C131: BRISTOL-MYERS SQUIBB | D131: 27/09/2015 | E131: 27/09/2015 - | F131: Autre : Autre : [Consultant (HCP)]
A132: Dr Aurélien Marabelle, IGR | B132: Médecin | C132: MSD France | D132: 29/09/2015 | E132: 30/10/2015 - 31/12/2015 | F132: Autre : EXPERT | H132: PARIS
A133: Dr Aurélien Marabelle, IGR | B133: Médecin | C133: AMGEN SAS | D133: 06/10/2015 | E133: 09/10/2015 - 10/10/2015 | F133: Autre : AUTRE [CONVENTION D HOSPITALITE] | H133: PARIS
A134: Dr Aurélien Marabelle, IGR | B134: Médecin | C134: AMGEN SAS | D134: 07/10/2015 | E134: 14/10/2015 - 30/09/2019 | F134: Autre : CONVENTION DE RECHERCHE
A135: Dr Aurélien Marabelle, IGR | B135: Médecin | C135: AMGEN SAS | D135: 14/10/2015 | E135: 27/11/2015 - 28/11/2015 | F135: Autre : AUTRE [CONVENTION D HOSPITALITE] | H135: REIMS
A136: Dr Aurélien Marabelle, IGR | B136: Médecin | C136: ONXEO | D136: 12/11/2015 | E136: 21/12/2015 - 20/12/2016 | F136: Autre : Conseil en R&D
A137: Dr Aurélien Marabelle, IGR | B137: Médecin | C137: AMGEN SAS | D137: 14/12/2015 | E137: 12/01/2016 - 16/01/2016 | F137: Autre : AUTRE [CONTRAT DE CONSULTANT]
A138: Dr Aurélien Marabelle, IGR | B138: Médecin | C138: AMGEN SAS | D138: 14/12/2015 | E138: 12/01/2016 - 16/01/2016 | F138: Autre : AUTRE [CONTRAT DE CONSULTANT]
A139: Dr Aurélien Marabelle, IGR | B139: Médecin | C139: MSD France | D139: 14/12/2015 | E139: 19/01/2016 - 15/07/2016 | F139: Autre : EXPERT
A140: Dr Aurélien Marabelle, IGR | B140: Médecin | C140: AMGEN SAS | D140: 18/12/2015 | E140: 15/01/2016 - 15/01/2016 | F140: Autre : AUTRE [CONVENTION D HOSPITALITE]
A141: Dr Aurélien Marabelle, IGR | B141: Médecin | C141: BRISTOL-MYERS SQUIBB | D141: 18/12/2015 | E141: 07/01/2015 - | F141: Autre : Autre : [Orateur]
A142: Dr Aurélien Marabelle, IGR | B142: Médecin | C142: ROCHE MAROC | D142: 08/01/2016 | E142: 30/06/2016 - | F142: Autre : Crossborder
A143: Dr Aurélien Marabelle, IGR | B143: Médecin | C143: LABORATOIRE GLAXOSMITHKLINE | D143: 11/01/2016 | E143: 12/01/2016 - 12/01/2016 | F143: Autre : Autre : [Collaboration Scientifique]
A144: Dr Aurélien Marabelle, IGR | B144: Médecin | C144: ROCHE ETATS-UNIS | D144: 21/01/2016 | E144: 30/06/2016 - | F144: Autre : Crossborder
A145: Dr Aurélien Marabelle, IGR | B145: Médecin | C145: Covance Clinical And Periapproval Services SARL | D145: 25/01/2016 | E145: 01/02/2016 - 30/06/2019 | F145: Recherche scientifique
A146: Dr Aurélien Marabelle, IGR | B146: Médecin | C146: ROCHE SUISSE | D146: 28/01/2016 | E146: 01/01/2016 - | F146: Autre : Crossborder
A147: Dr Aurélien Marabelle, IGR | B147: Médecin | C147: BRISTOL-MYERS SQUIBB | D147: 08/03/2016 | E147: 19/03/2016 - | F147: Autre : Autre : [Orateur]
A148: Dr Aurélien Marabelle, IGR | B148: Médecin | C148: ROCHE ALLEMAGNE | D148: 23/03/2016 | E148: 30/06/2016 - | F148: Autre : Crossborder
A149: Dr Aurélien Marabelle, IGR | B149: Médecin | C149: ROCHE SAS | D149: 16/04/2016 | E149: 16/04/2016 - 20/04/2016 | F149: Autre : Congres / Symposium | H149: NEW ORLEANS
A150: Dr Aurélien Marabelle, IGR | B150: Médecin | C150: AMGEN SAS | D150: 25/04/2016 | E150: 02/07/2016 - 02/07/2016 | F150: Autre : AUTRE [CONVENTION D EXPERT] | H150: MUNICH
A151: Dr Aurélien Marabelle, IGR | B151: Médecin | C151: BRISTOL-MYERS SQUIBB | D151: 25/04/2016 | E151: 20/05/2016 - | F151: Autre : Consultant (HCP)
A152: Dr Aurélien Marabelle, IGR | B152: Médecin | C152: BRISTOL-MYERS SQUIBB | D152: 26/04/2016 | E152: 26/04/2016 - | F152: Autre : Autre : [Orateur]
A153: Dr Aurélien Marabelle, IGR | B153: Médecin | C153: ICON CLINICAL RESEARCH SARL | D153: 02/05/2016 | E153: 02/05/2016 - | F153: Autre : Recherche Biomédicale
A154: Dr Aurélien Marabelle, IGR | B154: Médecin | C154: LABORATOIRE GLAXOSMITHKLINE | D154: 18/05/2016 | E154: 06/06/2016 - 06/06/2016 | F154: Autre : Autre : [Collaboration Scientifique]
A155: Dr Aurélien Marabelle, IGR | B155: Médecin | C155: ICON CLINICAL RESEARCH SARL | D155: 19/05/2016 | E155: 19/05/2016 - | F155: Autre : Recherche biomédicale
A156: Dr Aurélien Marabelle, IGR | B156: Médecin | C156: PPD FRANCE SAS | D156: 07/07/2016 | E156: 07/07/2016 - 06/07/2021 | F156: Recherche scientifique
A157: Dr Aurélien Marabelle, IGR | B157: Médecin | C157: ROCHE SAS | D157: 11/07/2016 | E157: 04/07/2016 - 31/12/2016 | F157: Autre : Autre : [ Expert ]
A158: Dr Aurélien Marabelle, IGR | B158: Médecin | C158: MSD France | D158: 19/07/2016 | E158: 24/08/2016 - 23/02/2017 | F158: Autre : EXPERT
A159: Dr Aurélien Marabelle, IGR | B159: Médecin | C159: EISAI SAS | D159: 20/07/2016 | E159: 12/07/2016 - 31/08/2017 | F159: Contrat d'intervenant à une manifestation / orateur | G159: 1400
A160: Dr Aurélien Marabelle, IGR | B160: Médecin | C160: BRISTOL-MYERS SQUIBB | D160: 09/08/2016 | E160: 09/08/2016 - | F160: Autre : Consultant (HCP)
A161: Dr Aurélien Marabelle, IGR | B161: Médecin | C161: MSD France | D161: 18/08/2016 | E161: 24/08/2016 - 23/02/2017 | F161: Autre : EXPERT
A162: Dr Aurélien Marabelle, IGR | B162: Médecin | C162: AMGEN SAS | D162: 28/09/2016 | E162: 25/09/2016 - 29/09/2016 | F162: Autre : AUTRE [CONTRAT DE CONSULTANT]
A163: Dr Aurélien Marabelle, IGR | B163: Médecin | C163: AMGEN SAS | D163: 06/10/2016 | E163: 08/11/2016 - 09/11/2016 | F163: Autre : AUTRE [CONTRAT D ORATEUR] | H163: OXON ILL, MARYLAND
A164: Dr Aurélien Marabelle, IGR | B164: Médecin | C164: PIERRE FABRE MEDICAMENT | D164: 08/10/2016 | E164: 08/10/2016 - | F164: Contrat d'expert scientifique, contrat dans le cadre d'une recherche, contrat de consultant
A165: Dr Aurélien Marabelle, IGR | B165: Médecin | C165: ROCHE DANEMARK | D165: 09/10/2016 | E165: 01/07/2016 - | F165: Autre : Crossborder
A166: Dr Aurélien Marabelle, IGR | B166: Médecin | C166: ROCHE DANEMARK | D166: 09/10/2016 | E166: 01/07/2016 - | F166: Autre : Crossborder
A167: Dr Aurélien Marabelle, IGR | B167: Médecin | C167: BRISTOL-MYERS SQUIBB | D167: 12/10/2016 | E167: 08/10/2016 - 31/03/2017 | F167: Contrat d'expert scientifique, contrat dans le cadre d'une recherche, contrat de consultant | G167: 2000
A168: Dr Aurélien Marabelle, IGR | B168: Médecin | C168: BRISTOL-MYERS SQUIBB | D168: 14/10/2016 | E168: 24/11/2016 - | F168: Autre : Consultant (HCP)
A169: Dr Aurélien Marabelle, IGR | B169: Médecin | C169: AMGEN SAS | D169: 18/10/2016 | E169: 08/01/2017 - 13/01/2017 | F169: Autre : AUTRE [CONTRAT DE CONSULTANT]
A170: Dr Aurélien Marabelle, IGR | B170: Médecin | C170: ASTRAZENECA | D170: 25/10/2016 | E170: 02/12/2016 - | F170: Formation
A171: Dr Aurélien Marabelle, IGR | B171: Médecin | C171: MSD France | D171: 31/10/2016 | E171: 18/11/2016 - 19/11/2016 | F171: Autre : EXPERT
A172: Dr Aurélien Marabelle, IGR | B172: Médecin | C172: GILEAD SCIENCES | D172: 08/12/2016 | E172: 08/12/2016 - | F172: Autre : Reunion Medicale
A173: Dr Aurélien Marabelle, IGR | B173: Médecin | C173: LABORATOIRE GLAXOSMITHKLINE | D173: 22/12/2016 | E173: 22/12/2016 - 22/12/2016 | F173: Autre : Autre : [Collaboration Scientifique]
A174: Dr Aurélien Marabelle, IGR | B174: Médecin | C174: ICON CLINICAL RESEARCH SARL | D174: 26/12/2016 | E174: 26/12/2016 - | F174: Autre : Recherche biomédicale
A175: Dr Aurélien Marabelle, IGR | B175: Médecin | C175: AMGEN SAS | D175: 12/01/2017 | E175: 12/01/2017 - 12/01/2017 | F175: Hospitalité
A176: Dr Aurélien Marabelle, IGR | B176: Médecin | C176: BRISTOL-MYERS SQUIBB | D176: 17/01/2017 | E176: 02/02/2017 - | F176: Autre : Autre : [Consultant (HCP)]
A177: Dr Aurélien Marabelle, IGR | B177: Médecin | C177: MERCK SERONO | D177: 25/01/2017 | E177: 25/01/2017 - | F177: Contrat d'intervenant à une manifestation / orateur | G177: 1355
A178: Dr Aurélien Marabelle, IGR | B178: Médecin | C178: MSD France | D178: 02/03/2017 | E178: 07/03/2017 - 07/03/2017 | F178: Contrat d'expert scientifique, contrat dans le cadre d'une recherche, contrat de consultant | G178: 2500
A179: Dr Aurélien Marabelle, IGR | B179: Médecin | C179: ROCHE SAS | D179: 07/03/2017 | E179: 01/02/2017 - 31/12/2017 | F179: Contrat d'expert scientifique, contrat dans le cadre d'une recherche, contrat de consultant
A180: Dr Aurélien Marabelle, IGR | B180: Médecin | C180: ASTRAZENECA | D180: 30/03/2017 | E180: 20/04/2017 - | F180: Contrat d'intervenant à une manifestation / orateur | G180: 1500
A181: Dr Aurélien Marabelle, IGR | B181: Médecin | C181: ASTRAZENECA | D181: 01/04/2017 | E181: 01/04/2017 - | F181: Hospitalité | G181: 5742
A182: Dr Aurélien Marabelle, IGR | B182: Médecin | C182: AMGEN SAS | D182: 06/04/2017 | E182: 22/06/2017 - 23/06/2017 | F182: Contrat d'intervenant à une manifestation / orateur | H182: ZURRICH
A183: Dr Aurélien Marabelle, IGR | B183: Médecin | C183: ASTRAZENECA | D183: 19/04/2017 | E183: 19/04/2017 - | F183: Hospitalité | G183: 25
A184: Dr Aurélien Marabelle, IGR | B184: Médecin | C184: ROCHE SAS | D184: 10/05/2017 | E184: 05/06/2017 - 30/04/2018 | F184: Contrat d'expert scientifique, contrat dans le cadre d'une recherche, contrat de consultant
A185: Dr Aurélien Marabelle, IGR | B185: Médecin | C185: BRISTOL-MYERS SQUIBB | D185: 13/05/2017 | E185: 23/05/2017 - | F185: Contrat d'intervenant à une manifestation / orateur | G185: 1000
A186: Dr Aurélien Marabelle, IGR | B186: Médecin | C186: ASTRAZENECA | D186: 22/05/2017 | E186: 27/04/2017 - | F186: Contrat d'intervenant à une manifestation / orateur | G186: 1200
A187: Dr Aurélien Marabelle, IGR | B187: Médecin | C187: ASTRAZENECA | D187: 23/05/2017 | E187: 07/04/2017 - | F187: Contrat d'intervenant à une manifestation / orateur | G187: 1400
A188: Dr Aurélien Marabelle, IGR | B188: Médecin | C188: ROCHE SAS | D188: 02/06/2017 | E188: 02/06/2017 - 06/06/2017 | F188: Hospitalité
A189: Dr Aurélien Marabelle, IGR | B189: Médecin | C189: ASTRAZENECA | D189: 05/07/2017 | E189: 04/07/2017 - | F189: Contrat d'expert scientifique, contrat dans le cadre d'une recherche, contrat de consultant | G189: 1400
A190: Dr Aurélien Marabelle, IGR | B190: Médecin | C190: PFIZER SAS | D190: 19/07/2017 | E190: 19/07/2017 - 19/05/2017 | F190: Autre : Congrès/Symposium
A191: Dr Aurélien Marabelle, IGR | B191: Médecin | C191: MSD France | D191: 25/07/2017 | E191: 05/09/2017 - 05/09/2017 | F191: Contrat d'expert scientifique, contrat dans le cadre d'une recherche, contrat de consultant | G191: 1500
A192: Dr Aurélien Marabelle, IGR | B192: Médecin | C192: BRISTOL-MYERS SQUIBB | D192: 08/08/2017 | E192: 08/08/2017 - 31/12/2017 | F192: Contrat d'expert scientifique, contrat dans le cadre d'une recherche, contrat de consultant | G192: 1210
A193: Dr Aurélien Marabelle, IGR | B193: Médecin | C193: MSD France | D193: 01/09/2017 | E193: 06/10/2017 - 07/10/2017 | F193: Contrat d'expert scientifique, contrat dans le cadre d'une recherche, contrat de consultant | G193: 1375
A194: Dr Aurélien Marabelle, IGR | B194: Médecin | C194: ASTRAZENECA | D194: 06/09/2017 | E194: 11/09/2017 - | F194: Contrat d'expert scientifique, contrat dans le cadre d'une recherche, contrat de consultant | G194: 1500
A195: Dr Aurélien Marabelle, IGR | B195: Médecin | C195: PFIZER SAS | D195: 24/10/2017 | E195: 24/10/2017 - 24/10/2017 | F195: Hospitalité
A196: Dr Aurélien Marabelle, IGR | B196: Médecin | C196: ASTRAZENECA | D196: 20/11/2017 | E196: 01/12/2017 - | F196: Contrat d'intervenant à une manifestation / orateur | G196: 800
A197: Dr Aurélien Marabelle, IGR | B197: Médecin | C197: ASTRAZENECA | D197: 19/12/2017 | E197: 07/12/2017 - | F197: Contrat d'intervenant à une manifestation / orateur | G197: 700
A198: Dr Eric Angevin, IGR | B198: Médecin | C198: ROCHE SAS | D198: 18/01/2013 | E198: 18/01/2013 - 18/01/2013 | F198: Autre : Autre : [ Reunion professionnelle ]
A199: Dr Eric Angevin, IGR | B199: Médecin | C199: MSD France | D199: 31/05/2013 | E199: 31/05/2013 - 31/05/2013 | F199: Autre : EXPERT | H199: CHICAGO (?)
A200: Dr Eric Angevin, IGR | B200: Médecin | C200: LABORATOIRE GLAXOSMITHKLINE | D200: 09/09/2013 | E200: 27/09/2013 - 01/10/2013 | F200: Autre : [AUTRE] : [CONTRAT DE COLLABORATION] | H200: AMSDERDAM
... 353 more rows

Sheet AVANTAGES
A1: TYPE_AVTG dans Transparence.sante.gouv.fr | B1: TYPE_AVTG (libellé de regroupement)
A2: [Autre] : Participation Evenement Scientifique | B2: Congrès
A3: [Autre] inscription congrès | B3: Inscription
A4: [HEBERGEMENT] | B4: Hébergement
A5: [HOSPITALITE] | B5: Hospitalité
A6: [REPAS] | B6: Repas
A7: [TRANSPORT] | B7: Transport
A8: Acheminement | B8: Transport
A9: AUTRE | B9: Autre
A10: Autre : [ Forfait journée détude ] | B10: Autre
A11: Autre : [ Forfait journée détude ou forfait congrès ] | B11: Congrès
A12: Autre : [ Forfait journée étude ] | B12: Autre
A13: Autre : [ Inscription ] | B13: Inscription
A14: AUTRE : [ACCOMPAGNEMENT] | B14: Autre
A15: AUTRE : [CONTRAT DE PARTENARIAT - LOCATION DE STAND] | B15: Congrès
A16: AUTRE : [DEDOMMAGEMENT] | B16: Autre
A17: Autre : [DEJEUNER REUNION] | B17: Repas
A18: AUTRE : [DON EN NATURE] | B18: Autre
A19: Autre : [don] | B19: Autre
A20: AUTRE : [DONS] | B20: Autre
A21: Autre : [ECHANTILLON] | B21: Autre
A22: Autre : [Forfait] | B22: Autre
A23: Autre : [Formation] | B23: Autre
A24: Autre : [FRAIS D'INSCRIPTION] | B24: Inscription
A25: Autre : [HONORAIRE] | B25: Autre
A26: Autre : [Honoraires PdS] | B26: Autre
A27: Autre : [Honoraires] | B27: Repas
A28: Autre : [Hospitalité Evenement Scientifique] | B28: Hospitalité
A29: AUTRE : [HOSPITALITE] | B29: Hospitalité
A30: AUTRE : [INSCRIPTION CONGRÈS SCIENTIFIQUE] | B30: Inscription
A31: Autre : [Inscription Evenement Scientifique] | B31: Inscription
A32: Autre : [Inscription] | B32: Inscription
A33: Autre : [Location de stand] | B33: Congrès
A34: Autre : [note de frais] | B34: Autre
A35: Autre : [Notes de frais] | B35: Autre
A36: AUTRE : [PARTICIPATION EVENEMENT SCIENTIFIQUE] | B36: Congrès
A37: AUTRE : [PAUSE] | B37: Autre
A38: Autre : [Remboursement de frais] | B38: Autre
A39: AUTRE : [REMBOURSEMENT FRAIS LOGISTIQUE] | B39: Autre
A40: Autre : [Remis Publication scientifique] | B40: Autre
A41: Autre : [rémunération] | B41: Repas
A42: Autre : [Restauration] | B42: Repas
A43: Autre : [stand] | B43: Congrès
A44: Autre : cheque | B44: Autre
A45: AUTRE : CONGRES | B45: Autre
A46: AUTRE : DEJEUNER | B46: Repas
A47: AUTRE : DEUX PAUSES | B47: Repas
A48: AUTRE : DINER | B48: Repas
A49: AUTRE : DON DE MÉDICAMENT | B49: Autre
A50: autre : enquête internet | B50: Autre
A51: AUTRE : FORMATION MEDICALE CONTINUE | B51: Autre
A52: AUTRE : FRAIS DE RESTAURATION / RP | B52: Repas
A53: Autre : Frais d'inscription Congres | B53: Inscription
A54: Autre : Frais d'inscription Congrès | B54: Inscription
A55: AUTRE : HONORAIRE | B55: Autre
A56: AUTRE : HONORAIRE CONFERENCE TELEPHONIQUE | B56: Autre
A57: AUTRE : HONORAIRES | B57: Autre
A58: AUTRE : HONORAIRES CONFERENCE TELEPHONIQUE | B58: Autre
A59: AUTRE : HONORAIRES ETUDES | B59: Autre
A60: AUTRE : HONORAIRES REUNION | B60: Autre
A61: AUTRE : HOSPITALITE CONGRES | B61: Congrès
A62: AUTRE : HOSPITALITE STAFF | B62: Hospitalité
A63: Autre : Indemnite | B63: Autre
A64: Autre : Inscription | B64: Inscription
A65: AUTRE : RELATIONS NORMALES DE TRAVAIL | B65: Autre
A66: AUTRE : REMBOURSEMENT DE FRAIS | B66: Autre
A67: AUTRE : REMUNERATION | B67: Autre
A68: AUTRE : REPAS PROFESSIONNEL | B68: Repas
A69: Autre : repas STAFF | B69: Repas
A70: AUTRE : REUNION | B70: Autre
A71: AUTRE : RNT | B71: Autre
A72: AUTRE : STAFF | B72: Repas
A73: AUTRE : STAND CONGRES | B73: Congrès
A74: AUTRE [DINER REUNION] | B74: Repas
A75: AUTRE [DONS] | B75: Autre
A76: AUTRE [ENQUETE] | B76: Autre
A77: AUTRE [FRAIS D INSCRIPTION] | B77: Inscription
A78: AUTRE [INSCRIPTION] | B78: Inscription
A79: AUTRE [PAUSE] | B79: Autre
A80: AUTRE [RESTAURATION STAFF] | B80: Repas
A81: AUTRE: [DON] | B81: Autre
A82: AUTRE: [DONS] | B82: Autre
A83: Autre: [Enquête] | B83: Autre
A84: AUTRE: [HEBERGEMENT ET RESTAURATIONS] | B84: Hébergement
A85: AUTRE: [INSCRIPTION] | B85: Inscription
A86: AUTRE: COLLATION | B86: Repas
A87: AUTRE: COLLATION/COLLATION | B87: Repas
A88: AUTRE: CONGRES/COCKTAIL | B88: Repas
A89: AUTRE: CONGRES/INSCRIPTION | B89: A définir
A90: AUTRE: DEJEUNER | B90: Repas
A91: AUTRE: DEJEUNER/DINER | B91: Repas
A92: AUTRE: DEJEUNER/RESTO ITALIEN BON | B92: Repas
A93: Autre: Don | B93: Autre
A94: AUTRE: HOSPITALITE | B94: Hospitalité
A95: AUTRE: INDEMNITE | B95: Autre
A96: AUTRE: INSCRIPTION | B96: Inscription
A97: Autre: Phone consult | B97: Autre
A98: AUTRE: SOIREE | B98: Hospitalité
A99: AUTRE: SOIREE/SOIREE | B99: Autre
A100: AUTRE: STAFF | B100: Repas
A101: AUTRE: VISITE/(2 X GO-ON 25MG) | B101: Autre
A102: AUTRE: VISITE/(3 X GO-ON 25MG) | B102: Autre
A103: AUTRE: VISITE/GO-ON 25MG | B103: Autre
A104: AUTRE:[FRAIS D'INSCRIPTION] | B104: Inscription
A105: Autre[HONORAIRES] | B105: Autre
A106: Autre[inscription congrès] | B106: Congrès
A107: AUTRES | B107: Autre
A108: AUTRES: INSCRIPTION | B108: Inscription
A109: CADEAUX | B109: Autre
A110: COLLATION | B110: Repas
A111: COLLATION/COLLATION | B111: Repas
A112: CONGRES/ACHEMINEMENT (AVION) | B112: Transport
A113: CONGRES/DEJEUNERS / DINERS (4) | B113: Repas
A114: CONGRES/HEBERGEMENT | B114: Hébergement
A115: CONGRES/HEBERGEMENT (1 NUITEES) | B115: Hébergement
A116: CONGRES/HEBERGEMENT (2 NUITEES) | B116: Hébergement
A117: CONGRES/HEBERGEMENT 3 NUITS | B117: Hébergement
A118: CONGRES/INSCRIPTION | B118: Inscription
A119: CONGRES/REPAS 12.06.13 | B119: Repas
A120: CONGRES/REPAS 13.06.13 | B120: Repas
A121: CONGRES/REPAS 14.06.13 | B121: Repas
A122: CONGRES/REPAS X3 | B122: Repas
A123: conseil | B123: Conseil
A124: Conseil - Intervention Ponctuelle | B124: Autre
A125: Dédommagement | B125: Autre
A126: DEJEUNER | B126: Repas
A127: déjeuner | B127: Repas
A128: DEJEUNER/DEJEUNER | B128: Repas
A129: DEJEUNER/REPAS | B129: Repas
A130: Déplacement | B130: Transport
A131: DINER | B131: Repas
A132: Dîner | B132: Repas
A133: DOCUMENTATION | B133: Autre
A134: Don | B134: Autre
A135: DONS | B135: Autre
A136: Dons de fonctionnement | B136: Autre
A137: DONS DE FONCTIONNEMENT (RÉMUNÉRATION LIÉE À DES ACTIVITÉS DE RECHERCHE) | B137: Autre
A138: DONS DE FONCTIONNEMENT / RECHERCHE | B138: Autre
A139: DONS DE MATERIEL | B139: Autre
A140: Dons de matériel | B140: Autre
A141: Droits d'auteur pris en charge par UCB | B141: Autre
A142: enquête | B142: Autre
A143: EPU | B143: Repas
A144: EPU/DINER | B144: Repas
A145: EPU/EPU | B145: Congrès
A146: EPU/REPAS | B146: Repas
A147: FRAIS DE BOUCHE | B147: Repas
A148: Frais de dÃƒÂ©placement | B148: Transport
A149: FRAIS DE DEPLACEMENT | B149: Transport
A150: FRAIS DE RESTAURATION | B150: Repas
A151: FRAIS D'HOSPITALITÉ | B151: Hospitalité
A152: FRAIS D'INSCRIPTION | B152: Inscription
A153: Frais d'inscription à une réunion scientifique | B153: Inscription
A154: Frais remboursés (transport) | B154: Transport
A155: H‚bergement | B155: Hébergement
A156: HÃ©bergement | B156: Hébergement
A157: HÃ‰BERGEMENT | B157: Hébergement
A158: HÃƒÂ©bergement | B158: Hébergement
A159: HEBERGEMENT | B159: Hospitalité
A160: HEBERGEMENT | B160: Hébergement
A161: Hébergement | B161: Hébergement
A162: Hébérgement | B162: Hébergement
A163: HEBERGEMENT SUR TOUTE LA DUREE DU CONGRES | B163: Hébergement
A164: Hébergement, restauration, transport | B164: Hospitalité
A165: Honoraire + hospitalité | B165: Hospitalité
A166: HONORAIRE HCP | B166: Autre
A167: HONORAIRES | B167: Autre
A168: Honoraires de consultant | B168: Conseil
A169: HOSPITALITE | B169: Hospitalité
A170: HOSPITALITÉ | B170: Hospitalité
A171: HOSPITALITE - RELATIONS NORMALES DE TRAVAIL | B171: Hospitalité
A172: Hospitalité [ transport/repas/Hébergement] | B172: Hospitalité
A173: HOSPITALITE CONGRES | B173: Hospitalité
A174: Hospitalité Congrès Symposium | B174: Congrès
A175: HOSPITALITE REUNION PROFESSIONNELLE | B175: Hospitalité
A176: HOSPITALITE SITES PIERRE FABRE | B176: Hospitalité
A177: HOSPITALITE STAFF | B177: Hospitalité
A178: INCRIPTION | B178: Inscription
A179: INDEMNITE | B179: Autre
A180: INSCRIPTION | B180: Inscription
A181: INSCRIPTION CONGRES | B181: Inscription
A182: Inscription congrès | B182: Congrès
A183: Inscription Evenement Scientifique | B183: Inscription
A184: INSCRIPTION_REPAS_TRANSPORT_HEBERGEMENT | B184: Hospitalité
A185: INVITATIONS | B185: Autre
A186: Logement | B186: Hébergement
A187: OPPORTUNITE | B187: Autre
A188: Participation Evenement Scientifique | B188: Congrès
A189: PAUSE | B189: Autre
A190: Prestation en tant que formateur et orateur | B190: Autre
A191: REMUNERATION | B191: Autre
A192: REPAS | B192: Repas
A193: Repas | B193: Repas
A194: répas | B194: Repas
A195: Repas & Voyage de Train | B195: Hospitalité
A196: REPAS CONGRES | B196: Repas
A197: REPAS ET TRANSPORT | B197: Autre
A198: REPAS FORMATION | B198: Repas
A199: REPAS IMPROMPTU | B199: Repas
A200: REPAS MANIFESTATION DE FORMATION | B200: Repas
... 27 more rows

Sheet CONVENTIONS
A1: TYPE_CONVENTION dans Transparence.sante.gouv.fr | B1: TYPE_CONVENTION (libellé de regroupement)
A2: [AUTRE] : [COLLABORATION SCIENTIFIQUE] | B2: Expert
A3: [AUTRE] : [CONVENTION HOSPITALITE] | B3: Hospitalité
A4: [AUTRE] : [CONVENTION HOSPITALITE] | B4: Hospitalité
A5: [BOARD EXPERTS] | B5: Réunion de « Board »
A6: [FORMATION] | B6: Autre
A7: [MARKETING] | B7: Etude de marché
A8: [MARKETING] | B8: Etude de marché
A9: [ORATEUR] | B9: Orateur
A10: [ORATEURS MODERATEURS] | B10: Orateur
A11: [ORATEURS MODERATEURS] | B11: Orateur
A12: [REUNION INFORMATION MEDICALE] | B12: Réunion professionnelle
A13: 26E CONGRES FRANÇAIS DE RHUMATOLOGIE | B13: Réunion professionnelle
A14: ACCORD DE COOPERATION | B14: Expert
A15: Achat / location d'espaces dans le cadre d'événements scientifiques | B15: Autre
A16: Achat / location d'espaces dans le cadre d'événements scientifiques | B16: Autre
A17: AMERICAN COLLEGE OF RHEUMATHOLOGY ACR/ARHP ANNUAL MEETING 2012 | B17: Réunion professionnelle
A18: ANNUAL EUROPEAN CONGRESS OF RHEUMATOLOGY | B18: Réunion professionnelle
A19: ASSISES BARCELONE | B19: Réunion professionnelle
A20: ATELIERS SIMS | B20: Réunion professionnelle
A21: AUTRE | B21: Autre
A22: AUTRE | B22: Autre
A23: Autre : | B23: Autre
A24: Autre : "CONTRAT D'ORATEUR" | B24: Orateur
A25: Autre : [ Collaboration Scientifique ] | B25: Expert
A26: Autre : [ Collaboration Scientifique ] | B26: Expert
A27: AUTRE : [ CONSEIL / EXPERTISE SCIENTIFIQUE ] | B27: Conseil
A28: Autre : [ EPU ] | B28: Réunion professionnelle
A29: Autre : [ EPU ] | B29: Réunion professionnelle
A30: Autre : [ Expert ] | B30: Expert
A31: Autre : [ Expert ] | B31: Expert
A32: AUTRE : [ HOSPITALITE ] | B32: Hospitalité
A33: AUTRE : [ HOSPITALITE ] | B33: Hospitalité
A34: Autre : [ hospitalité ] | B34: Hospitalité
A35: Autre : [ hospitalité liée à une manifestation scientifique ] | B35: Hospitalité
A36: Autre : [ hospitalité liée à une manifestation scientifique ] | B36: Hospitalité
A37: Autre : [ Manifestation professionnelle ] | B37: Réunion professionnelle
A38: Autre : [ Manifestation professionnelle ] | B38: Réunion professionnelle
A39: Autre : [ Orateur / Intervenant ] | B39: Orateur
A40: Autre : [ Orateur / Intervenant ] | B40: Orateur
A41: Autre : [ Orateur ] | B41: Orateur
A42: Autre : [ Partenariat ] | B42: Autre
A43: Autre : [ Prestation ] | B43: Conseil
A44: Autre : [ R‚union professionnelle ] | B44: Réunion professionnelle
A45: Autre : [ R‚union professionnelle ] | B45: Réunion professionnelle
A46: Autre : [ Runion professionnelle ] | B46: Réunion professionnelle
A47: Autre : [ Runion professionnelle ] | B47: Réunion professionnelle
A48: Autre : [ Reunion professionnelle ] | B48: Réunion professionnelle
A49: Autre : [ Réunion professionnelle ] | B49: Réunion professionnelle
A50: Autre : [ Reunion professionnelle ] | B50: Réunion professionnelle
A51: Autre : [ Réunion professionnelle ] | B51: Réunion professionnelle
A52: Autre : [AUTRE] : [CONTRAT DE COLLABORATION] | B52: Autre
A53: Autre : [AUTRE] : [CONVENTION HOSPITALITE] | B53: Hospitalité
A54: Autre : [BOARD EXPERTS] | B54: Expert
A55: Autre : [collaboration scientifique] | B55: Expert
A56: Autre : [Communication scientifique] | B56: Expert
A57: Autre : [Communication scientifique] | B57: Conseil
A58: Autre : [Consultant (HCP)] | B58: Conseil
A59: Autre : [Consultant (HCP)] | B59: Conseil
A60: Autre : [Consultant] | B60: Conseil
A61: Autre : [Contrat autre] | B61: Autre
A62: Autre : [Contrat autre] | B62: Autre
A63: AUTRE : [CONTRAT DE COLLABORATION SCIENTIFIQUE] | B63: Expert
A64: AUTRE : [CONTRAT DE COLLABORATION SCIENTIFIQUE] | B64: Expert
A65: AUTRE : [CONTRAT DE CONSEIL & PRESTATION] | B65: Conseil
A66: AUTRE : [CONTRAT DE CONSEIL & PRESTATION] | B66: Conseil
A67: Autre : [Contrat de consultant] | B67: Conseil
A68: AUTRE : [CONTRAT DE PARTENARIAT - LOCATION DE STAND] | B68: Réunion professionnelle
A69: AUTRE : [CONTRAT DE PARTENARIAT - LOCATION DE STAND] | B69: Réunion professionnelle
A70: AUTRE : [CONTRAT DE PARTENARIAT] | B70: Autre
A71: AUTRE : [CONTRAT D'ORATEUR] | B71: Orateur
A72: AUTRE : [CONTRAT D'ORATEUR] | B72: Orateur
A73: Autre : [CONTRAT ORATEUR] | B73: Orateur
A74: Autre : [CONTRAT_DE_PRESTATIONS_DE_SERVICES] | B74: Conseil
A75: AUTRE : [CONVENTION D HOSPITALITE] | B75: Hospitalité
A76: AUTRE : [CONVENTION D HOSPITALITE] | B76: Hospitalité
A77: Autre : [Convention d’Hospitalité] | B77: Hospitalité
A78: Autre : [Convention de consultant] | B78: Conseil
A79: Autre : [CONVENTION D'HOSPITALITE] | B79: Hospitalité
A80: Autre : [Convention d'Hospitalité] | B80: Hospitalité
A81: Autre : [CONVENTION D'HOSPITALITE] | B81: Hospitalité
A82: Autre : [Convention d'hospitalité] | B82: Hospitalité
A83: AUTRE : [CONVENTION HOSPITALITE] | B83: Hospitalité
A84: Autre : [Convention Orateur] | B84: Orateur
A85: AUTRE : [CONVENTION SANS REMUNERATION]. | B85: Autre
A86: AUTRE : [DONS] | B86: Autre
A87: Autre : [entretien] | B87: Etude de marché
A88: Autre : [entretien] | B88: Etude de marché
A89: Autre : [Espace publicitaire] | B89: Autre
A90: Autre : [Espace publicitaire] | B90: Autre
A91: AUTRE : [ETUDE CLINIQUE] | B91: Recherche Clinique
A92: Autre : [EXPERT CONSULTANT] | B92: Expert
A93: Autre : [Expertise] | B93: Expert
A94: Autre : [Face face] | B94: Autre
A95: AUTRE : [HOSPITALITÉ EVENEMENT SCIENTIFIQUE] | B95: Hospitalité
A96: Autre : [Hospitalité Evenement] | B96: Hospitalité
A97: AUTRE : [HOSPITALITE EVENEMENT] | B97: Hospitalité
A98: Autre : [Hospitalité Evenement] | B98: Hospitalité
A99: Autre : [Hospitalité Genzyme] | B99: Hospitalité
A100: Autre : [Hospitalité] | B100: Hospitalité
A101: AUTRE : [INTERVENANT] | B101: A définir
A102: AUTRE : [INTERVENANT] | B102: Orateur
A103: Autre : [Invitation individuelle] | B103: Autre
A104: Autre : [Invitation individuelle] | B104: Autre
A105: Autre : [Location de stand / Congrès / Autre] | B105: Réunion professionnelle
A106: Autre : [Marketing] | B106: Etude de marché
A107: Autre : [Marketing] | B107: Etude de marché
A108: Autre : [Opération SA/Journée-Soirée] | B108: Autre
A109: Autre : [Opérations Genzyme] | B109: Autre
A110: Autre : [Orateur] | B110: Orateur
A111: Autre : [Orateur] | B111: Orateur
A112: Autre : [ORATEURS MODERATEURS] | B112: Orateur
A113: AUTRE : [PARTENARIAT] | B113: Autre
A114: AUTRE : [PARTICIPATION RÉUNION SCIENTIFIQUE] | B114: Réunion professionnelle
A115: AUTRE : [PARTICIPATION RÉUNION SCIENTIFIQUE] | B115: Réunion professionnelle
A116: AUTRE : [PARTICIPATION R�ION SCIENTIFIQUE] | B116: Réunion professionnelle
A117: AUTRE : [PARTICIPATION R�ION SCIENTIFIQUE] | B117: Réunion professionnelle
A118: AUTRE : [PRESTATION DE SERVICE] | B118: Conseil
A119: Autre : [Recherche biomédicale] | B119: Recherche Clinique
A120: Autre : [Recherche biomédicale] | B120: Recherche Clinique
A121: Autre : [Recherche/Développement] | B121: Recherche Clinique
A122: Autre : [Recherche/Développement] | B122: Recherche Clinique
A123: Autre : [Rédaction d'articles scientifiques] | B123: Rédacteur
A124: Autre : [Repas] | B124: Hospitalité
A125: Autre : [Réunion] | B125: Réunion professionnelle
A126: Autre : [Réunion] | B126: Réunion professionnelle
A127: Autre : [RP Prédéclarée Hospitalité] | B127: Hospitalité
A128: AUTRE : [RP Table ronde actu Rhumatologie] | B128: Réunion professionnelle
A129: AUTRE : [RP TFI] | B129: Orateur
A130: Autre : [STAFF] | B130: Réunion professionnelle
A131: Autre : [STAFF] | B131: Réunion professionnelle
A132: AUTRE : [STAND/TABLE] | B132: Réunion professionnelle
A133: Autre : 3116001; site 101; | B133: Autre
A134: Autre : Accord d'Orateur | B134: Orateur
A135: Autre : Accord d'Orateur | B135: Orateur
A136: Autre : Auteur - rédacteur | B136: Rédacteur
A137: Autre : AUTRE | B137: Autre
A138: Autre : AUTRE | B138: Autre
A139: Autre : AUTRE / HOSPITALITES | B139: Hospitalité
A140: Autre : AUTRE / STAND | B140: Autre
A141: Autre : AUTRE : [ CONSEIL / EXPERTISE SCIENTIFIQUE ] | B141: Conseil
A142: Autre : Autre : [ EPU ] | B142: Réunion professionnelle
A143: Autre : Autre : [ Expert ] | B143: Expert
A144: Autre : Autre : [ Expert ] | B144: Expert
A145: Autre : AUTRE : [ HOSPITALITE ] | B145: Hospitalité
A146: Autre : Autre : [ hospitalité liée à une manifestation scientifique ] | B146: Hospitalité
A147: Autre : Autre : [ Manifestation professionnelle ] | B147: Réunion professionnelle
A148: Autre : Autre : [ Manifestation professionnelle ] | B148: Réunion professionnelle
A149: Autre : Autre : [ Orateur / Intervenant ] | B149: Orateur
A150: Autre : Autre : [ Orateur / Intervenant ] | B150: Orateur
A151: Autre : Autre : [ Parrainage ] | B151: Autre
A152: Autre : Autre : [ Partenariat ] | B152: Autre
A153: Autre : AUTRE : [ RECHERCHE SCIENTIFIQUE ] | B153: Recherche Clinique
A154: Autre : Autre : [ Reunion professionnelle ] | B154: Réunion professionnelle
A155: Autre : Autre : [ Réunion professionnelle ] | B155: Réunion professionnelle
A156: Autre : Autre : [ Reunion professionnelle ] | B156: Réunion professionnelle
A157: Autre : Autre : [ Réunion professionnelle ] | B157: Réunion professionnelle
A158: Autre : Autre : [Autre] | B158: Autre
A159: Autre : Autre : [collaboration scientifique à titre gratuit] | B159: Expert
A160: Autre : Autre : [Collaboration Scientifique non remuneree] | B160: Expert
A161: Autre : AUTRE : [COLLABORATION SCIENTIFIQUE] | B161: Expert
A162: Autre : Autre : [Collaboration Scientifique] | B162: Expert
A163: Autre : Autre : [Communication scientifique] | B163: Expert
A164: Autre : Autre : [Communication scientifique] | B164: Expert
A165: Autre : Autre : [Conseil communication] | B165: Conseil
A166: Autre : Autre : [Consultant (HCP)] | B166: Conseil
A167: Autre : Autre : [Consultant (HCP)] | B167: Conseil
A168: Autre : AUTRE : [CONSULTANT] | B168: Conseil
A169: Autre : Autre : [Contrat autre] | B169: Autre
A170: Autre : AUTRE : [CONTRAT DE COLLABORATION SCIENTIFIQUE] | B170: Expert
A171: Autre : AUTRE : [CONTRAT DE COLLABORATION] | B171: Expert
A172: Autre : Autre : [Contrat de conseil & prestation] | B172: Conseil
A173: Autre : AUTRE : [CONTRAT DE CONSEIL & PRESTATION] | B173: Conseil
A174: Autre : Autre : [CONTRAT DE CONSULTANT] | B174: Conseil
A175: Autre : AUTRE : [CONTRAT DE PARTENARIAT - LOCATION DE STAND] | B175: Réunion professionnelle
A176: Autre : AUTRE : [CONTRAT DE PARTENARIAT] | B176: Autre
A177: Autre : AUTRE : [CONTRAT D'ORATEUR] | B177: Orateur
A178: Autre : Autre : [CONTRAT_DE_PRESTATIONS_DE_SERVICES] | B178: Conseil
A179: Autre : Autre : [Convention d ’Hospitalite] | B179: Hospitalité
A180: Autre : AUTRE : [CONVENTION D HOSPITALITE] | B180: Hospitalité
A181: Autre : Autre : [Convention d’Hospitalite] | B181: Hospitalité
A182: Autre : Autre : [Convention d’Hospitalite] | B182: Hospitalité
A183: Autre : Autre : [Convention d’Hospitalité] | B183: Hospitalité
A184: Autre : Autre : [Convention dHospitalité] | B184: Hospitalité
A185: Autre : Autre : [Convention de partenariat] | B185: Autre
A186: Autre : Autre : [CONVENTION D'HOSPITALITE] | B186: Hospitalité
A187: Autre : Autre : [Convention d'Hospitalité] | B187: Hospitalité
A188: Autre : AUTRE : [CONVENTION HOSPITALITE] | B188: Hospitalité
A189: Autre : Autre : [Convention mécénat] | B189: Autre
A190: Autre : Autre : [Conventiond'hospitalité] | B190: Hospitalité
A191: Autre : AUTRE : [DROIT A L IMAGE] | B191: Autre
A192: Autre : Autre : [entretien] | B192: Etude de marché
A193: Autre : Autre : [entretien] | B193: Etude de marché
A194: Autre : AUTRE : [ETUDE CLINIQUE] | B194: Recherche Clinique
A195: Autre : Autre : [EXPERT CONSULTANT] | B195: Expert
A196: Autre : Autre : [Expertise] | B196: Expert
A197: Autre : Autre : [Expertise] | B197: Expert
A198: Autre : Autre : [HONORAIRES ou CONTRAT] | B198: Autre
A199: Autre : Autre : [HONORAIRES] | B199: Autre
A200: Autre : Autre : [Hospitalité Evenement Scientifique] | B200: Réunion professionnelle
... 570 more rows

Sheet FIRMES
A1: FIRME dans Transparence.sante.gouv.fr | B1: FIRME (libellé de regroupement)
A2: 22 Juillet Conseil | B2: 22 Juillet Conseil
A3: 3-D Matrix Europe SAS | B3: 3-D Matrix Europe SAS
A4: 3M Belgium bvba/sprl | B4: 3M Belgium bvba/sprl
A5: 3M Deutschland GmbH | B5: 3M Deutschland GmbH
A6: 3M France | B6: 3M France
A7: 3M MAROC | B7: 3M MAROC
A8: 3M United Kingdom PLC | B8: 3M United Kingdom PLC
A9: 3S ORTHO | B9: 3S ORTHO
A10: 4Tech Cardio Ltd | B10: 4Tech Cardio Ltd
A11: 7 MED INDUSTRIE | B11: 7 MED INDUSTRIE
A12: A a Z SANTE | B12: A a Z SANTE
A13: A DEC INTERNATIONAL INC | B13: A DEC INTERNATIONAL INC
A14: A.I.R. | B14: A.I.R.
A15: A.MENARINI diagnostics | B15: A.MENARINI diagnostics
A16: A.R.C. Pharma | B16: A.R.C. Pharma
A17: A+A | B17: A+A
A18: a2m rehateam | B18: a2m rehateam
A19: AADAIRC | B19: AADAIRC
A20: ABBOTT FRANCE | B20: ABBOTT
A21: ABBOTT HEALTHCARE SAS | B21: ABBOTT
A22: ABBOTT PRODUCTS SAS | B22: ABBOTT
A23: AbbVie | B23: AbbVie
A24: ABENA-FRANTEX | B24: ABENA-FRANTEX
A25: Abiomed GmbH | B25: Abiomed GmbH
A26: ABM | B26: ABM
A27: abmedica | B27: abmedica
A28: ABS-Bolton Medical | B28: ABS-Bolton Medical
A29: accomed | B29: accomed
A30: ACCORD HEALTHCARE FRANCE SAS | B30: ACCORD HEALTHCARE FRANCE SAS
A31: ACCOVION SARL | B31: ACCOVION SARL
A32: Accuray Europe | B32: Accuray Europe
A33: ACIST Europe BV | B33: ACIST Europe BV
A34: ACM | B34: ACM
A35: Acorda Therapeutics, Inc. | B35: Acorda Therapeutics, Inc.
A36: ACOUSTIQUE MEDICAL DU LITTORAL | B36: ACOUSTIQUE MEDICAL DU LITTORAL
A37: ACS-Agence Conseil Santé | B37: ACS-Agence Conseil Santé
A38: ACS-Agence Conseil Santé | B38: ACS-Agence Conseil Santé
A39: ACT+ Consulting | B39: ACT+ Consulting
A40: ACTAVIS GROUP PTC EHF | B40: ACTAVIS GROUP PTC EHF
A41: Actelion Pharmaceuticals France | B41: Actelion
A42: Actelion Pharmaceuticals Ltd | B42: Actelion
A43: ACTION D'ECLAT | B43: ACTION D'ECLAT
A44: ADAIR | B44: ADAIR
A45: ADAPSIA | B45: ADAPSIA
A46: Adaptimmune LTD | B46: Adaptimmune LTD
A47: ADARE PHARMACEUTICALS SAS | B47: ADARE PHARMACEUTICALS SAS
A48: ADDMEDICA | B48: ADDMEDICA
A49: ADEP ASSISTANCE | B49: ADEP ASSISTANCE
A50: Adept Field Solutions | B50: Adept Field Solutions
A51: ADIR ASSISTANCE | B51: ADIR ASSISTANCE
A52: Adiral Assistance | B52: Adiral Assistance
A53: ADIRAL Association d'Aide aux Traitements À Domicile | B53: ADIRAL Association d'Aide aux Traitements À Domicile
A54: ADLER ORTHO France | B54: ADLER ORTHO France
A55: Adler Ortho srl | B55: Adler Ortho srl
A56: ADS ALSACE | B56: ADS ALSACE
A57: ADS CHAMPAGNE ARDENNE | B57: ADS CHAMPAGNE ARDENNE
A58: ADS LORRAINE | B58: ADS LORRAINE
A59: ADVANCE SAS | B59: ADVANCE SAS
A60: Advanced Accelerator Applications | B60: Advanced Accelerator Applications
A61: Advanced Accelerator Applications International SA | B61: Advanced Accelerator Applications International SA
A62: ADVANCED BIONICS SARL | B62: ADVANCED BIONICS SARL
A63: Advanced Medical Services, AMS GmbH | B63: Advanced Medical Services, AMS GmbH
A64: ADVICENNE | B64: ADVICENNE
A65: Aegerion Pharmaceuticals | B65: Aegerion Pharmaceuticals
A66: Aepodia France SARL | B66: Aepodia France SARL
A67: AERIS Medical SAS | B67: AERIS Medical SAS
A68: AEROGEN | B68: AEROGEN
A69: AFFINITES SANTE | B69: AFFINITES SANTE
A70: Agence Conseil 3P | B70: Agence Conseil 3P
A71: agence européenne informatique | B71: agence européenne informatique
A72: Agfa HealthCare France SA | B72: Agfa HealthCare France SA
A73: AGFA Healthcare Imaging Agents France | B73: AGFA Healthcare Imaging Agents France
A74: AGILENT TECHNOLOGIES FRANCE | B74: AGILENT TECHNOLOGIES FRANCE
A75: AGIR À dom Assistance | B75: AGIR À dom Assistance
A76: Aide aux Insuffisants Respiratoires de la Région Auvergne (A.I.R.R.A.) | B76: Aide aux Insuffisants Respiratoires de la Région Auvergne (A.I.R.R.A.)
A77: Aide aux Insuffisants Respiratoires de la Région Auvergne (A.I.R.R.A.) | B77: Aide aux Insuffisants Respiratoires de la Région Auvergne (A.I.R.R.A.)
A78: AIR A DOMICILE | B78: AIR A DOMICILE
A79: AIR DE BRETAGNE | B79: AIR DE BRETAGNE
A80: AIR DOMICILE SANTE ALPES | B80: AIR DOMICILE SANTE ALPES
A81: AIR DOMICILE VALLEE DU RHONE | B81: AIR DOMICILE VALLEE DU RHONE
A82: Air Liquide European Homecare Operations Services | B82: Air Liquide European Homecare Operations Services
A83: AIR LIQUIDE MEDICAL SYSTEMS | B83: AIR LIQUIDE MEDICAL SYSTEMS
A84: AIR LIQUIDE SANTE (INTERNATIONAL) | B84: AIR LIQUIDE SANTE (INTERNATIONAL)
A85: AIR LIQUIDE SANTE FRANCE | B85: AIR LIQUIDE SANTE FRANCE
A86: AIR SANTE | B86: AIR SANTE
A87: AIRE | B87: AIRE
A88: AIREL | B88: AIREL
A89: AIXIAL | B89: AIXIAL
A90: AIXPER'F | B90: AIXPER'F
A91: AJ4MED | B91: AJ4MED
A92: ALAIN AFFLELOU FRANCHISEUR | B92: ALAIN AFFLELOU FRANCHISEUR
A93: ALAIR & AVD | B93: ALAIR & AVD
A94: Alcimed GmbH | B94: Alcimed GmbH
A95: Alcimed Inc | B95: Alcimed Inc
A96: Alcimed SARL | B96: Alcimed SARL
A97: Alcimed SAS | B97: Alcimed SAS
A98: Alcimed Sprl | B98: Alcimed Sprl
A99: Alcura France | B99: Alcura France
A100: ALERE E-SANTE SAS | B100: ALERE E-SANTE SAS
A101: ALERE SAS | B101: ALERE SAS
A102: Alexion Pharma France | B102: Alexion Pharma France
A103: ALFA WASSERMANN PHARMA | B103: ALFA WASSERMANN PHARMA
A104: Align Technology SAS | B104: Align Technology SAS
A105: Alimera Sciences France | B105: Alimera Sciences France
A106: ALISEO | B106: ALISEO
A107: Alizé Pharma SAS | B107: Alizé Pharma SAS
A108: Alizé Pharma SAS | B108: Alizé Pharma SAS
A109: Alizé Santé | B109: Alizé Santé
A110: Alizé Santé | B110: Alizé Santé
A111: ALK-Abelló | B111: ALK-Abelló
A112: ALK-AbellÓ | B112: ALK-AbellÓ
A113: ALKAPHARM | B113: ALKAPHARM
A114: All Global | B114: All Global
A115: ALLERGAN FRANCE | B115: ALLERGAN FRANCE
A116: alliance healthcare repartition | B116: alliance healthcare repartition
A117: ALLIANCE PHARMA FRANCE | B117: ALLIANCE PHARMA FRANCE
A118: ALLIANCE'PERF | B118: ALLIANCE'PERF
A119: ALLP MEDITEC | B119: ALLP MEDITEC
A120: ALMIRALL SAS | B120: ALMIRALL SAS
A121: ALMUS | B121: ALMUS
A122: ALPHATEC SPINE INC | B122: ALPHATEC SPINE INC
A123: ALPHEGA | B123: ALPHEGA
A124: ALPINE SCIENTIFIC | B124: ALPINE SCIENTIFIC
A125: ALSANZA sarl | B125: ALSANZA sarl
A126: ALTEOR | B126: ALTEOR
A127: alveol'air | B127: alveol'air
A128: ALVIMEDICA Medical Technologie France | B128: ALVIMEDICA Medical Technologie France
A129: AM AUDITION | B129: AM AUDITION
A130: AMADEUS SANTE | B130: AMADEUS SANTE
A131: AMB-I SANTE PROVENCE | B131: AMB-I SANTE PROVENCE
A132: AMC APPAREILLAGE ET MATERIEL DE CARDIOLOGIE | B132: AMC APPAREILLAGE ET MATERIEL DE CARDIOLOGIE
A133: American Medical Systems France | B133: American Medical Systems France
A134: American Orthodontics | B134: American Orthodontics
A135: AMGEN SAS | B135: Amgen
A136: AMICUS THERAPEUTICS SAS | B136: AMICUS THERAPEUTICS SAS
A137: AMO FRANCE SAS | B137: AMO FRANCE SAS
A138: AMO Germany GmbH | B138: AMO Germany GmbH
A139: AMO INC USA | B139: AMO INC USA
A140: Amplifon Groupe France | B140: Amplifon Groupe France
A141: AMPLITUDE | B141: AMPLITUDE
A142: AMS 25 | B142: AMS 25
A143: AMS 70 | B143: AMS 70
A144: AMS 88 | B144: AMS 88
A145: ANERA | B145: ANERA
A146: ANNAYAKE | B146: ANNAYAKE
A147: ANTADIR | B147: ANTADIR
A148: Antadir Assistance SAS | B148: Antadir Assistance SAS
A149: ANTHOGYR | B149: ANTHOGYR
A150: ANTILLES AUDITION GUADELOUPE | B150: ANTILLES AUDITION GUADELOUPE
A151: AOTI Ltd | B151: AOTI Ltd
A152: APARD | B152: APARD
A153: apol | B153: apol
A154: APOLLO ENDOSURGERY UK LTD | B154: APOLLO ENDOSURGERY UK LTD
A155: Applied Medical France | B155: Applied Medical France
A156: APROVA | B156: APROVA
A157: APTALIS PHARMA SAS | B157: APTALIS PHARMA SAS
A158: Aptiv Solutions | B158: Aptiv Solutions
A159: AQUILAB | B159: AQUILAB
A160: ARAIR Assistance | B160: ARAIR Assistance
A161: ARAIR Assistance S.A. | B161: ARAIR Assistance S.A.
A162: ARAIRCHAR | B162: ARAIRCHAR
A163: arard | B163: arard
A164: ARCHIMEDES PHARMA France | B164: ARCHIMEDES PHARMA France
A165: ARCOS | B165: ARCOS
A166: ARGON MEDICAL DEVICES | B166: ARGON MEDICAL DEVICES
A167: ARIAD Pharmaceuticals (France) | B167: ARIAD Pharmaceuticals (France)
A168: ARJOHUNTLEIGH | B168: ARJOHUNTLEIGH
A169: ARROW GENERIQUES SAS | B169: ARROW GENERIQUES SAS
A170: ARSENAL-CDM | B170: ARSENAL-CDM
A171: ART&COS | B171: ART&COS
A172: ARTHES | B172: ARTHES
A173: Arthrex SAS | B173: Arthrex SAS
A174: Arthritis Fondation Courtin | B174: Arthritis Fondation Courtin
A175: ArthroCare France | B175: ArthroCare France
A176: Artialis | B176: Artialis
A177: ARX SAS | B177: ARX SAS
A178: ASAHI INTECC CO., LTD. | B178: ASAHI INTECC CO., LTD.
A179: Ascensia Diabetes Care France | B179: Ascensia Diabetes Care France
A180: ASDIA | B180: ASDIA
A181: Asept InMed | B181: Asept InMed
A182: ASKLE SANTE | B182: ASKLE SANTE
A183: ASPEN FRANCE | B183: ASPEN FRANCE
A184: ASPIDE AESTHETIC | B184: ASPIDE AESTHETIC
A185: ASPIDE MEDICAL | B185: ASPIDE MEDICAL
A186: ASSISTANCE DU GRAND EST | B186: ASSISTANCE DU GRAND EST
A187: ASSISTANCES MEDICALES SPECIALISEES | B187: ASSISTANCES MEDICALES SPECIALISEES
A188: Association Françoise et Eugène MINKOWSKI pour la santé mentale des migrants | B188: Association Françoise et Eugène MINKOWSKI pour la santé mentale des migrants
A189: Association Françoise et Eugène MINKOWSKI pour la santé mentale des migrants | B189: Association Françoise et Eugène MINKOWSKI pour la santé mentale des migrants
A190: Association pour le Développement de l'Enseignement et des Recherches auprès des universités des centres de recherches et des entreprises d'Aquitaine (ADERA) | B190: Association pour le Développement de l'Enseignement et des Recherches auprès des universités des centres de recherches et des entreprises d'Aquitaine (ADERA)
A191: Association pour le Développement de l'Enseignement et des Recherches auprès des universités des centres de recherches et des entreprises d'Aquitaine (ADERA) | B191: Association pour le Développement de l'Enseignement et des Recherches auprès des universités des centres de recherches et des entreprises d'Aquitaine (ADERA)
A192: ASTELLAS PHARMA | B192: ASTELLAS PHARMA
A193: ASTELLAS PHARMA B.V. | B193: ASTELLAS PHARMA B.V.
A194: ASTELLAS PHARMA GLOBAL DEVELOPMENT | B194: ASTELLAS PHARMA GLOBAL DEVELOPMENT
A195: ASTELLAS PHARMA GmbH | B195: ASTELLAS PHARMA GmbH
A196: ASTELLAS PHARMA Inc | B196: ASTELLAS PHARMA Inc
A197: ASTELLAS PHARMA Ltd | B197: ASTELLAS PHARMA Ltd
A198: ASTELLAS PHARMA S.A. | B198: ASTELLAS PHARMA S.A.
A199: Astellas Pharma Singapore Pte. Ltd. | B199: Astellas Pharma Singapore Pte. Ltd.
A200: ASTELLAS PHARMACEUTICALS AE | B200: ASTELLAS PHARMACEUTICALS AE
... 1909 more rows

Sheet Conception
B2: Concepteur :
D4: François PESTY
D5: Pharmacien, Ancien Interne des Hôpitaux de Paris, Institut Supérieur de Gestion,
D6: Consultant indépendant,
D7: Expert-Conseil en organisation et informatisation du circuit du médicament / Optimisation des approvisionnements et des stocks pharmaceutiques / Pilotage « médico-économique » des médicaments et dispositifs médicaux / Campagne « pilotes » de visites médicalisées des délégués de l’assurance maladie sur le médicament / Pertinence des traitements médicamenteux
D12: 2, square Gay Lussac
D13: 78330 Fontenay le Fleury
D14: Francois.PESTY@Wanadoo.fr
D15: 01 30 45 03 59 / 06 88 89 53 51
B18: François PESTY est membre de l'association FORMINDEP,

Sheet Rémunérations
A2: Sociétés étrangères du groupe Novartis
B3: Médecin
A4: VASSAL GILLES
B5: 2017-10-12 | C5: 1599
A6: BRISTOL-MYERS SQUIBB COMPANY
B7: Médecin
A8: VASSAL GILLES
B9: 2017-11-03 | C9: 1600
A10: Lilly France SAS
B11: Médecin
A12: VASSAL GILLES
B13: 2017-12-05 | C13: 1656
A16: JANSSEN-CILAG
B17: Médecin
A18: MASSARD CHRISTOPHE
B19: 2013-01-21 | C19: 1000
A20: Orion Corporation Orion Pharma
B21: Médecin
A22: MASSARD CHRISTOPHE
B23: 2013-04-18 | C23: 1000
A24: JANSSEN-CILAG
B25: Médecin
A26: MASSARD CHRISTOPHE
B27: 2013-09-02 | C27: 600
A28: JANSSEN-CILAG
B29: Médecin
A30: MASSARD CHRISTOPHE
B31: 2013-09-09 | C31: 1000
A32: JANSSEN-CILAG
B33: Médecin
A34: MASSARD CHRISTOPHE
B35: 2013-09-19 | C35: 700
A36: Orion Corporation Orion Pharma
B37: Médecin
A38: MASSARD CHRISTOPHE
B39: 2013-11-25 | C39: 1200
A40: JANSSEN-CILAG
B41: Médecin
A42: MASSARD CHRISTOPHE
B43: 2013-12-13 | C43: 1200
A44: JANSSEN-CILAG
B45: Médecin
A46: MASSARD CHRISTOPHE
B47: 2014-05-13 | C47: 800
A48: JANSSEN-CILAG
B49: Médecin
A50: MASSARD CHRISTOPHE
B51: 2014-05-14 | C51: 850
A52: JANSSEN-CILAG
B53: Médecin
A54: MASSARD CHRISTOPHE
B55: 2014-05-20 | C55: 1200
A56: JANSSEN-CILAG
B57: Médecin
A58: MASSARD CHRISTOPHE
B59: 2014-05-20 | C59: 900
A60: SANOFI AVENTIS FRANCE
B61: Médecin
A62: MASSARD CHRISTOPHE
B63: 2014-05-27 | C63: 548
A64: Bayer HealthCare SAS
B65: Médecin
A66: MASSARD Christophe
B67: 2014-07-24 | C67: 811
A68: JANSSEN-CILAG
B69: Médecin
A70: MASSARD CHRISTOPHE
B71: 2015-08-10 | C71: 500
A72: JANSSEN-CILAG
B73: Médecin
A74: MASSARD CHRISTOPHE
B75: 2015-08-10 | C75: 400
A76: Bayer HealthCare SAS
B77: Médecin
A78: MASSARD Christophe
B79: 2015-09-18 | C79: 661
A80: JANSSEN-CILAG
B81: Médecin
A82: MASSARD CHRISTOPHE
B83: 2015-10-19 | C83: 1200
A84: JANSSEN-CILAG
B85: Médecin
A86: MASSARD CHRISTOPHE
B87: 2015-10-30 | C87: 500
A88: SANOFI AVENTIS FRANCE
B89: Médecin
A90: MASSARD CHRISTOPHE
B91: 2015-12-23 | C91: 388
A92: SANOFI AVENTIS FRANCE
B93: Médecin
A94: MASSARD CHRISTOPHE
B95: 2016-03-21 | C95: 387
A97: JANSSEN-CILAG
B98: Médecin
A99: MASSARD CHRISTOPHE
B100: 2016-09-14 | C100: 600
A101: JANSSEN-CILAG
B102: Médecin
A103: MASSARD CHRISTOPHE
B104: 2016-10-04 | C104: 600
A105: JANSSEN-CILAG
B106: Médecin
A107: MASSARD CHRISTOPHE
B108: 2016-11-08 | C108: 700
A109: SANOFI AVENTIS FRANCE
B110: Médecin
A111: MASSARD CHRISTOPHE
B112: 2016-11-28 | C112: 1033
A113: SANOFI AVENTIS FRANCE
B114: Médecin
A115: MASSARD CHRISTOPHE
B116: 2017-01-25 | C116: 538
A117: AMGEN SAS
B118: Médecin
A119: MASSARD CHRISTOPHE
B120: 2017-04-21 | C120: 674
A121: ASTRAZENECA
B122: Médecin
A123: MASSARD CHRISTOPHE
B124: 2017-05-29 | C124: 706
A125: ASTRAZENECA
B126: Médecin
A127: MASSARD CHRISTOPHE
B128: 2017-05-29 | C128: 778
A129: JANSSEN-CILAG
B130: Médecin
A131: MASSARD CHRISTOPHE
B132: 2017-05-31 | C132: 1083
A133: JANSSEN-CILAG
B134: Médecin
A135: MASSARD CHRISTOPHE
B136: 2017-06-06 | C136: 561
A137: JANSSEN-CILAG
B138: Médecin
A139: MASSARD CHRISTOPHE
B140: 2017-06-06 | C140: 350
A141: JANSSEN-CILAG
B142: Médecin
A143: MASSARD CHRISTOPHE
B144: 2017-06-08 | C144: 350
A145: ASTRAZENECA
B146: Médecin
A147: MASSARD CHRISTOPHE
B148: 2017-06-28 | C148: 848
A149: Lilly France SAS
B150: Médecin
A151: MASSARD CHRISTOPHE
B152: 2017-12-15 | C152: 1521
A154: AMGEN SAS
B155: Médecin
A156: MARABELLE AURELIEN
B157: 2014-11-28 | C157: 1790
A158: AMGEN SAS
B159: Médecin
A160: MARABELLE AURELIEN
B161: 2015-07-23 | C161: 1000
A162: AMGEN SAS
B163: Médecin
A164: MARABELLE AURELIEN
B165: 2015-09-25 | C165: 2000
A166: AMGEN SAS
B167: Médecin
A168: MARABELLE AURELIEN
B169: 2015-10-23 | C169: 800
A170: ROCHE MAROC
B171: Médecin
A172: MARABELLE AURELIEN
B173: 2016-01-08 | C173: 1395
A174: ROCHE ETATS-UNIS
B175: Médecin
A176: MARABELLE AURELIEN
B177: 2016-01-21 | C177: 1600
A178: ROCHE SUISSE
B179: Médecin
A180: MARABELLE AURELIEN
B181: 2016-01-28 | C181: 1800
A182: AMGEN SAS
B183: Médecin
A184: MARABELLE AURELIEN
B185: 2016-02-22 | C185: 1900
A186: LABORATOIRE GLAXOSMITHKLINE
B187: Médecin
A188: MARABELLE AURELIEN
B189: 2016-03-08 | C189: 700
A190: ROCHE ALLEMAGNE
B191: Médecin
A192: MARABELLE AURELIEN
B193: 2016-03-23 | C193: 1260
A194: LABORATOIRE GLAXOSMITHKLINE
B195: Médecin
A196: MARABELLE AURELIEN
B197: 2016-07-19 | C197: 1056
A198: ONXEO
B199: Médecin
A200: MARABELLE Aurélien
B201: 2016-09-05 | C201: 3375
A202: ROCHE SAS
B203: Médecin
A204: MARABELLE AURELIEN
B205: 2016-09-06 | C205: 1320
... 324 more rows

Sheet Déplacements
A2: Début | B2: Fin | C2: Signature | D2: Congrès | E2: Lieux | F2: Firme

Sheet Tableaux de synthèse
C3: Synthèse | G3: Avantages perçus | O3: Conventions signées | Z3: Montants des avantages versés par les entreprises - Montants des avantages versés par les entreprises - Montants des avantages versés par les entreprises - Montants des avantages versés | CQ3: Nombres d'avantages versés par les entreprises - Nombres d'avantages versés par les entreprises - Nombres d'avantages versés par les entreprises - Nombres d'avantages versés par les entreprises - Nombres d'avantages versés par les entreprises - | FH3: Nombres de conventions signées avec les entreprises - Nombres de conventions signées avec les entreprises - Nombres de conventions signées avec les entreprises - Nombres de conventions signées avec les entreprises - Nombres de conventions signées avec les entreprises -
B4: Bénéficiaire | C4: Total avantages perçus (€) | D4: Nombre d'avantages perçus | E4: Nombre de conventions signées | F4: Rémunérations + montants de conventions | G4: Transport | H4: Hébergement | I4: Repas | J4: Hospitalité | K4: Inscription | L4: Conseil | M4: Congrès | N4: Autre | O4: Hospitalité | P4: Orateur | Q4: Réunion professionnelle | R4: Expert | S4: Conseil | T4: Recherche Clinique | U4: Etude de marché | V4: Formateur | W4: Rédacteur | X4: Réunion de « Board » | Y4: Autre | Z4: Roche | AA4: MSD France | AB4: AstraZeneca | AC4: Amgen | AD4: Janssen-Cilag | AE4: Alexion Pharma France | AF4: Lilly | AG4: Bristol -Myers Squibb | AH4: Novartis | AI4: AbbVie | AJ4: MERCK SERONO | AK4: Sanofi Aventis France | AL4: SANOFI-AVENTIS RECHERCHE & DEVELOPPEMENT | AM4: GSK | AN4: Pierre Fabre Médicament | AO4: ASTELLAS PHARMA | AP4: Orion Corporation Orion Pharma | AQ4: BIOGARAN | AR4: GILEAD SCIENCES | AS4: INSTITUT MERIEUX | AT4: EISAI SAS | AU4: galderma international | AV4: CHUGAI | AW4: CIS BIO INTERNATIONAL | AX4: GE Medical Systems SCS | AY4: Icomed | AZ4: NANOBIOTIX S.A. | BA4: LEO Pharma | BB4: GlobalData | BC4: Health Advances | BD4: CELGENE | BE4: COSMETIQUE ACTIVE FRANCE | BF4: Bioderma | BG4: Bayer HealthCare SAS | BH4: Pfizer | BI4: MEDEXACT | BJ4: LIVE ! BY GL EVENTS | BK4: Medicys Limited | BL4: INNATE PHARMA | BM4: Genmab A/S | BN4: NAOS | BO4: Roche Diagnostics GmbH | BP4: PSI CRO AG | BQ4: IPSEN PHARMA | BR4: LES SERVIER | BS4: KEPHREN | BT4: INVENTIVA | BU4: SANDOZ | BV4: GE HEALTHCARE SAS | BW4: Transgene SA | BX4: Incyte Corporation | BY4: CELGENE SAS | BZ4: EUSA PHARMA SAS | CA4: MALLINCKRODT FRANCE SARL | CB4: Illumina France | CC4: THERMO ELECTRON SAS | CD4: Grünenthal | CE4: Biosensors France SAS | CF4: ARIAD Pharmaceuticals (France) | CG4: AGILENT TECHNOLOGIES FRANCE | CH4: Codexial Dermatologie | CI4: BRACCO IMAGING FRANCE | CJ4: ADDMEDICA | CK4: TEVA SANTE SAS | CL4: MUNDIPHARMA | CM4: FRESENIUS KABI FRANCE | CN4: Takeda France | CO4: Pierre Fabre Dermo-Cosmétique | CP4: Genzyme | CQ4: Roche | CR4: Amgen | CS4: AstraZeneca | CT4: Janssen-Cilag | CU4: MSD France | CV4: Bristol -Myers Squibb | CW4: MERCK SERONO | CX4: AbbVie | CY4: Novartis | CZ4: GSK | DA4: Lilly | DB4: Sanofi Aventis France | DC4: GILEAD SCIENCES | DD4: Icomed | DE4: galderma international | DF4: Pierre Fabre Médicament | DG4: Alexion Pharma France | DH4: ASTELLAS PHARMA | DI4: CHUGAI | DJ4: EISAI SAS | DK4: MEDEXACT | DL4: LEO Pharma | DM4: CELGENE | DN4: Pfizer | DO4: COSMETIQUE ACTIVE FRANCE | DP4: Orion Corporation Orion Pharma | DQ4: Bayer HealthCare SAS | DR4: GE Medical Systems SCS | DS4: SANDOZ | DT4: EUSA PHARMA SAS | DU4: LES SERVIER | DV4: Bioderma | DW4: Grünenthal | DX4: Transgene SA | DY4: Incyte Corporation | DZ4: INSTITUT MERIEUX | EA4: INNATE PHARMA | EB4: LIVE ! BY GL EVENTS | EC4: GE HEALTHCARE SAS | ED4: BIOGARAN | EE4: Roche Diagnostics GmbH | EF4: NANOBIOTIX S.A. | EG4: TEVA SANTE SAS | EH4: MUNDIPHARMA | EI4: PSI CRO AG | EJ4: Health Advances | EK4: Medicys Limited | EL4: INVENTIVA | EM4: Genmab A/S | EN4: SANOFI-AVENTIS RECHERCHE & DEVELOPPEMENT | EO4: CELGENE SAS | EP4: IPSEN PHARMA | EQ4: AGILENT TECHNOLOGIES FRANCE | ER4: KEPHREN | ES4: Illumina France | ET4: ARIAD Pharmaceuticals (France) | EU4: CIS BIO INTERNATIONAL | EV4: MALLINCKRODT FRANCE SARL | EW4: Biosensors France SAS | EX4: Pierre Fabre Dermo-Cosmétique | EY4: NAOS | EZ4: Codexial Dermatologie | FA4: GlobalData | FB4: Genzyme | FC4: BRACCO IMAGING FRANCE | FD4: FRESENIUS KABI FRANCE | FE4: ADDMEDICA | FF4: Takeda France | FG4: THERMO ELECTRON SAS | FH4: Roche | FI4: AstraZeneca | FJ4: Janssen-Cilag | FK4: Bristol -Myers Squibb | FL4: MSD France | FM4: Amgen | FN4: Novartis | FO4: Sanofi Aventis France | FP4: AbbVie | FQ4: Lilly | FR4: GSK | FS4: Pfizer | FT4: MERCK SERONO | FU4: galderma international | FV4: EISAI SAS | FW4: INC RESEARCH, LLC | FX4: Bayer HealthCare SAS | FY4: PRA | FZ4: Covance Clinical And Periapproval Services SARL | GA4: ICON CLINICAL RESEARCH SARL | GB4: GILEAD SCIENCES | GC4: LES SERVIER | GD4: IPSEN PHARMA | GE4: PPD FRANCE SAS | GF4: Pierre Fabre Médicament | GG4: Alexion Pharma France | GH4: LEO Pharma | GI4: ASTELLAS PHARMA | GJ4: SANOFI-AVENTIS RECHERCHE & DEVELOPPEMENT | GK4: CELGENE | GL4: Adept Field Solutions | GM4: Grünenthal | GN4: Transgene SA | GO4: DDB Health Paris | GP4: Genzyme | GQ4: Advanced Accelerator Applications | GR4: NANOBIOTIX S.A. | GS4: Orion Corporation Orion Pharma | GT4: PSI CRO AG | GU4: Health Advances | GV4: PSI CRO FRANCE | GW4: INVENTIVA | GX4: Institut Roche | GY4: ONXEO | GZ4: Inventivhealthclinical | HA4: CELGENE SAS | HB4: KEOCYT | HC4: Kantar Health | HD4: CYCLOPHARMA | HE4: LIVE ! BY GL EVENTS | HF4: EUSA PHARMA SAS | HG4: MUNDIPHARMA | HH4: GE Medical Systems SCS | HI4: MALLINCKRODT FRANCE SARL | HJ4: BOSTON SCIENTIFIC SAS | HK4: PAREXEL International | HL4: BOEHRINGER INGELHEIM FRANCE | HM4: SANDOZ | HN4: Simon-Kucher & Partners | HO4: BIOGARAN | HP4: ERYTECH Pharma
B5: Pr Gilles Vassal, IGR | C5: =SUMPRODUCT(('Avantages perçus'!$A$2:$A$30000=B5)*('Avantages perçus'!$F$2:$F$30000)) -> 11136 | D5: =COUNTIFS('Avantages perçus'!$A$2:$A$30000,B5,'Avantages perçus'!$F$2:$F$30000,">0") -> 32 | E5: =COUNTIFS('Conventions signées'!$A$2:$A$15000,B5,'Conventions signées'!$A$2:$A$15000,"*") -> 12 | F5: ='Conventions signées'!G8+'Conventions signées'!G11+'Conventions signées'!G12+'Conventions signées'!G13+Rémunérations!C5+Rémunérations!C9+Rémunérations!C13 -> 23497 | G5: 6701 | H5: 2218 | I5: 504 | J5: 241 | K5: 1472 | L5: 0 | M5: 0 | N5: 0 | O5: 1 | P5: 3 | Q5: 4 | R5: 0 | S5: 4 | T5: 0 | U5: 0 | V5: 0 | W5: 0 | X5: 0 | Y5: 0 | Z5: 4732 | AA5: 0 | AB5: 25 | AC5: 0 | AD5: 0 | AE5: 0 | AF5: 5234 | AG5: 1145 | AH5: 0 | AI5: 0 | AJ5: 0 | AK5: 0 | AL5: 0 | AM5: 0 | AN5: 0 | AO5: 0 | AP5: 0 | AQ5: 0 | AR5: 0 | AS5: 0 | AT5: 0 | AU5: 0 | AV5: 0 | AW5: 0 | AX5: 0 | AY5: 0 | AZ5: 0 | BA5: 0 | BB5: 0 | BC5: 0 | BD5: 0 | BE5: 0 | BF5: 0 | BG5: 0 | BH5: 0 | BI5: 0 | BJ5: 0 | BK5: 0 | BL5: 0 | BM5: 0 | BN5: 0 | BO5: 0 | BP5: 0 | BQ5: 0 | BR5: 0 | BS5: 0 | BT5: 0 | BU5: 0 | BV5: 0 | BW5: 0 | BX5: 0 | BY5: 0 | BZ5: 0 | CA5: 0 | CB5: 0 | CC5: 0 | CD5: 0 | CE5: 0 | CF5: 0 | CG5: 0 | CH5: 0 | CI5: 0 | CJ5: 0 | CK5: 0 | CL5: 0 | CM5: 0 | CN5: 0 | CO5: 0 | CP5: 0 | CQ5: 18 | CR5: 0 | CS5: 1 | CT5: 0 | CU5: 0 | CV5: 10 | CW5: 0 | CX5: 0 | CY5: 0 | CZ5: 0 | DA5: 3 | DB5: 0 | DC5: 0 | DD5: 0 | DE5: 0 | DF5: 0 | DG5: 0 | DH5: 0 | DI5: 0 | DJ5: 0 | DK5: 0 | DL5: 0 | DM5: 0 | DN5: 0 | DO5: 0 | DP5: 0 | DQ5: 0 | DR5: 0 | DS5: 0 | DT5: 0 | DU5: 0 | DV5: 0 | DW5: 0 | DX5: 0 | DY5: 0 | DZ5: 0 | EA5: 0 | EB5: 0 | EC5: 0 | ED5: 0 | EE5: 0 | EF5: 0 | EG5: 0 | EH5: 0 | EI5: 0 | EJ5: 0 | EK5: 0 | EL5: 0 | EM5: 0 | EN5: 0 | EO5: 0 | EP5: 0 | EQ5: 0 | ER5: 0 | ES5: 0 | ET5: 0 | EU5: 0 | EV5: 0 | EW5: 0 | EX5: 0 | EY5: 0 | EZ5: 0 | FA5: 0 | FB5: 0 | FC5: 0 | FD5: 0 | FE5: 0 | FF5: 0 | FG5: 0 | FH5: 4 | FI5: 1 | FJ5: 0 | FK5: 3 | FL5: 0 | FM5: 0 | FN5: 0 | FO5: 0 | FP5: 0 | FQ5: 4 | FR5: 0 | FS5: 0 | FT5: 0 | FU5: 0 | FV5: 0 | FW5: 0 | FX5: 0 | FY5: 0 | FZ5: 0 | GA5: 0 | GB5: 0 | GC5: 0 | GD5: 0 | GE5: 0 | GF5: 0 | GG5: 0 | GH5: 0 | GI5: 0 | GJ5: 0 | GK5: 0 | GL5: 0 | GM5: 0 | GN5: 0 | GO5: 0 | GP5: 0 | GQ5: 0 | GR5: 0 | GS5: 0 | GT5: 0 | GU5: 0 | GV5: 0 | GW5: 0 | GX5: 0 | GY5: 0 | GZ5: 0 | HA5: 0 | HB5: 0 | HC5: 0 | HD5: 0 | HE5: 0 | HF5: 0 | HG5: 0 | HH5: 0 | HI5: 0 | HJ5: 0 | HK5: 0 | HL5: 0 | HM5: 0 | HN5: 0 | HO5: 0 | HP5: 0
B6: Dr Christophe Massard, IGR | C6: =SUMPRODUCT(('Avantages perçus'!$A$2:$A$30000=B6)*('Avantages perçus'!$F$2:$F$30000)) -> 61642 | D6: =COUNTIFS('Avantages perçus'!$A$2:$A$30000,B6,'Avantages perçus'!$F$2:$F$30000,">0") -> 151 | E6: =COUNTIFS('Conventions signées'!$A$2:$A$15000,B6,'Conventions signées'!$A$2:$A$15000,"*") -> 102 | F6: =SUM('Conventions signées'!G14:G115)+SUM(Rémunérations!C18:C152) -> 168272 | G6: 38628 | H6: 5782 | I6: 3554 | J6: 3445 | K6: 5086 | L6: 0 | M6: 29 | N6: 5118 | O6: 13 | P6: 19 | Q6: 30 | R6: 10 | S6: 14 | T6: 9 | U6: 0 | V6: 3 | W6: 0 | X6: 0 | Y6: 4 | Z6: 0 | AA6: 3925 | AB6: 11761 | AC6: 137 | AD6: 10120 | AE6: 0 | AF6: 16361 | AG6: 57 | AH6: 29 | AI6: 0 | AJ6: 15 | AK6: 8091 | AL6: 0 | AM6: 20 | AN6: 0 | AO6: 5034 | AP6: 5010 | AQ6: 0 | AR6: 0 | AS6: 0 | AT6: 0 | AU6: 0 | AV6: 71 | AW6: 0 | AX6: 0 | AY6: 0 | AZ6: 0 | BA6: 36 | BB6: 0 | BC6: 309 | BD6: 0 | BE6: 0 | BF6: 0 | BG6: 135 | BH6: 0 | BI6: 0 | BJ6: 0 | BK6: 180 | BL6: 0 | BM6: 0 | BN6: 0 | BO6: 0 | BP6: 113 | BQ6: 0 | BR6: 0 | BS6: 0 | BT6: 88 | BU6: 10 | BV6: 0 | BW6: 26 | BX6: 50 | BY6: 0 | BZ6: 0 | CA6: 0 | CB6: 0 | CC6: 0 | CD6: 30 | CE6: 0 | CF6: 0 | CG6: 0 | CH6: 0 | CI6: 0 | CJ6: 0 | CK6: 18 | CL6: 16 | CM6: 0 | CN6: 0 | CO6: 0 | CP6: 0 | CQ6: 0 | CR6: 5 | CS6: 18 | CT6: 55 | CU6: 3 | CV6: 1 | CW6: 1 | CX6: 0 | CY6: 2 | CZ6: 1 | DA6: 10 | DB6: 16 | DC6: 0 | DD6: 0 | DE6: 0 | DF6: 0 | DG6: 0 | DH6: 14 | DI6: 3 | DJ6: 0 | DK6: 0 | DL6: 2 | DM6: 0 | DN6: 0 | DO6: 0 | DP6: 5 | DQ6: 4 | DR6: 0 | DS6: 1 | DT6: 0 | DU6: 0 | DV6: 0 | DW6: 2 | DX6: 1 | DY6: 1 | DZ6: 0 | EA6: 0 | EB6: 0 | EC6: 0 | ED6: 0 | EE6: 0 | EF6: 0 | EG6: 1 | EH6: 1 | EI6: 1 | EJ6: 1 | EK6: 1 | EL6: 1 | EM6: 0 | EN6: 0 | EO6: 0 | EP6: 0 | EQ6: 0 | ER6: 0 | ES6: 0 | ET6: 0 | EU6: 0 | EV6: 0 | EW6: 0 | EX6: 0 | EY6: 0 | EZ6: 0 | FA6: 0 | FB6: 0 | FC6: 0 | FD6: 0 | FE6: 0 | FF6: 0 | FG6: 0 | FH6: 3 | FI6: 8 | FJ6: 32 | FK6: 0 | FL6: 3 | FM6: 4 | FN6: 2 | FO6: 16 | FP6: 0 | FQ6: 4 | FR6: 0 | FS6: 1 | FT6: 0 | FU6: 0 | FV6: 0 | FW6: 6 | FX6: 4 | FY6: 4 | FZ6: 1 | GA6: 0 | GB6: 0 | GC6: 0 | GD6: 2 | GE6: 0 | GF6: 0 | GG6: 0 | GH6: 0 | GI6: 3 | GJ6: 1 | GK6: 0 | GL6: 0 | GM6: 2 | GN6: 1 | GO6: 0 | GP6: 0 | GQ6: 0 | GR6: 0 | GS6: 1 | GT6: 1 | GU6: 1 | GV6: 1 | GW6: 1 | GX6: 0 | GY6: 0 | GZ6: 0 | HA6: 0 | HB6: 0 | HC6: 0 | HD6: 0 | HE6: 0 | HF6: 0 | HG6: 0 | HH6: 0 | HI6: 0 | HJ6: 0 | HK6: 0 | HL6: 0 | HM6: 0 | HN6: 0 | HO6: 0 | HP6: 0
B7: Dr Aurélien Marabelle, IGR | C7: =SUMPRODUCT(('Avantages perçus'!$A$2:$A$30000=B7)*('Avantages perçus'!$F$2:$F$30000)) -> 62251 | D7: =COUNTIFS('Avantages perçus'!$A$2:$A$30000,B7,'Avantages perçus'!$F$2:$F$30000,">0") -> 130 | E7: =COUNTIFS('Conventions signées'!$A$2:$A$15000,B7,'Conventions signées'!$A$2:$A$15000,"*") -> 82 | F7: =SUM('Conventions signées'!G116:G197)+SUM(Rémunérations!C157:C290) -> 84159 | G7: 38413 | H7: 4154 | I7: 4404 | J7: 1564 | K7: 3259 | L7: 0 | M7: 0 | N7: 10457 | O7: 8 | P7: 19 | Q7: 4 | R7: 10 | S7: 24 | T7: 9 | U7: 0 | V7: 2 | W7: 0 | X7: 0 | Y7: 6 | Z7: 12574 | AA7: 9328 | AB7: 6229 | AC7: 20474 | AD7: 0 | AE7: 0 | AF7: 0 | AG7: 9845 | AH7: 0 | AI7: 0 | AJ7: 353 | AK7: 27 | AL7: 0 | AM7: 59 | AN7: 0 | AO7: 0 | AP7: 0 | AQ7: 0 | AR7: 118 | AS7: 2810 | AT7: 154 | AU7: 0 | AV7: 0 | AW7: 0 | AX7: 0 | AY7: 0 | AZ7: 0 | BA7: 0 | BB7: 0 | BC7: 0 | BD7: 0 | BE7: 0 | BF7: 0 | BG7: 84 | BH7: 0 | BI7: 0 | BJ7: 0 | BK7: 0 | BL7: 0 | BM7: 147 | BN7: 0 | BO7: 0 | BP7: 0 | BQ7: 0 | BR7: 0 | BS7: 0 | BT7: 0 | BU7: 0 | BV7: 0 | BW7: 49 | BX7: 0 | BY7: 0 | BZ7: 0 | CA7: 0 | CB7: 0 | CC7: 0 | CD7: 0 | CE7: 0 | CF7: 0 | CG7: 0 | CH7: 0 | CI7: 0 | CJ7: 0 | CK7: 0 | CL7: 0 | CM7: 0 | CN7: 0 | CO7: 0 | CP7: 0 | CQ7: 14 | CR7: 39 | CS7: 16 | CT7: 0 | CU7: 20 | CV7: 29 | CW7: 1 | CX7: 0 | CY7: 0 | CZ7: 2 | DA7: 0 | DB7: 1 | DC7: 2 | DD7: 0 | DE7: 0 | DF7: 0 | DG7: 0 | DH7: 0 | DI7: 0 | DJ7: 1 | DK7: 0 | DL7: 0 | DM7: 0 | DN7: 0 | DO7: 0 | DP7: 0 | DQ7: 1 | DR7: 0 | DS7: 0 | DT7: 0 | DU7: 0 | DV7: 0 | DW7: 0 | DX7: 1 | DY7: 0 | DZ7: 2 | EA7: 0 | EB7: 0 | EC7: 0 | ED7: 0 | EE7: 0 | EF7: 0 | EG7: 0 | EH7: 0 | EI7: 0 | EJ7: 0 | EK7: 0 | EL7: 0 | EM7: 1 | EN7: 0 | EO7: 0 | EP7: 0 | EQ7: 0 | ER7: 0 | ES7: 0 | ET7: 0 | EU7: 0 | EV7: 0 | EW7: 0 | EX7: 0 | EY7: 0 | EZ7: 0 | FA7: 0 | FB7: 0 | FC7: 0 | FD7: 0 | FE7: 0 | FF7: 0 | FG7: 0 | FH7: 6 | FI7: 10 | FJ7: 0 | FK7: 17 | FL7: 8 | FM7: 16 | FN7: 0 | FO7: 1 | FP7: 0 | FQ7: 0 | FR7: 4 | FS7: 2 | FT7: 1 | FU7: 0 | FV7: 1 | FW7: 0 | FX7: 2 | FY7: 0 | FZ7: 2 | GA7: 3 | GB7: 1 | GC7: 0 | GD7: 0 | GE7: 1 | GF7: 3 | GG7: 0 | GH7: 0 | GI7: 0 | GJ7: 1 | GK7: 0 | GL7: 0 | GM7: 0 | GN7: 1 | GO7: 0 | GP7: 0 | GQ7: 0 | GR7: 0 | GS7: 0 | GT7: 0 | GU7: 0 | GV7: 0 | GW7: 0 | GX7: 1 | GY7: 1 | GZ7: 0 | HA7: 0 | HB7: 0 | HC7: 0 | HD7: 0 | HE7: 0 | HF7: 0 | HG7: 0 | HH7: 0 | HI7: 0 | HJ7: 0 | HK7: 0 | HL7: 0 | HM7: 0 | HN7: 0 | HO7: 0 | HP7: 0
B8: Dr Eric Angevin, IGR | C8: =SUMPRODUCT(('Avantages perçus'!$A$2:$A$30000=B8)*('Avantages perçus'!$F$2:$F$30000)) -> 39259 | D8: =COUNTIFS('Avantages perçus'!$A$2:$A$30000,B8,'Avantages perçus'!$F$2:$F$30000,">0") -> 58 | E8: =COUNTIFS('Conventions signées'!$A$2:$A$15000,B8,'Conventions signées'!$A$2:$A$15000,"*") -> 25 | F8: =SUM('Conventions signées'!G198:G220)+SUM(Rémunérations!C295:C299) -> 2225 | G8: 15981 | H8: 5483 | I8: 1325 | J8: 0 | K8: 3410 | L8: 0 | M8: 0 | N8: 13060 | O8: 12 | P8: 0 | Q8: 4 | R8: 4 | S8: 1 | T8: 2 | U8: 0 | V8: 0 | W8: 0 | X8: 0 | Y8: 2 | Z8: 7669 | AA8: 4455 | AB8: 25 | AC8: 0 | AD8: 0 | AE8: 0 | AF8: 0 | AG8: 1513 | AH8: 0 | AI8: 8165 | AJ8: 0 | AK8: 0 | AL8: 10335 | AM8: 7016 | AN8: 0 | AO8: 0 | AP8: 0 | AQ8: 0 | AR8: 0 | AS8: 0 | AT8: 0 | AU8: 0 | AV8: 0 | AW8: 0 | AX8: 0 | AY8: 0 | AZ8: 0 | BA8: 0 | BB8: 0 | BC8: 0 | BD8: 0 | BE8: 0 | BF8: 0 | BG8: 0 | BH8: 0 | BI8: 0 | BJ8: 0 | BK8: 0 | BL8: 0 | BM8: 0 | BN8: 0 | BO8: 0 | BP8: 0 | BQ8: 0 | BR8: 0 | BS8: 0 | BT8: 0 | BU8: 0 | BV8: 0 | BW8: 0 | BX8: 21 | BY8: 60 | BZ8: 0 | CA8: 0 | CB8: 0 | CC8: 0 | CD8: 0 | CE8: 0 | CF8: 0 | CG8: 0 | CH8: 0 | CI8: 0 | CJ8: 0 | CK8: 0 | CL8: 0 | CM8: 0 | CN8: 0 | CO8: 0 | CP8: 0 | CQ8: 11 | CR8: 0 | CS8: 1 | CT8: 0 | CU8: 10 | CV8: 5 | CW8: 0 | CX8: 11 | CY8: 0 | CZ8: 17 | DA8: 0 | DB8: 0 | DC8: 0 | DD8: 0 | DE8: 0 | DF8: 0 | DG8: 0 | DH8: 0 | DI8: 0 | DJ8: 0 | DK8: 0 | DL8: 0 | DM8: 0 | DN8: 0 | DO8: 0 | DP8: 0 | DQ8: 0 | DR8: 0 | DS8: 0 | DT8: 0 | DU8: 0 | DV8: 0 | DW8: 0 | DX8: 0 | DY8: 1 | DZ8: 0 | EA8: 0 | EB8: 0 | EC8: 0 | ED8: 0 | EE8: 0 | EF8: 0 | EG8: 0 | EH8: 0 | EI8: 0 | EJ8: 0 | EK8: 0 | EL8: 0 | EM8: 0 | EN8: 1 | EO8: 1 | EP8: 0 | EQ8: 0 | ER8: 0 | ES8: 0 | ET8: 0 | EU8: 0 | EV8: 0 | EW8: 0 | EX8: 0 | EY8: 0 | EZ8: 0 | FA8: 0 | FB8: 0 | FC8: 0 | FD8: 0 | FE8: 0 | FF8: 0 | FG8: 0 | FH8: 3 | FI8: 1 | FJ8: 0 | FK8: 0 | FL8: 4 | FM8: 0 | FN8: 0 | FO8: 0 | FP8: 9 | FQ8: 0 | FR8: 5 | FS8: 0 | FT8: 0 | FU8: 0 | FV8: 0 | FW8: 0 | FX8: 0 | FY8: 0 | FZ8: 0 | GA8: 0 | GB8: 0 | GC8: 0 | GD8: 0 | GE8: 0 | GF8: 0 | GG8: 0 | GH8: 0 | GI8: 0 | GJ8: 1 | GK8: 0 | GL8: 0 | GM8: 0 | GN8: 0 | GO8: 0 | GP8: 0 | GQ8: 0 | GR8: 0 | GS8: 0 | GT8: 0 | GU8: 0 | GV8: 0 | GW8: 0 | GX8: 0 | GY8: 0 | GZ8: 1 | HA8: 1 | HB8: 0 | HC8: 0 | HD8: 0 | HE8: 0 | HF8: 0 | HG8: 0 | HH8: 0 | HI8: 0 | HJ8: 0 | HK8: 0 | HL8: 0 | HM8: 0 | HN8: 0 | HO8: 0 | HP8: 0
B9: Pr Jean-Yves Scoazec, IGR | C9: =SUMPRODUCT(('Avantages perçus'!$A$2:$A$30000=B9)*('Avantages perçus'!$F$2:$F$30000)) -> 1612 | D9: =COUNTIFS('Avantages perçus'!$A$2:$A$30000,B9,'Avantages perçus'!$F$2:$F$30000,">0") -> 15 | E9: =COUNTIFS('Conventions signées'!$A$2:$A$15000,B9,'Conventions signées'!$A$2:$A$15000,"*") -> 16 | F9: =SUM('Conventions signées'!G223:G238)+SUM(Rémunérations!C304:C316) -> 3885 | G9: 211 | H9: 147 | I9: 250 | J9: 113 | K9: 0 | L9: 0 | M9: 829 | N9: 62 | O9: 2 | P9: 5 | Q9: 3 | R9: 1 | S9: 4 | T9: 0 | U9: 0 | V9: 0 | W9: 0 | X9: 0 | Y9: 1 | Z9: 472 | AA9: 0 | AB9: 0 | AC9: 0 | AD9: 0 | AE9: 0 | AF9: 0 | AG9: 0 | AH9: 953 | AI9: 0 | AJ9: 0 | AK9: 0 | AL9: 0 | AM9: 0 | AN9: 0 | AO9: 0 | AP9: 0 | AQ9: 0 | AR9: 0 | AS9: 0 | AT9: 0 | AU9: 0 | AV9: 0 | AW9: 0 | AX9: 0 | AY9: 32 | AZ9: 0 | BA9: 0 | BB9: 0 | BC9: 0 | BD9: 0 | BE9: 0 | BF9: 0 | BG9: 0 | BH9: 12 | BI9: 30 | BJ9: 0 | BK9: 0 | BL9: 0 | BM9: 0 | BN9: 0 | BO9: 0 | BP9: 0 | BQ9: 113 | BR9: 0 | BS9: 0 | BT9: 0 | BU9: 0 | BV9: 0 | BW9: 0 | BX9: 0 | BY9: 0 | BZ9: 0 | CA9: 0 | CB9: 0 | CC9: 0 | CD9: 0 | CE9: 0 | CF9: 0 | CG9: 0 | CH9: 0 | CI9: 0 | CJ9: 0 | CK9: 0 | CL9: 0 | CM9: 0 | CN9: 0 | CO9: 0 | CP9: 0 | CQ9: 4 | CR9: 0 | CS9: 0 | CT9: 0 | CU9: 0 | CV9: 0 | CW9: 0 | CX9: 0 | CY9: 7 | CZ9: 0 | DA9: 0 | DB9: 0 | DC9: 0 | DD9: 1 | DE9: 0 | DF9: 0 | DG9: 0 | DH9: 0 | DI9: 0 | DJ9: 0 | DK9: 1 | DL9: 0 | DM9: 0 | DN9: 1 | DO9: 0 | DP9: 0 | DQ9: 0 | DR9: 0 | DS9: 0 | DT9: 0 | DU9: 0 | DV9: 0 | DW9: 0 | DX9: 0 | DY9: 0 | DZ9: 0 | EA9: 0 | EB9: 0 | EC9: 0 | ED9: 0 | EE9: 0 | EF9: 0 | EG9: 0 | EH9: 0 | EI9: 0 | EJ9: 0 | EK9: 0 | EL9: 0 | EM9: 0 | EN9: 0 | EO9: 0 | EP9: 1 | EQ9: 0 | ER9: 0 | ES9: 0 | ET9: 0 | EU9: 0 | EV9: 0 | EW9: 0 | EX9: 0 | EY9: 0 | EZ9: 0 | FA9: 0 | FB9: 0 | FC9: 0 | FD9: 0 | FE9: 0 | FF9: 0 | FG9: 0 | FH9: 4 | FI9: 0 | FJ9: 0 | FK9: 0 | FL9: 0 | FM9: 0 | FN9: 7 | FO9: 0 | FP9: 0 | FQ9: 0 | FR9: 0 | FS9: 1 | FT9: 0 | FU9: 0 | FV9: 0 | FW9: 0 | FX9: 0 | FY9: 0 | FZ9: 0 | GA9: 0 | GB9: 0 | GC9: 0 | GD9: 2 | GE9: 0 | GF9: 0 | GG9: 0 | GH9: 0 | GI9: 0 | GJ9: 0 | GK9: 0 | GL9: 0 | GM9: 0 | GN9: 0 | GO9: 1 | GP9: 0 | GQ9: 0 | GR9: 0 | GS9: 0 | GT9: 0 | GU9: 0 | GV9: 0 | GW9: 0 | GX9: 0 | GY9: 0 | GZ9: 0 | HA9: 0 | HB9: 1 | HC9: 0 | HD9: 0 | HE9: 0 | HF9: 0 | HG9: 0 | HH9: 0 | HI9: 0 | HJ9: 0 | HK9: 0 | HL9: 0 | HM9: 0 | HN9: 0 | HO9: 0 | HP9: 0
B10: Dr Etienne Rouleau, IGR | C10: =SUMPRODUCT(('Avantages perçus'!$A$2:$A$30000=B10)*('Avantages perçus'!$F$2:$F$30000)) -> 12622 | D10: =COUNTIFS('Avantages perçus'!$A$2:$A$30000,B10,'Avantages perçus'!$F$2:$F$30000,">0") -> 48 | E10: =COUNTIFS('Conventions signées'!$A$2:$A$15000,B10,'Conventions signées'!$A$2:$A$15000,"*") -> 36 | F10: =SUM('Conventions signées'!G239:G274)+SUM(Rémunérations!C321:C325) -> 6399 | G10: 2255 | H10: 1300 | I10: 5349 | J10: 1343 | K10: 190 | L10: 0 | M10: 1086 | N10: 1099 | O10: 4 | P10: 5 | Q10: 10 | R10: 2 | S10: 4 | T10: 0 | U10: 1 | V10: 10 | W10: 0 | X10: 0 | Y10: 0 | Z10: 64 | AA10: 0 | AB10: 11854 | AC10: 0 | AD10: 0 | AE10: 0 | AF10: 0 | AG10: 680 | AH10: 0 | AI10: 0 | AJ10: 0 | AK10: 0 | AL10: 0 | AM10: 0 | AN10: 0 | AO10: 0 | AP10: 0 | AQ10: 0 | AR10: 0 | AS10: 0 | AT10: 0 | AU10: 0 | AV10: 0 | AW10: 0 | AX10: 0 | AY10: 0 | AZ10: 0 | BA10: 0 | BB10: 0 | BC10: 0 | BD10: 0 | BE10: 0 | BF10: 0 | BG10: 0 | BH10: 0 | BI10: 0 | BJ10: 0 | BK10: 0 | BL10: 0 | BM10: 0 | BN10: 0 | BO10: 0 | BP10: 0 | BQ10: 0 | BR10: 0 | BS10: 0 | BT10: 0 | BU10: 0 | BV10: 0 | BW10: 0 | BX10: 0 | BY10: 0 | BZ10: 0 | CA10: 0 | CB10: 0 | CC10: 0 | CD10: 0 | CE10: 0 | CF10: 0 | CG10: 24 | CH10: 0 | CI10: 0 | CJ10: 0 | CK10: 0 | CL10: 0 | CM10: 0 | CN10: 0 | CO10: 0 | CP10: 0 | CQ10: 1 | CR10: 0 | CS10: 44 | CT10: 0 | CU10: 0 | CV10: 2 | CW10: 0 | CX10: 0 | CY10: 0 | CZ10: 0 | DA10: 0 | DB10: 0 | DC10: 0 | DD10: 0 | DE10: 0 | DF10: 0 | DG10: 0 | DH10: 0 | DI10: 0 | DJ10: 0 | DK10: 0 | DL10: 0 | DM10: 0 | DN10: 0 | DO10: 0 | DP10: 0 | DQ10: 0 | DR10: 0 | DS10: 0 | DT10: 0 | DU10: 0 | DV10: 0 | DW10: 0 | DX10: 0 | DY10: 0 | DZ10: 0 | EA10: 0 | EB10: 0 | EC10: 0 | ED10: 0 | EE10: 0 | EF10: 0 | EG10: 0 | EH10: 0 | EI10: 0 | EJ10: 0 | EK10: 0 | EL10: 0 | EM10: 0 | EN10: 0 | EO10: 0 | EP10: 0 | EQ10: 1 | ER10: 0 | ES10: 0 | ET10: 0 | EU10: 0 | EV10: 0 | EW10: 0 | EX10: 0 | EY10: 0 | EZ10: 0 | FA10: 0 | FB10: 0 | FC10: 0 | FD10: 0 | FE10: 0 | FF10: 0 | FG10: 0 | FH10: 5 | FI10: 27 | FJ10: 0 | FK10: 1 | FL10: 0 | FM10: 1 | FN10: 0 | FO10: 0 | FP10: 0 | FQ10: 0 | FR10: 1 | FS10: 0 | FT10: 0 | FU10: 0 | FV10: 0 | FW10: 0 | FX10: 0 | FY10: 0 | FZ10: 0 | GA10: 0 | GB10: 0 | GC10: 0 | GD10: 0 | GE10: 0 | GF10: 0 | GG10: 0 | GH10: 0 | GI10: 0 | GJ10: 0 | GK10: 0 | GL10: 0 | GM10: 0 | GN10: 0 | GO10: 0 | GP10: 0 | GQ10: 0 | GR10: 0 | GS10: 0 | GT10: 0 | GU10: 0 | GV10: 0 | GW10: 0 | GX10: 0 | GY10: 0 | GZ10: 0 | HA10: 0 | HB10: 0 | HC10: 1 | HD10: 0 | HE10: 0 | HF10: 0 | HG10: 0 | HH10: 0 | HI10: 0 | HJ10: 0 | HK10: 0 | HL10: 0 | HM10: 0 | HN10: 0 | HO10: 0 | HP10: 0
B11: Dr Dominique Goeury, FHF | C11: =SUMPRODUCT(('Avantages perçus'!$A$2:$A$30000=B11)*('Avantages perçus'!$F$2:$F$30000)) -> 81 | D11: =COUNTIFS('Avantages perçus'!$A$2:$A$30000,B11,'Avantages perçus'!$F$2:$F$30000,">0") -> 3 | E11: =COUNTIFS('Conventions signées'!$A$2:$A$15000,B11,'Conventions signées'!$A$2:$A$15000,"*") -> 2 | F11: =SUM('Conventions signées'!G275:G276)+SUM(Rémunérations!C330) -> 800 | G11: 0 | H11: 0 | I11: 71 | J11: 0 | K11: 0 | L11: 0 | M11: 0 | N11: 10 | O11: 1 | P11: 0 | Q11: 0 | R11: 0 | S11: 1 | T11: 0 | U11: 0 | V11: 0 | W11: 0 | X11: 0 | Y11: 0 | Z11: 0 | AA11: 0 | AB11: 0 | AC11: 0 | AD11: 0 | AE11: 0 | AF11: 0 | AG11: 0 | AH11: 0 | AI11: 64 | AJ11: 0 | AK11: 0 | AL11: 0 | AM11: 0 | AN11: 17 | AO11: 0 | AP11: 0 | AQ11: 0 | AR11: 0 | AS11: 0 | AT11: 0 | AU11: 0 | AV11: 0 | AW11: 0 | AX11: 0 | AY11: 0 | AZ11: 0 | BA11: 0 | BB11: 0 | BC11: 0 | BD11: 0 | BE11: 0 | BF11: 0 | BG11: 0 | BH11: 0 | BI11: 0 | BJ11: 0 | BK11: 0 | BL11: 0 | BM11: 0 | BN11: 0 | BO11: 0 | BP11: 0 | BQ11: 0 | BR11: 0 | BS11: 0 | BT11: 0 | BU11: 0 | BV11: 0 | BW11: 0 | BX11: 0 | BY11: 0 | BZ11: 0 | CA11: 0 | CB11: 0 | CC11: 0 | CD11: 0 | CE11: 0 | CF11: 0 | CG11: 0 | CH11: 0 | CI11: 0 | CJ11: 0 | CK11: 0 | CL11: 0 | CM11: 0 | CN11: 0 | CO11: 0 | CP11: 0 | CQ11: 0 | CR11: 0 | CS11: 0 | CT11: 0 | CU11: 0 | CV11: 0 | CW11: 0 | CX11: 2 | CY11: 0 | CZ11: 0 | DA11: 0 | DB11: 0 | DC11: 0 | DD11: 0 | DE11: 0 | DF11: 1 | DG11: 0 | DH11: 0 | DI11: 0 | DJ11: 0 | DK11: 0 | DL11: 0 | DM11: 0 | DN11: 0 | DO11: 0 | DP11: 0 | DQ11: 0 | DR11: 0 | DS11: 0 | DT11: 0 | DU11: 0 | DV11: 0 | DW11: 0 | DX11: 0 | DY11: 0 | DZ11: 0 | EA11: 0 | EB11: 0 | EC11: 0 | ED11: 0 | EE11: 0 | EF11: 0 | EG11: 0 | EH11: 0 | EI11: 0 | EJ11: 0 | EK11: 0 | EL11: 0 | EM11: 0 | EN11: 0 | EO11: 0 | EP11: 0 | EQ11: 0 | ER11: 0 | ES11: 0 | ET11: 0 | EU11: 0 | EV11: 0 | EW11: 0 | EX11: 0 | EY11: 0 | EZ11: 0 | FA11: 0 | FB11: 0 | FC11: 0 | FD11: 0 | FE11: 0 | FF11: 0 | FG11: 0 | FH11: 0 | FI11: 0 | FJ11: 0 | FK11: 0 | FL11: 0 | FM11: 0 | FN11: 0 | FO11: 0 | FP11: 1 | FQ11: 0 | FR11: 0 | FS11: 0 | FT11: 0 | FU11: 0 | FV11: 0 | FW11: 0 | FX11: 0 | FY11: 0 | FZ11: 0 | GA11: 0 | GB11: 0 | GC11: 0 | GD11: 0 | GE11: 0 | GF11: 0 | GG11: 0 | GH11: 0 | GI11: 0 | GJ11: 0 | GK11: 0 | GL11: 0 | GM11: 0 | GN11: 0 | GO11: 0 | GP11: 1 | GQ11: 0 | GR11: 0 | GS11: 0 | GT11: 0 | GU11: 0 | GV11: 0 | GW11: 0 | GX11: 0 | GY11: 0 | GZ11: 0 | HA11: 0 | HB11: 0 | HC11: 0 | HD11: 0 | HE11: 0 | HF11: 0 | HG11: 0 | HH11: 0 | HI11: 0 | HJ11: 0 | HK11: 0 | HL11: 0 | HM11: 0 | HN11: 0 | HO11: 0 | HP11: 0
B12: Dr Françoise Durandière, FEHAP | C12: =SUMPRODUCT(('Avantages perçus'!$A$2:$A$30000=B12)*('Avantages perçus'!$F$2:$F$30000)) -> 68 | D12: =COUNTIFS('Avantages perçus'!$A$2:$A$30000,B12,'Avantages perçus'!$F$2:$F$30000,">0") -> 2 | E12: =COUNTIFS('Conventions signées'!$A$2:$A$15000,B12,'Conventions signées'!$A$2:$A$15000,"*") -> 2 | F12: =SUM('Conventions signées'!G277:G278)+0 -> 0 | G12: 0 | H12: 0 | I12: 68 | J12: 0 | K12: 0 | L12: 0 | M12: 0 | N12: 0 | O12: 2 | P12: 0 | Q12: 0 | R12: 0 | S12: 0 | T12: 0 | U12: 0 | V12: 0 | W12: 0 | X12: 0 | Y12: 0 | Z12: 0 | AA12: 0 | AB12: 0 | AC12: 0 | AD12: 0 | AE12: 0 | AF12: 0 | AG12: 0 | AH12: 0 | AI12: 0 | AJ12: 0 | AK12: 68 | AL12: 0 | AM12: 0 | AN12: 0 | AO12: 0 | AP12: 0 | AQ12: 0 | AR12: 0 | AS12: 0 | AT12: 0 | AU12: 0 | AV12: 0 | AW12: 0 | AX12: 0 | AY12: 0 | AZ12: 0 | BA12: 0 | BB12: 0 | BC12: 0 | BD12: 0 | BE12: 0 | BF12: 0 | BG12: 0 | BH12: 0 | BI12: 0 | BJ12: 0 | BK12: 0 | BL12: 0 | BM12: 0 | BN12: 0 | BO12: 0 | BP12: 0 | BQ12: 0 | BR12: 0 | BS12: 0 | BT12: 0 | BU12: 0 | BV12: 0 | BW12: 0 | BX12: 0 | BY12: 0 | BZ12: 0 | CA12: 0 | CB12: 0 | CC12: 0 | CD12: 0 | CE12: 0 | CF12: 0 | CG12: 0 | CH12: 0 | CI12: 0 | CJ12: 0 | CK12: 0 | CL12: 0 | CM12: 0 | CN12: 0 | CO12: 0 | CP12: 0 | CQ12: 0 | CR12: 0 | CS12: 0 | CT12: 0 | CU12: 0 | CV12: 0 | CW12: 0 | CX12: 0 | CY12: 0 | CZ12: 0 | DA12: 0 | DB12: 2 | DC12: 0 | DD12: 0 | DE12: 0 | DF12: 0 | DG12: 0 | DH12: 0 | DI12: 0 | DJ12: 0 | DK12: 0 | DL12: 0 | DM12: 0 | DN12: 0 | DO12: 0 | DP12: 0 | DQ12: 0 | DR12: 0 | DS12: 0 | DT12: 0 | DU12: 0 | DV12: 0 | DW12: 0 | DX12: 0 | DY12: 0 | DZ12: 0 | EA12: 0 | EB12: 0 | EC12: 0 | ED12: 0 | EE12: 0 | EF12: 0 | EG12: 0 | EH12: 0 | EI12: 0 | EJ12: 0 | EK12: 0 | EL12: 0 | EM12: 0 | EN12: 0 | EO12: 0 | EP12: 0 | EQ12: 0 | ER12: 0 | ES12: 0 | ET12: 0 | EU12: 0 | EV12: 0 | EW12: 0 | EX12: 0 | EY12: 0 | EZ12: 0 | FA12: 0 | FB12: 0 | FC12: 0 | FD12: 0 | FE12: 0 | FF12: 0 | FG12: 0 | FH12: 0 | FI12: 0 | FJ12: 0 | FK12: 0 | FL12: 0 | FM12: 0 | FN12: 0 | FO12: 2 | FP12: 0 | FQ12: 0 | FR12: 0 | FS12: 0 | FT12: 0 | FU12: 0 | FV12: 0 | FW12: 0 | FX12: 0 | FY12: 0 | FZ12: 0 | GA12: 0 | GB12: 0 | GC12: 0 | GD12: 0 | GE12: 0 | GF12: 0 | GG12: 0 | GH12: 0 | GI12: 0 | GJ12: 0 | GK12: 0 | GL12: 0 | GM12: 0 | GN12: 0 | GO12: 0 | GP12: 0 | GQ12: 0 | GR12: 0 | GS12: 0 | GT12: 0 | GU12: 0 | GV12: 0 | GW12: 0 | GX12: 0 | GY12: 0 | GZ12: 0 | HA12: 0 | HB12: 0 | HC12: 0 | HD12: 0 | HE12: 0 | HF12: 0 | HG12: 0 | HH12: 0 | HI12: 0 | HJ12: 0 | HK12: 0 | HL12: 0 | HM12: 0 | HN12: 0 | HO12: 0 | HP12: 0
B13: Pr. Pierre Fumoleau, Institut Curie | C13: =SUMPRODUCT(('Avantages perçus'!$A$2:$A$30000=B13)*('Avantages perçus'!$F$2:$F$30000)) -> 82011 | D13: =COUNTIFS('Avantages perçus'!$A$2:$A$30000,B13,'Avantages perçus'!$F$2:$F$30000,">0") -> 189 | E13: =COUNTIFS('Conventions signées'!$A$2:$A$15000,B13,'Conventions signées'!$A$2:$A$15000,"*") -> 52 | F13: =SUM('Conventions signées'!G279:G330)+SUM(Rémunérations!C335) -> 43743 | G13: 58204 | H13: 10866 | I13: 3733 | J13: 66 | K13: 9142 | L13: 0 | M13: 0 | N13: 0 | O13: 17 | P13: 1 | Q13: 25 | R13: 3 | S13: 4 | T13: 1 | U13: 0 | V13: 0 | W13: 0 | X13: 1 | Y13: 0 | Z13: 51593 | AA13: 297 | AB13: 0 | AC13: 15172 | AD13: 49 | AE13: 0 | AF13: 2165 | AG13: 0 | AH13: 2449 | AI13: 20 | AJ13: 0 | AK13: 2219 | AL13: 0 | AM13: 1982 | AN13: 5294 | AO13: 0 | AP13: 0 | AQ13: 0 | AR13: 0 | AS13: 0 | AT13: 554 | AU13: 0 | AV13: 0 | AW13: 0 | AX13: 0 | AY13: 0 | AZ13: 0 | BA13: 0 | BB13: 0 | BC13: 0 | BD13: 0 | BE13: 0 | BF13: 0 | BG13: 0 | BH13: 73 | BI13: 0 | BJ13: 0 | BK13: 0 | BL13: 0 | BM13: 0 | BN13: 0 | BO13: 0 | BP13: 0 | BQ13: 0 | BR13: 0 | BS13: 96 | BT13: 0 | BU13: 0 | BV13: 0 | BW13: 0 | BX13: 0 | BY13: 0 | BZ13: 0 | CA13: 0 | CB13: 48 | CC13: 0 | CD13: 0 | CE13: 0 | CF13: 0 | CG13: 0 | CH13: 0 | CI13: 0 | CJ13: 0 | CK13: 0 | CL13: 0 | CM13: 0 | CN13: 0 | CO13: 0 | CP13: 0 | CQ13: 79 | CR13: 49 | CS13: 0 | CT13: 1 | CU13: 5 | CV13: 0 | CW13: 0 | CX13: 1 | CY13: 8 | CZ13: 8 | DA13: 9 | DB13: 4 | DC13: 0 | DD13: 0 | DE13: 0 | DF13: 15 | DG13: 0 | DH13: 0 | DI13: 0 | DJ13: 6 | DK13: 0 | DL13: 0 | DM13: 0 | DN13: 2 | DO13: 0 | DP13: 0 | DQ13: 0 | DR13: 0 | DS13: 0 | DT13: 0 | DU13: 0 | DV13: 0 | DW13: 0 | DX13: 0 | DY13: 0 | DZ13: 0 | EA13: 0 | EB13: 0 | EC13: 0 | ED13: 0 | EE13: 0 | EF13: 0 | EG13: 0 | EH13: 0 | EI13: 0 | EJ13: 0 | EK13: 0 | EL13: 0 | EM13: 0 | EN13: 0 | EO13: 0 | EP13: 0 | EQ13: 0 | ER13: 1 | ES13: 1 | ET13: 0 | EU13: 0 | EV13: 0 | EW13: 0 | EX13: 0 | EY13: 0 | EZ13: 0 | FA13: 0 | FB13: 0 | FC13: 0 | FD13: 0 | FE13: 0 | FF13: 0 | FG13: 0 | FH13: 25 | FI13: 0 | FJ13: 0 | FK13: 0 | FL13: 3 | FM13: 9 | FN13: 1 | FO13: 4 | FP13: 0 | FQ13: 2 | FR13: 1 | FS13: 1 | FT13: 0 | FU13: 0 | FV13: 3 | FW13: 0 | FX13: 0 | FY13: 0 | FZ13: 0 | GA13: 1 | GB13: 0 | GC13: 0 | GD13: 0 | GE13: 0 | GF13: 1 | GG13: 0 | GH13: 0 | GI13: 0 | GJ13: 0 | GK13: 0 | GL13: 0 | GM13: 0 | GN13: 0 | GO13: 0 | GP13: 0 | GQ13: 0 | GR13: 0 | GS13: 0 | GT13: 0 | GU13: 0 | GV13: 0 | GW13: 0 | GX13: 0 | GY13: 0 | GZ13: 0 | HA13: 0 | HB13: 0 | HC13: 0 | HD13: 1 | HE13: 0 | HF13: 0 | HG13: 0 | HH13: 0 | HI13: 0 | HJ13: 0 | HK13: 0 | HL13: 0 | HM13: 0 | HN13: 0 | HO13: 0 | HP13: 0
B14: Pr Norbert Ifrah, INCa | C14: =SUMPRODUCT(('Avantages perçus'!$A$2:$A$30000=B14)*('Avantages perçus'!$F$2:$F$30000)) -> 38538 | D14: =COUNTIFS('Avantages perçus'!$A$2:$A$30000,B14,'Avantages perçus'!$F$2:$F$30000,">0") -> 93 | E14: =COUNTIFS('Conventions signées'!$A$2:$A$15000,B14,'Conventions signées'!$A$2:$A$15000,"*") -> 23 | F14: =SUM('Conventions signées'!G331:G353)+SUM(Rémunérations!C341:C357) -> 5758 | G14: 26770 | H14: 6032 | I14: 2440 | J14: 0 | K14: 2198 | L14: 0 | M14: 37 | N14: 1061 | O14: 4 | P14: 2 | Q14: 10 | R14: 0 | S14: 5 | T14: 0 | U14: 0 | V14: 1 | W14: 0 | X14: 0 | Y14: 1 | Z14: 7362 | AA14: 0 | AB14: 0 | AC14: 1545 | AD14: 0 | AE14: 26626 | AF14: 210 | AG14: 476 | AH14: 362 | AI14: 0 | AJ14: 0 | AK14: 0 | AL14: 0 | AM14: 0 | AN14: 0 | AO14: 0 | AP14: 0 | AQ14: 0 | AR14: 71 | AS14: 0 | AT14: 0 | AU14: 0 | AV14: 997 | AW14: 0 | AX14: 0 | AY14: 175 | AZ14: 0 | BA14: 0 | BB14: 0 | BC14: 0 | BD14: 193 | BE14: 0 | BF14: 0 | BG14: 0 | BH14: 0 | BI14: 93 | BJ14: 185 | BK14: 0 | BL14: 155 | BM14: 0 | BN14: 0 | BO14: 0 | BP14: 0 | BQ14: 0 | BR14: 0 | BS14: 0 | BT14: 0 | BU14: 0 | BV14: 0 | BW14: 0 | BX14: 0 | BY14: 0 | BZ14: 60 | CA14: 0 | CB14: 0 | CC14: 0 | CD14: 0 | CE14: 0 | CF14: 28 | CG14: 0 | CH14: 0 | CI14: 0 | CJ14: 0 | CK14: 0 | CL14: 0 | CM14: 0 | CN14: 0 | CO14: 0 | CP14: 0 | CQ14: 17 | CR14: 14 | CS14: 0 | CT14: 0 | CU14: 0 | CV14: 1 | CW14: 0 | CX14: 0 | CY14: 5 | CZ14: 0 | DA14: 2 | DB14: 0 | DC14: 2 | DD14: 5 | DE14: 0 | DF14: 0 | DG14: 18 | DH14: 0 | DI14: 12 | DJ14: 0 | DK14: 5 | DL14: 0 | DM14: 4 | DN14: 0 | DO14: 0 | DP14: 0 | DQ14: 0 | DR14: 0 | DS14: 0 | DT14: 3 | DU14: 0 | DV14: 0 | DW14: 0 | DX14: 0 | DY14: 0 | DZ14: 0 | EA14: 2 | EB14: 2 | EC14: 0 | ED14: 0 | EE14: 0 | EF14: 0 | EG14: 0 | EH14: 0 | EI14: 0 | EJ14: 0 | EK14: 0 | EL14: 0 | EM14: 0 | EN14: 0 | EO14: 0 | EP14: 0 | EQ14: 0 | ER14: 0 | ES14: 0 | ET14: 1 | EU14: 0 | EV14: 0 | EW14: 0 | EX14: 0 | EY14: 0 | EZ14: 0 | FA14: 0 | FB14: 0 | FC14: 0 | FD14: 0 | FE14: 0 | FF14: 0 | FG14: 0 | FH14: 5 | FI14: 0 | FJ14: 0 | FK14: 2 | FL14: 0 | FM14: 1 | FN14: 2 | FO14: 1 | FP14: 0 | FQ14: 0 | FR14: 0 | FS14: 2 | FT14: 0 | FU14: 0 | FV14: 0 | FW14: 0 | FX14: 0 | FY14: 0 | FZ14: 0 | GA14: 0 | GB14: 0 | GC14: 0 | GD14: 0 | GE14: 0 | GF14: 0 | GG14: 4 | GH14: 0 | GI14: 0 | GJ14: 0 | GK14: 3 | GL14: 0 | GM14: 0 | GN14: 0 | GO14: 0 | GP14: 0 | GQ14: 0 | GR14: 0 | GS14: 0 | GT14: 0 | GU14: 0 | GV14: 0 | GW14: 0 | GX14: 0 | GY14: 0 | GZ14: 0 | HA14: 0 | HB14: 0 | HC14: 0 | HD14: 0 | HE14: 1 | HF14: 1 | HG14: 1 | HH14: 0 | HI14: 0 | HJ14: 0 | HK14: 0 | HL14: 0 | HM14: 0 | HN14: 0 | HO14: 0 | HP14: 0
B15: Pr Dominique Le Guludec, HAS | C15: =SUMPRODUCT(('Avantages perçus'!$A$2:$A$30000=B15)*('Avantages perçus'!$F$2:$F$30000)) -> 1628 | D15: =COUNTIFS('Avantages perçus'!$A$2:$A$30000,B15,'Avantages perçus'!$F$2:$F$30000,">0") -> 12 | E15: =COUNTIFS('Conventions signées'!$A$2:$A$15000,B15,'Conventions signées'!$A$2:$A$15000,"*") -> 8 | F15: =SUM('Conventions signées'!G354:G361)+0 -> 0 | G15: 0 | H15: 820 | I15: 378 | J15: 0 | K15: 0 | L15: 0 | M15: 430 | N15: 0 | O15: 2 | P15: 0 | Q15: 3 | R15: 0 | S15: 0 | T15: 1 | U15: 0 | V15: 1 | W15: 0 | X15: 0 | Y15: 1 | Z15: 0 | AA15: 0 | AB15: 0 | AC15: 0 | AD15: 0 | AE15: 0 | AF15: 0 | AG15: 0 | AH15: 0 | AI15: 0 | AJ15: 0 | AK15: 0 | AL15: 0 | AM15: 0 | AN15: 0 | AO15: 0 | AP15: 0 | AQ15: 0 | AR15: 0 | AS15: 0 | AT15: 0 | AU15: 0 | AV15: 0 | AW15: 820 | AX15: 562 | AY15: 0 | AZ15: 0 | BA15: 0 | BB15: 0 | BC15: 0 | BD15: 0 | BE15: 0 | BF15: 0 | BG15: 0 | BH15: 51 | BI15: 0 | BJ15: 0 | BK15: 0 | BL15: 0 | BM15: 0 | BN15: 0 | BO15: 0 | BP15: 0 | BQ15: 0 | BR15: 38 | BS15: 0 | BT15: 0 | BU15: 0 | BV15: 76 | BW15: 0 | BX15: 0 | BY15: 0 | BZ15: 0 | CA15: 51 | CB15: 0 | CC15: 0 | CD15: 0 | CE15: 30 | CF15: 0 | CG15: 0 | CH15: 0 | CI15: 0 | CJ15: 0 | CK15: 0 | CL15: 0 | CM15: 0 | CN15: 0 | CO15: 0 | CP15: 0 | CQ15: 0 | CR15: 0 | CS15: 0 | CT15: 0 | CU15: 0 | CV15: 0 | CW15: 0 | CX15: 0 | CY15: 0 | CZ15: 0 | DA15: 0 | DB15: 0 | DC15: 0 | DD15: 0 | DE15: 0 | DF15: 0 | DG15: 0 | DH15: 0 | DI15: 0 | DJ15: 0 | DK15: 0 | DL15: 0 | DM15: 0 | DN15: 1 | DO15: 0 | DP15: 0 | DQ15: 0 | DR15: 4 | DS15: 0 | DT15: 0 | DU15: 2 | DV15: 0 | DW15: 0 | DX15: 0 | DY15: 0 | DZ15: 0 | EA15: 0 | EB15: 0 | EC15: 2 | ED15: 0 | EE15: 0 | EF15: 0 | EG15: 0 | EH15: 0 | EI15: 0 | EJ15: 0 | EK15: 0 | EL15: 0 | EM15: 0 | EN15: 0 | EO15: 0 | EP15: 0 | EQ15: 0 | ER15: 0 | ES15: 0 | ET15: 0 | EU15: 1 | EV15: 1 | EW15: 1 | EX15: 0 | EY15: 0 | EZ15: 0 | FA15: 0 | FB15: 0 | FC15: 0 | FD15: 0 | FE15: 0 | FF15: 0 | FG15: 0 | FH15: 0 | FI15: 0 | FJ15: 0 | FK15: 0 | FL15: 0 | FM15: 0 | FN15: 0 | FO15: 0 | FP15: 0 | FQ15: 0 | FR15: 0 | FS15: 1 | FT15: 0 | FU15: 0 | FV15: 0 | FW15: 0 | FX15: 0 | FY15: 0 | FZ15: 0 | GA15: 0 | GB15: 0 | GC15: 2 | GD15: 0 | GE15: 0 | GF15: 0 | GG15: 0 | GH15: 0 | GI15: 0 | GJ15: 0 | GK15: 0 | GL15: 0 | GM15: 0 | GN15: 0 | GO15: 0 | GP15: 0 | GQ15: 2 | GR15: 0 | GS15: 0 | GT15: 0 | GU15: 0 | GV15: 0 | GW15: 0 | GX15: 0 | GY15: 0 | GZ15: 0 | HA15: 0 | HB15: 0 | HC15: 0 | HD15: 0 | HE15: 0 | HF15: 0 | HG15: 0 | HH15: 1 | HI15: 1 | HJ15: 1 | HK15: 0 | HL15: 0 | HM15: 0 | HN15: 0 | HO15: 0 | HP15: 0
B16: Pr Jean-Paul Vernant, AP-HP | C16: =SUMPRODUCT(('Avantages perçus'!$A$2:$A$30000=B16)*('Avantages perçus'!$F$2:$F$30000)) -> 45 | D16: =COUNTIFS('Avantages perçus'!$A$2:$A$30000,B16,'Avantages perçus'!$F$2:$F$30000,">0") -> 2 | E16: =COUNTIFS('Conventions signées'!$A$2:$A$15000,B16,'Conventions signées'!$A$2:$A$15000,"*") -> 2 | F16: =SUM('Conventions signées'!G362:G363) -> 0 | G16: 0 | H16: 0 | I16: 45 | J16: 0 | K16: 0 | L16: 0 | M16: 0 | N16: 0 | O16: 1 | P16: 0 | Q16: 1 | R16: 0 | S16: 0 | T16: 0 | U16: 0 | V16: 0 | W16: 0 | X16: 0 | Y16: 0 | Z16: 0 | AA16: 0 | AB16: 0 | AC16: 0 | AD16: 0 | AE16: 0 | AF16: 0 | AG16: 10 | AH16: 0 | AI16: 0 | AJ16: 0 | AK16: 0 | AL16: 0 | AM16: 0 | AN16: 0 | AO16: 0 | AP16: 0 | AQ16: 0 | AR16: 35 | AS16: 0 | AT16: 0 | AU16: 0 | AV16: 0 | AW16: 0 | AX16: 0 | AY16: 0 | AZ16: 0 | BA16: 0 | BB16: 0 | BC16: 0 | BD16: 0 | BE16: 0 | BF16: 0 | BG16: 0 | BH16: 0 | BI16: 0 | BJ16: 0 | BK16: 0 | BL16: 0 | BM16: 0 | BN16: 0 | BO16: 0 | BP16: 0 | BQ16: 0 | BR16: 0 | BS16: 0 | BT16: 0 | BU16: 0 | BV16: 0 | BW16: 0 | BX16: 0 | BY16: 0 | BZ16: 0 | CA16: 0 | CB16: 0 | CC16: 0 | CD16: 0 | CE16: 0 | CF16: 0 | CG16: 0 | CH16: 0 | CI16: 0 | CJ16: 0 | CK16: 0 | CL16: 0 | CM16: 0 | CN16: 0 | CO16: 0 | CP16: 0 | CQ16: 0 | CR16: 0 | CS16: 0 | CT16: 0 | CU16: 0 | CV16: 1 | CW16: 0 | CX16: 0 | CY16: 0 | CZ16: 0 | DA16: 0 | DB16: 0 | DC16: 1 | DD16: 0 | DE16: 0 | DF16: 0 | DG16: 0 | DH16: 0 | DI16: 0 | DJ16: 0 | DK16: 0 | DL16: 0 | DM16: 0 | DN16: 0 | DO16: 0 | DP16: 0 | DQ16: 0 | DR16: 0 | DS16: 0 | DT16: 0 | DU16: 0 | DV16: 0 | DW16: 0 | DX16: 0 | DY16: 0 | DZ16: 0 | EA16: 0 | EB16: 0 | EC16: 0 | ED16: 0 | EE16: 0 | EF16: 0 | EG16: 0 | EH16: 0 | EI16: 0 | EJ16: 0 | EK16: 0 | EL16: 0 | EM16: 0 | EN16: 0 | EO16: 0 | EP16: 0 | EQ16: 0 | ER16: 0 | ES16: 0 | ET16: 0 | EU16: 0 | EV16: 0 | EW16: 0 | EX16: 0 | EY16: 0 | EZ16: 0 | FA16: 0 | FB16: 0 | FC16: 0 | FD16: 0 | FE16: 0 | FF16: 0 | FG16: 0 | FH16: 0 | FI16: 0 | FJ16: 0 | FK16: 0 | FL16: 1 | FM16: 0 | FN16: 0 | FO16: 0 | FP16: 0 | FQ16: 0 | FR16: 0 | FS16: 0 | FT16: 0 | FU16: 0 | FV16: 0 | FW16: 0 | FX16: 0 | FY16: 0 | FZ16: 0 | GA16: 0 | GB16: 0 | GC16: 0 | GD16: 0 | GE16: 0 | GF16: 0 | GG16: 0 | GH16: 0 | GI16: 0 | GJ16: 0 | GK16: 0 | GL16: 0 | GM16: 0 | GN16: 0 | GO16: 1 | GP16: 0 | GQ16: 0 | GR16: 0 | GS16: 0 | GT16: 0 | GU16: 0 | GV16: 0 | GW16: 0 | GX16: 0 | GY16: 0 | GZ16: 0 | HA16: 0 | HB16: 0 | HC16: 0 | HD16: 0 | HE16: 0 | HF16: 0 | HG16: 0 | HH16: 0 | HI16: 0 | HJ16: 0 | HK16: 0 | HL16: 0 | HM16: 0 | HN16: 0 | HO16: 0 | HP16: 0
B17: Pr Pascal Joly, CHU Rouen | C17: =SUMPRODUCT(('Avantages perçus'!$A$2:$A$30000=B17)*('Avantages perçus'!$F$2:$F$30000)) -> 59822 | D17: =COUNTIFS('Avantages perçus'!$A$2:$A$30000,B17,'Avantages perçus'!$F$2:$F$30000,">0") -> 233 | E17: =COUNTIFS('Conventions signées'!$A$2:$A$15000,B17,'Conventions signées'!$A$2:$A$15000,"*") -> 105 | F17: =SUM('Conventions signées'!G364:G468)+SUM(Rémunérations!C362:C438) -> 56436 | G17: 28990 | H17: 11894 | I17: 6156 | J17: 1699 | K17: 4555 | L17: 0 | M17: 92 | N17: 6436 | O17: 26 | P17: 10 | Q17: 21 | R17: 10 | S17: 13 | T17: 11 | U17: 1 | V17: 6 | W17: 0 | X17: 0 | Y17: 7 | Z17: 171 | AA17: 957 | AB17: 0 | AC17: 0 | AD17: 22768 | AE17: 0 | AF17: 2012 | AG17: 1920 | AH17: 16058 | AI17: 9625 | AJ17: 0 | AK17: 1331 | AL17: 0 | AM17: 1171 | AN17: 31 | AO17: 0 | AP17: 0 | AQ17: 0 | AR17: 0 | AS17: 0 | AT17: 0 | AU17: 2227 | AV17: 0 | AW17: 0 | AX17: 0 | AY17: 83 | AZ17: 0 | BA17: 310 | BB17: 320 | BC17: 0 | BD17: 0 | BE17: 277 | BF17: 273 | BG17: 0 | BH17: 46 | BI17: 0 | BJ17: 0 | BK17: 0 | BL17: 0 | BM17: 0 | BN17: 142 | BO17: 0 | BP17: 0 | BQ17: 0 | BR17: 0 | BS17: 0 | BT17: 0 | BU17: 68 | BV17: 0 | BW17: 0 | BX17: 0 | BY17: 0 | BZ17: 0 | CA17: 0 | CB17: 0 | CC17: 0 | CD17: 0 | CE17: 0 | CF17: 0 | CG17: 0 | CH17: 20 | CI17: 0 | CJ17: 0 | CK17: 0 | CL17: 0 | CM17: 0 | CN17: 0 | CO17: 12 | CP17: 0 | CQ17: 5 | CR17: 0 | CS17: 0 | CT17: 42 | CU17: 3 | CV17: 17 | CW17: 0 | CX17: 55 | CY17: 38 | CZ17: 17 | DA17: 8 | DB17: 3 | DC17: 0 | DD17: 3 | DE17: 19 | DF17: 1 | DG17: 0 | DH17: 0 | DI17: 0 | DJ17: 0 | DK17: 0 | DL17: 6 | DM17: 0 | DN17: 1 | DO17: 6 | DP17: 0 | DQ17: 0 | DR17: 0 | DS17: 2 | DT17: 0 | DU17: 0 | DV17: 3 | DW17: 0 | DX17: 0 | DY17: 0 | DZ17: 0 | EA17: 0 | EB17: 0 | EC17: 0 | ED17: 0 | EE17: 0 | EF17: 0 | EG17: 0 | EH17: 0 | EI17: 0 | EJ17: 0 | EK17: 0 | EL17: 0 | EM17: 0 | EN17: 0 | EO17: 0 | EP17: 0 | EQ17: 0 | ER17: 0 | ES17: 0 | ET17: 0 | EU17: 0 | EV17: 0 | EW17: 0 | EX17: 1 | EY17: 1 | EZ17: 1 | FA17: 1 | FB17: 0 | FC17: 0 | FD17: 0 | FE17: 0 | FF17: 0 | FG17: 0 | FH17: 3 | FI17: 0 | FJ17: 22 | FK17: 6 | FL17: 3 | FM17: 0 | FN17: 18 | FO17: 1 | FP17: 17 | FQ17: 7 | FR17: 5 | FS17: 2 | FT17: 0 | FU17: 10 | FV17: 0 | FW17: 0 | FX17: 0 | FY17: 0 | FZ17: 1 | GA17: 0 | GB17: 0 | GC17: 0 | GD17: 0 | GE17: 2 | GF17: 0 | GG17: 0 | GH17: 4 | GI17: 0 | GJ17: 0 | GK17: 0 | GL17: 0 | GM17: 0 | GN17: 0 | GO17: 0 | GP17: 0 | GQ17: 0 | GR17: 0 | GS17: 0 | GT17: 0 | GU17: 0 | GV17: 0 | GW17: 0 | GX17: 0 | GY17: 0 | GZ17: 0 | HA17: 0 | HB17: 0 | HC17: 0 | HD17: 0 | HE17: 0 | HF17: 0 | HG17: 0 | HH17: 0 | HI17: 0 | HJ17: 0 | HK17: 1 | HL17: 1 | HM17: 1 | HN17: 1 | HO17: 0 | HP17: 0
B18: Dr Brigitte Roy-Geffroy, SFD | C18: =SUMPRODUCT(('Avantages perçus'!$A$2:$A$30000=B18)*('Avantages perçus'!$F$2:$F$30000)) -> 42 | D18: =COUNTIFS('Avantages perçus'!$A$2:$A$30000,B18,'Avantages perçus'!$F$2:$F$30000,">0") -> 2 | E18: =COUNTIFS('Conventions signées'!$A$2:$A$15000,B18,'Conventions signées'!$A$2:$A$15000,"*") -> 1 | F18: =SUM('Conventions signées'!G469)+0 -> 0 | G18: 0 | H18: 0 | I18: 42 | J18: 0 | K18: 0 | L18: 0 | M18: 0 | N18: 0 | O18: 1 | P18: 0 | Q18: 0 | R18: 0 | S18: 0 | T18: 0 | U18: 0 | V18: 0 | W18: 0 | X18: 0 | Y18: 0 | Z18: 0 | AA18: 0 | AB18: 0 | AC18: 0 | AD18: 0 | AE18: 0 | AF18: 0 | AG18: 0 | AH18: 0 | AI18: 0 | AJ18: 0 | AK18: 0 | AL18: 0 | AM18: 0 | AN18: 31 | AO18: 0 | AP18: 0 | AQ18: 0 | AR18: 0 | AS18: 0 | AT18: 0 | AU18: 0 | AV18: 0 | AW18: 0 | AX18: 0 | AY18: 0 | AZ18: 0 | BA18: 0 | BB18: 0 | BC18: 0 | BD18: 0 | BE18: 0 | BF18: 0 | BG18: 0 | BH18: 0 | BI18: 0 | BJ18: 0 | BK18: 0 | BL18: 0 | BM18: 0 | BN18: 0 | BO18: 0 | BP18: 0 | BQ18: 0 | BR18: 0 | BS18: 0 | BT18: 0 | BU18: 0 | BV18: 0 | BW18: 0 | BX18: 0 | BY18: 0 | BZ18: 0 | CA18: 0 | CB18: 0 | CC18: 0 | CD18: 0 | CE18: 0 | CF18: 0 | CG18: 0 | CH18: 0 | CI18: 0 | CJ18: 0 | CK18: 0 | CL18: 0 | CM18: 0 | CN18: 0 | CO18: 0 | CP18: 11 | CQ18: 0 | CR18: 0 | CS18: 0 | CT18: 0 | CU18: 0 | CV18: 0 | CW18: 0 | CX18: 0 | CY18: 0 | CZ18: 0 | DA18: 0 | DB18: 0 | DC18: 0 | DD18: 0 | DE18: 0 | DF18: 1 | DG18: 0 | DH18: 0 | DI18: 0 | DJ18: 0 | DK18: 0 | DL18: 0 | DM18: 0 | DN18: 0 | DO18: 0 | DP18: 0 | DQ18: 0 | DR18: 0 | DS18: 0 | DT18: 0 | DU18: 0 | DV18: 0 | DW18: 0 | DX18: 0 | DY18: 0 | DZ18: 0 | EA18: 0 | EB18: 0 | EC18: 0 | ED18: 0 | EE18: 0 | EF18: 0 | EG18: 0 | EH18: 0 | EI18: 0 | EJ18: 0 | EK18: 0 | EL18: 0 | EM18: 0 | EN18: 0 | EO18: 0 | EP18: 0 | EQ18: 0 | ER18: 0 | ES18: 0 | ET18: 0 | EU18: 0 | EV18: 0 | EW18: 0 | EX18: 0 | EY18: 0 | EZ18: 0 | FA18: 0 | FB18: 1 | FC18: 0 | FD18: 0 | FE18: 0 | FF18: 0 | FG18: 0 | FH18: 0 | FI18: 0 | FJ18: 0 | FK18: 0 | FL18: 0 | FM18: 0 | FN18: 0 | FO18: 0 | FP18: 0 | FQ18: 0 | FR18: 0 | FS18: 0 | FT18: 0 | FU18: 0 | FV18: 0 | FW18: 0 | FX18: 0 | FY18: 0 | FZ18: 0 | GA18: 0 | GB18: 0 | GC18: 0 | GD18: 0 | GE18: 0 | GF18: 0 | GG18: 0 | GH18: 0 | GI18: 0 | GJ18: 0 | GK18: 0 | GL18: 0 | GM18: 0 | GN18: 0 | GO18: 0 | GP18: 1 | GQ18: 0 | GR18: 0 | GS18: 0 | GT18: 0 | GU18: 0 | GV18: 0 | GW18: 0 | GX18: 0 | GY18: 0 | GZ18: 0 | HA18: 0 | HB18: 0 | HC18: 0 | HD18: 0 | HE18: 0 | HF18: 0 | HG18: 0 | HH18: 0 | HI18: 0 | HJ18: 0 | HK18: 0 | HL18: 0 | HM18: 0 | HN18: 0 | HO18: 0 | HP18: 0
B19: Pr Alain Astier, AP-HP | C19: =SUMPRODUCT(('Avantages perçus'!$A$2:$A$30000=B19)*('Avantages perçus'!$F$2:$F$30000)) -> 10114 | D19: =COUNTIFS('Avantages perçus'!$A$2:$A$30000,B19,'Avantages perçus'!$F$2:$F$30000,">0") -> 65 | E19: =COUNTIFS('Conventions signées'!$A$2:$A$15000,B19,'Conventions signées'!$A$2:$A$15000,"*") -> 19 | F19: =SUM('Conventions signées'!G470:G488)+0 -> 30 | G19: 5533 | H19: 1544 | I19: 1618 | J19: 23 | K19: 1376 | L19: 0 | M19: 20 | N19: 0 | O19: 3 | P19: 1 | Q19: 7 | R19: 1 | S19: 2 | T19: 0 | U19: 3 | V19: 0 | W19: 0 | X19: 2 | Y19: 0 | Z19: 60 | AA19: 81 | AB19: 0 | AC19: 127 | AD19: 15 | AE19: 0 | AF19: 0 | AG19: 23 | AH19: 51 | AI19: 0 | AJ19: 2518 | AK19: 1300 | AL19: 0 | AM19: 27 | AN19: 0 | AO19: 37 | AP19: 0 | AQ19: 3615 | AR19: 21 | AS19: 0 | AT19: 2081 | AU19: 0 | AV19: 0 | AW19: 0 | AX19: 0 | AY19: 0 | AZ19: 0 | BA19: 0 | BB19: 0 | BC19: 0 | BD19: 104 | BE19: 0 | BF19: 0 | BG19: 0 | BH19: 0 | BI19: 0 | BJ19: 0 | BK19: 0 | BL19: 0 | BM19: 0 | BN19: 0 | BO19: 0 | BP19: 0 | BQ19: 0 | BR19: 0 | BS19: 0 | BT19: 0 | BU19: 0 | BV19: 0 | BW19: 0 | BX19: 0 | BY19: 0 | BZ19: 0 | CA19: 0 | CB19: 0 | CC19: 0 | CD19: 0 | CE19: 0 | CF19: 0 | CG19: 0 | CH19: 0 | CI19: 20 | CJ19: 20 | CK19: 0 | CL19: 0 | CM19: 14 | CN19: 0 | CO19: 0 | CP19: 0 | CQ19: 3 | CR19: 6 | CS19: 0 | CT19: 1 | CU19: 3 | CV19: 1 | CW19: 26 | CX19: 0 | CY19: 3 | CZ19: 1 | DA19: 0 | DB19: 4 | DC19: 1 | DD19: 0 | DE19: 0 | DF19: 0 | DG19: 0 | DH19: 1 | DI19: 0 | DJ19: 6 | DK19: 0 | DL19: 0 | DM19: 4 | DN19: 0 | DO19: 0 | DP19: 0 | DQ19: 0 | DR19: 0 | DS19: 0 | DT19: 0 | DU19: 0 | DV19: 0 | DW19: 0 | DX19: 0 | DY19: 0 | DZ19: 0 | EA19: 0 | EB19: 0 | EC19: 0 | ED19: 2 | EE19: 0 | EF19: 0 | EG19: 0 | EH19: 0 | EI19: 0 | EJ19: 0 | EK19: 0 | EL19: 0 | EM19: 0 | EN19: 0 | EO19: 0 | EP19: 0 | EQ19: 0 | ER19: 0 | ES19: 0 | ET19: 0 | EU19: 0 | EV19: 0 | EW19: 0 | EX19: 0 | EY19: 0 | EZ19: 0 | FA19: 0 | FB19: 0 | FC19: 1 | FD19: 1 | FE19: 1 | FF19: 0 | FG19: 0 | FH19: 3 | FI19: 0 | FJ19: 0 | FK19: 0 | FL19: 0 | FM19: 3 | FN19: 0 | FO19: 2 | FP19: 0 | FQ19: 0 | FR19: 1 | FS19: 2 | FT19: 0 | FU19: 0 | FV19: 4 | FW19: 0 | FX19: 0 | FY19: 0 | FZ19: 0 | GA19: 0 | GB19: 0 | GC19: 0 | GD19: 0 | GE19: 0 | GF19: 0 | GG19: 0 | GH19: 0 | GI19: 0 | GJ19: 0 | GK19: 0 | GL19: 3 | GM19: 0 | GN19: 0 | GO19: 0 | GP19: 0 | GQ19: 0 | GR19: 0 | GS19: 0 | GT19: 0 | GU19: 0 | GV19: 0 | GW19: 0 | GX19: 0 | GY19: 0 | GZ19: 0 | HA19: 0 | HB19: 0 | HC19: 0 | HD19: 0 | HE19: 0 | HF19: 0 | HG19: 0 | HH19: 0 | HI19: 0 | HJ19: 0 | HK19: 0 | HL19: 0 | HM19: 0 | HN19: 0 | HO19: 1 | HP19: 0
B20: Pr Christophe Le Tourneau, Institut Curie | C20: =SUMPRODUCT(('Avantages perçus'!$A$2:$A$30000=B20)*('Avantages perçus'!$F$2:$F$30000)) -> 61887 | D20: =COUNTIFS('Avantages perçus'!$A$2:$A$30000,B20,'Avantages perçus'!$F$2:$F$30000,">0") -> 198 | E20: =COUNTIFS('Conventions signées'!$A$2:$A$15000,B20,'Conventions signées'!$A$2:$A$15000,"*") -> 60 | F20: =SUM('Conventions signées'!G489:G548)+SUM(Rémunérations!C444:C542) -> 72839 | G20: 33738 | H20: 11291 | I20: 4472 | J20: 2402 | K20: 3550 | L20: 0 | M20: 0 | N20: 6434 | O20: 9 | P20: 11 | Q20: 5 | R20: 5 | S20: 20 | T20: 9 | U20: 0 | V20: 1 | W20: 0 | X20: 0 | Y20: 0 | Z20: 4442 | AA20: 28317 | AB20: 10628 | AC20: 110 | AD20: 0 | AE20: 0 | AF20: 540 | AG20: 5172 | AH20: 0 | AI20: 28 | AJ20: 11695 | AK20: 0 | AL20: 0 | AM20: 0 | AN20: 0 | AO20: 0 | AP20: 0 | AQ20: 0 | AR20: 0 | AS20: 0 | AT20: 0 | AU20: 0 | AV20: 0 | AW20: 0 | AX20: 0 | AY20: 216 | AZ20: 450 | BA20: 0 | BB20: 0 | BC20: 0 | BD20: 0 | BE20: 0 | BF20: 0 | BG20: 0 | BH20: 21 | BI20: 78 | BJ20: 0 | BK20: 0 | BL20: 0 | BM20: 0 | BN20: 0 | BO20: 116 | BP20: 0 | BQ20: 0 | BR20: 60 | BS20: 0 | BT20: 0 | BU20: 0 | BV20: 0 | BW20: 0 | BX20: 0 | BY20: 0 | BZ20: 0 | CA20: 0 | CB20: 0 | CC20: 0 | CD20: 0 | CE20: 0 | CF20: 0 | CG20: 0 | CH20: 0 | CI20: 0 | CJ20: 0 | CK20: 0 | CL20: 0 | CM20: 0 | CN20: 14 | CO20: 0 | CP20: 0 | CQ20: 11 | CR20: 2 | CS20: 31 | CT20: 0 | CU20: 54 | CV20: 22 | CW20: 56 | CX20: 1 | CY20: 0 | CZ20: 0 | DA20: 1 | DB20: 0 | DC20: 0 | DD20: 10 | DE20: 0 | DF20: 0 | DG20: 0 | DH20: 0 | DI20: 0 | DJ20: 0 | DK20: 3 | DL20: 0 | DM20: 0 | DN20: 1 | DO20: 0 | DP20: 0 | DQ20: 0 | DR20: 0 | DS20: 0 | DT20: 0 | DU20: 1 | DV20: 0 | DW20: 0 | DX20: 0 | DY20: 0 | DZ20: 0 | EA20: 0 | EB20: 0 | EC20: 0 | ED20: 0 | EE20: 2 | EF20: 2 | EG20: 0 | EH20: 0 | EI20: 0 | EJ20: 0 | EK20: 0 | EL20: 0 | EM20: 0 | EN20: 0 | EO20: 0 | EP20: 0 | EQ20: 0 | ER20: 0 | ES20: 0 | ET20: 0 | EU20: 0 | EV20: 0 | EW20: 0 | EX20: 0 | EY20: 0 | EZ20: 0 | FA20: 0 | FB20: 0 | FC20: 0 | FD20: 0 | FE20: 0 | FF20: 1 | FG20: 0 | FH20: 4 | FI20: 9 | FJ20: 0 | FK20: 9 | FL20: 16 | FM20: 1 | FN20: 0 | FO20: 0 | FP20: 0 | FQ20: 0 | FR20: 0 | FS20: 0 | FT20: 9 | FU20: 0 | FV20: 0 | FW20: 1 | FX20: 0 | FY20: 2 | FZ20: 1 | GA20: 1 | GB20: 0 | GC20: 3 | GD20: 0 | GE20: 1 | GF20: 0 | GG20: 0 | GH20: 0 | GI20: 0 | GJ20: 0 | GK20: 0 | GL20: 0 | GM20: 0 | GN20: 0 | GO20: 0 | GP20: 0 | GQ20: 0 | GR20: 2 | GS20: 0 | GT20: 0 | GU20: 0 | GV20: 0 | GW20: 0 | GX20: 0 | GY20: 0 | GZ20: 0 | HA20: 0 | HB20: 0 | HC20: 0 | HD20: 0 | HE20: 0 | HF20: 0 | HG20: 0 | HH20: 0 | HI20: 0 | HJ20: 0 | HK20: 0 | HL20: 0 | HM20: 0 | HN20: 0 | HO20: 0 | HP20: 1
B21: Pr Jean-Marc Tréluyer, AP-HP | C21: =SUMPRODUCT(('Avantages perçus'!$A$2:$A$30000=B21)*('Avantages perçus'!$F$2:$F$30000)) -> 5444 | D21: =COUNTIFS('Avantages perçus'!$A$2:$A$30000,B21,'Avantages perçus'!$F$2:$F$30000,">0") -> 23 | E21: =COUNTIFS('Conventions signées'!$A$2:$A$15000,B21,'Conventions signées'!$A$2:$A$15000,"*") -> 5 | F21: =SUM('Conventions signées'!G549:G553)+0 -> 0 | G21: 2678 | H21: 1233 | I21: 546 | J21: 0 | K21: 987 | L21: 0 | M21: 0 | N21: 0 | O21: 0 | P21: 0 | Q21: 1 | R21: 0 | S21: 0 | T21: 0 | U21: 0 | V21: 0 | W21: 0 | X21: 4 | Y21: 0 | Z21: 0 | AA21: 0 | AB21: 0 | AC21: 0 | AD21: 2056 | AE21: 0 | AF21: 0 | AG21: 39 | AH21: 0 | AI21: 0 | AJ21: 0 | AK21: 0 | AL21: 0 | AM21: 0 | AN21: 0 | AO21: 0 | AP21: 0 | AQ21: 0 | AR21: 3309 | AS21: 0 | AT21: 0 | AU21: 0 | AV21: 0 | AW21: 0 | AX21: 0 | AY21: 0 | AZ21: 0 | BA21: 0 | BB21: 0 | BC21: 0 | BD21: 0 | BE21: 0 | BF21: 0 | BG21: 0 | BH21: 0 | BI21: 0 | BJ21: 0 | BK21: 0 | BL21: 0 | BM21: 0 | BN21: 0 | BO21: 0 | BP21: 0 | BQ21: 0 | BR21: 0 | BS21: 0 | BT21: 0 | BU21: 0 | BV21: 0 | BW21: 0 | BX21: 0 | BY21: 0 | BZ21: 0 | CA21: 0 | CB21: 0 | CC21: 40 | CD21: 0 | CE21: 0 | CF21: 0 | CG21: 0 | CH21: 0 | CI21: 0 | CJ21: 0 | CK21: 0 | CL21: 0 | CM21: 0 | CN21: 0 | CO21: 0 | CP21: 0 | CQ21: 0 | CR21: 0 | CS21: 0 | CT21: 5 | CU21: 0 | CV21: 2 | CW21: 0 | CX21: 0 | CY21: 0 | CZ21: 0 | DA21: 0 | DB21: 0 | DC21: 15 | DD21: 0 | DE21: 0 | DF21: 0 | DG21: 0 | DH21: 0 | DI21: 0 | DJ21: 0 | DK21: 0 | DL21: 0 | DM21: 0 | DN21: 0 | DO21: 0 | DP21: 0 | DQ21: 0 | DR21: 0 | DS21: 0 | DT21: 0 | DU21: 0 | DV21: 0 | DW21: 0 | DX21: 0 | DY21: 0 | DZ21: 0 | EA21: 0 | EB21: 0 | EC21: 0 | ED21: 0 | EE21: 0 | EF21: 0 | EG21: 0 | EH21: 0 | EI21: 0 | EJ21: 0 | EK21: 0 | EL21: 0 | EM21: 0 | EN21: 0 | EO21: 0 | EP21: 0 | EQ21: 0 | ER21: 0 | ES21: 0 | ET21: 0 | EU21: 0 | EV21: 0 | EW21: 0 | EX21: 0 | EY21: 0 | EZ21: 0 | FA21: 0 | FB21: 0 | FC21: 0 | FD21: 0 | FE21: 0 | FF21: 0 | FG21: 1 | FH21: 0 | FI21: 0 | FJ21: 1 | FK21: 0 | FL21: 0 | FM21: 0 | FN21: 0 | FO21: 0 | FP21: 0 | FQ21: 0 | FR21: 0 | FS21: 0 | FT21: 0 | FU21: 0 | FV21: 0 | FW21: 0 | FX21: 0 | FY21: 0 | FZ21: 0 | GA21: 0 | GB21: 4 | GC21: 0 | GD21: 0 | GE21: 0 | GF21: 0 | GG21: 0 | GH21: 0 | GI21: 0 | GJ21: 0 | GK21: 0 | GL21: 0 | GM21: 0 | GN21: 0 | GO21: 0 | GP21: 0 | GQ21: 0 | GR21: 0 | GS21: 0 | GT21: 0 | GU21: 0 | GV21: 0 | GW21: 0 | GX21: 0 | GY21: 0 | GZ21: 0 | HA21: 0 | HB21: 0 | HC21: 0 | HD21: 0 | HE21: 0 | HF21: 0 | HG21: 0 | HH21: 0 | HI21: 0 | HJ21: 0 | HK21: 0 | HL21: 0 | HM21: 0 | HN21: 0 | HO21: 0 | HP21: 0
B22: TOTAUX | C22: 448202 | D22: 1256 | E22: 552 | F22: =SUM(F5:F21) -> 468043 | G22: 258102 | H22: 62764 | I22: 34955 | J22: 10896 | K22: 35225 | L22: 0 | M22: 2523 | N22: 43737 | O22: 106 | P22: 76 | Q22: 128 | R22: 46 | S22: 96 | T22: 42 | U22: 5 | V22: 24 | W22: 0 | X22: 7 | Y22: 22 | Z22: 89139 | AA22: 47360 | AB22: 40522 | AC22: 37565 | AD22: 35008 | AE22: 26626 | AF22: 26522 | AG22: 20880 | AH22: 19902 | AI22: 17902 | AJ22: 14581 | AK22: 13036 | AL22: 10335 | AM22: 10275 | AN22: 5373 | AO22: 5071 | AP22: 5010 | AQ22: 3615 | AR22: 3554 | AS22: 2810 | AT22: 2789 | AU22: 2227 | AV22: 1068 | AW22: 820 | AX22: 562 | AY22: 506 | AZ22: 450 | BA22: 346 | BB22: 320 | BC22: 309 | BD22: 297 | BE22: 277 | BF22: 273 | BG22: 219 | BH22: 203 | BI22: 201 | BJ22: 185 | BK22: 180 | BL22: 155 | BM22: 147 | BN22: 142 | BO22: 116 | BP22: 113 | BQ22: 113 | BR22: 98 | BS22: 96 | BT22: 88 | BU22: 78 | BV22: 76 | BW22: 75 | BX22: 71 | BY22: 60 | BZ22: 60 | CA22: 51 | CB22: 48 | CC22: 40 | CD22: 30 | CE22: 30 | CF22: 28 | CG22: 24 | CH22: 20 | CI22: 20 | CJ22: 20 | CK22: 18 | CL22: 16 | CM22: 14 | CN22: 14 | CO22: 12 | CP22: 11 | CQ22: 163 | CR22: 115 | CS22: 111 | CT22: 104 | CU22: 98 | CV22: 91 | CW22: 84 | CX22: 70 | CY22: 63 | CZ22: 46 | DA22: 33 | DB22: 30 | DC22: 21 | DD22: 19 | DE22: 19 | DF22: 18 | DG22: 18 | DH22: 15 | DI22: 15 | DJ22: 13 | DK22: 9 | DL22: 8 | DM22: 8 | DN22: 6 | DO22: 6 | DP22: 5 | DQ22: 5 | DR22: 4 | DS22: 3 | DT22: 3 | DU22: 3 | DV22: 3 | DW22: 2 | DX22: 2 | DY22: 2 | DZ22: 2 | EA22: 2 | EB22: 2 | EC22: 2 | ED22: 2 | EE22: 2 | EF22: 2 | EG22: 1 | EH22: 1 | EI22: 1 | EJ22: 1 | EK22: 1 | EL22: 1 | EM22: 1 | EN22: 1 | EO22: 1 | EP22: 1 | EQ22: 1 | ER22: 1 | ES22: 1 | ET22: 1 | EU22: 1 | EV22: 1 | EW22: 1 | EX22: 1 | EY22: 1 | EZ22: 1 | FA22: 1 | FB22: 1 | FC22: 1 | FD22: 1 | FE22: 1 | FF22: 1 | FG22: 1 | FH22: 65 | FI22: 56 | FJ22: 55 | FK22: 38 | FL22: 38 | FM22: 35 | FN22: 30 | FO22: 27 | FP22: 27 | FQ22: 17 | FR22: 17 | FS22: 12 | FT22: 10 | FU22: 10 | FV22: 8 | FW22: 7 | FX22: 6 | FY22: 6 | FZ22: 5 | GA22: 5 | GB22: 5 | GC22: 5 | GD22: 4 | GE22: 4 | GF22: 4 | GG22: 4 | GH22: 4 | GI22: 3 | GJ22: 3 | GK22: 3 | GL22: 3 | GM22: 2 | GN22: 2 | GO22: 2 | GP22: 2 | GQ22: 2 | GR22: 2 | GS22: 1 | GT22: 1 | GU22: 1 | GV22: 1 | GW22: 1 | GX22: 1 | GY22: 1 | GZ22: 1 | HA22: 1 | HB22: 1 | HC22: 1 | HD22: 1 | HE22: 1 | HF22: 1 | HG22: 1 | HH22: 1 | HI22: 1 | HJ22: 1 | HK22: 1 | HL22: 1 | HM22: 1 | HN22: 1 | HO22: 1 | HP22: 1
B25: Période d'étude | C25: 1er semestre 2013 - 2ème semestre 2017, soient 5 années
B26: Début de l'analyse | C26: 06/07/2018 23:29:27
B27: Fin de l'analyse | C27: 06/07/2018 23:32:02
D31: Six experts IGR : | F31: =SUM(C5:C10)+SUM(F5:F10) -> 476959
